Workbook

Sheet hist. data
A1: Title: | B1: 10-Year Treasury Constant Maturity Rate | AG1: =((X42-AG42)^2)/4 -> 9.226064211e-08 | AN1: αβ= | AO1: 0.03080611313 | AP1: β/(α-1)= | AQ1: 45564.32436
A2: Series ID: | B2: GS10 | AG2: =((X44-AG44)^2)/4 -> 1.68956466e-06 | AN2: τ= | AO2: 1.447815693 | AP2: τ= | AQ2: 0.236767182
A3: Source: | B3: Board of Governors of the Federal Reserve System | AG3: =((X46-AG46)^2)/4 -> 6.341157907e-08 | AK3: mean | AL3: =AL11*AL12 -> 0.0324678521 | AM3: =AM12/(AM11-1) -> 0.1309141916 | AN3: α = | AO3: 0.7062046926 | AP3: α = | AQ3: 16.00896282 | AT3: These are all based on best mix of a stand-alone
A4: Release: | B4: H.15 Selected Interest Rates | AG4: =((X52-AG52)^2)/4 -> 1.087366356e-07 | AK4: std dev | AL4: =AL12*AL11^0.5 -> 0.02950540379 | AM4: =AM3/(AM11-2)^0.5 ->  | AN4: β = | AO4: 0.04362207368 | AP4: β = | AQ4: 2846.175912 | AS4: 0.9343523355 | AT4: best gen-gamma and best gen-inverse gamma
A5: Seasonal Adjustment: | B5: Not Applicable | R5: LOGNORMAL TO FIT VALUES | V5: VARIOUS DISTRIBUTIONS TO FIT NORMALIZED /LOGDELTA/ | AG5: =SUM(AG1:AG4)^0.5 -> 0.001397846027 | AL5: from | AN5: rms error | AO5: 0.005155712859 | AP5: rms error | AQ5: 0.009370060652 | AR5: rms error | AS5: 0.00512617608
A6: Frequency: | B6: Monthly | AL6: data on
A7: Units: | B7: Percent | S7: from | T7: from | Z7: =(($X7-Y7)^2)/50 -> 0 | AJ7: α = | AK7: =($AL$9/$AL$10)^2 -> 1.012013115 | AL7: normalized | AM7: =2+($AL$9/$AL$10)^2 -> 3.012013115 | AN7: this should pick up Weibull | AQ7: and inv. Weibull
A8: Date Range: | B8: 1953-04 to 2012-04 | S8: LN(data) | T8: data | AJ8: β = | AK8: =$AL$9/$AK$7 -> 0.03123157475 | AL8: abslogdelta | AM8: =$AL$9*($AM$7-1) -> 0.06359322222
A9: Last Updated: | B9: 2012-05-22 | R9: mean | S9: =EXP(S12+0.5*S13^2) -> 6.16872843 | T9: =B743 -> 6.150319444 | AB9: α= | AC9: 1 | AD9: α= | AE9: 0.1431837936 | AF9: α= | AG9: -0.5000158345 | AH9: α= | AI9: 28.41323409 | AJ9: 1.145069951 | AK9: mean | AL9: =$H743 -> 0.03160676326 | AN9: αβ= | AO9: =AO11*AO12 -> 0.006450701456 | AP9: β/(α-1)= | AQ9: =AQ11*AQ12 -> 0.05114992049 | AS9: 0 | BK9: mean | BL9: =BG743 -> 1.000500224 | BP9: inv.mean | BQ9: =BP743 -> 1.000617614
A10: Notes: | B10: Averages of business days. For further information regarding treasury | R10: std dev | S10: =S9*(EXP(S13^2)-1)^0.5 -> 2.939164261 | T10: =B745 -> 2.759382838 | X10: µ = | Y10: 0 | Z10: µ = | AA10: 0 | AB10: µ = | AC10: 0 | AD10: µ = | AE10: 0 | AF10: µ = | AG10: 0 | AH10: µ = | AI10: 0 | AJ10: 0 | AK10: std dev | AL10: =$H745 -> 0.03141860897 | AN10: τ= | AO10: 3.419208544 | AP10: τ= | AQ10: 2.04521583 | AS10: 0 | AT10: These are based on the gen-gamma and | BA10: picks up the total low extreme probability … see counts | BK10: std dev | BL10: =BG745 -> 0.04325140016 | BP10: inv.std dev | BQ10: =BP745 -> 0.04333484597
B11: constant maturity data, please refer to | X11: σ = | Y11: =F745 -> 0.04440558432 | Z11: σ = | AA11: 0.03542918628 | AB11: c= | AC11: 46.11526146 | AD11: c= | AE11: 195.0349608 | AF11: c= | AG11: 31.82913185 | AH11: c= | AI11: 1.957340732 | AJ11: 43.79597397 | AK11: α = | AL11: 1.210888049 | AM11: 1.153128352 | AN11: α = | AO11: 0.3176477807 | AP11: α = | AQ11: 1.275263953 | AS11: 0 | AT11: gen-inverse gamma within the best mixture
B12: http://www.federalreserve.gov/releases/h15/current/h15.pdf | R12: µ = | S12: =I752 -> 1.717200136 | T12: =LN(T9)-0.5*T13^2 -> 1.724804804 | AE12: NONSENSE | AF12: NONSENSE | AG12: NONSENSE | AH12: NONSENSE | AI12: NONSENSE | AJ12: NONSENSE | AK12: β = | AL12: 0.0268132567 | AM12: 0.02004667445 | AN12: β = | AO12: 0.02030771769 | AP12: β = | AQ12: 0.04010928118 | AS12: 0.4548492742 | BE12: (for freqabs) | BK12: α= | BL12: =(2*(BL10/BL9)^2-1)/((BL10/BL9)^2-1) -> 0.9981276875 | BP12: α=
B13: http://federalreserve.gov/releases/h15/data.htm | Q13: frequency | R13: σ = | S13: =I745 -> 0.4523109359 | T13: =(LN((T10/T9)^2+1))^0.5 -> 0.4282504379 | X13: frequency | Y13: mean | AA13: L2 | AC13: L2 | AE13: exp-symmetric | AG13: exp-symmetric | AI13: exp-symmetric | AK13: 0.006726159015 | AL13: L2 | AM13: L2 | AN13: 0.02504639483 | AO13: L2 | AQ13: generalized | AS13: gen. gamma-inv.gamma | AY13: mean | AZ13: L2 | BA13: L2 | BB13: L2 | BC13: L2 | BD13: L2 | BE13: L2 | BK13: θ= | BL13: 0.8689013858 | BM13: =$BL$9*($BL$12-1) -> -0.001873249076 | BP13: θ=
E14: NORMALIZED | H14: NORMALIZED | L14: SIXTH | M14: SIXTH MOMENT | O14: labels | Q14: DATA | S14: LOGNORMAL | V14: labels | X14: data | Y14: gaussian | Z14: rms error | AA14: gaussian | AB14: rms error | AC14: logistic | AD14: rms error | AE14: inv. Burr-Burr | AF14: rms error | AG14: inv. Burr | AH14: rms error | AI14: Burr | AJ14: rms error | AK14: rms error | AL14: gamma | AM14: inv. gamma | AN14: rms error | AO14: gen. gamma | AP14: rms error | AQ14: inv. gamma | AR14: rms error | AS14: L2 mixture | AT14: rms error | AX14: FREQUENCY | AY14: GAUSSIAN | AZ14: GAUSSIAN | BA14: digamma | BB14: dimixture | BC14: digengamma | BD14: logistic | BE14: gen-gamma | BG14: ELOGDELTA | BK14: frequency | BL14: exp-pareto | BN14: rms error | BP14: 1/ELOGDELTA | BQ14: log-inv-pareto
A15: DATE | B15: VALUE | C15: DELTA | D15: /DELTA/ | E15: /DELTA/ | F15: LOGDELTA | G15: /LOGDELTA/ | H15: /LOGDELTA/ | I15: LOG(VALUE/100) | J15: SIXTH MOMENT | K15: FOURTH MOMENT | L15: LOG MOMENT | M15: LOGDELTA | N15: bins | P15: count | U15: bins | W15: count | Z15: =SUM(Z16,Z18:Z67)^0.5 -> 0.008752091734 | AB15: =SUM(AB16,AB18:AB67)^0.5 -> 0.005735811363 | AD15: =SUM(AD16,AD18:AD67)^0.5 -> 0.00523831903 | AF15: =SUM(AF16,AF18:AF53)^0.5 -> 0.007543181708 | AH15: =SUM(AH16,AH18:AH53)^0.5 -> 0.007184101746 | AJ15: =SUM(AJ16,AJ18:AJ53)^0.5 -> 0.007540743253 | AK15: =SUM(AK16,AK18:AK67)^0.5 -> 0.005397186713 | AN15: =SUM(AN16,AN18:AN67)^0.5 -> 0.01404607515 | AP15: =SUM(AP16,AP18:AP67)^0.5 -> 0.03839580671 | AR15: =SUM(AR16,AR18:AR67)^0.5 -> 0.03212990346 | AT15: =SUM(AT16,AT18:AT67)^0.5 -> 0.004459346075 | AU15: bins | AV15: labels | AW15: counts | AX15: DATA | BH15: bins | BI15: labels | BJ15: counts | BK15: data | BN15: =(SUM(BN17:BN118)^0.5) -> 
A16: 1953-04-19 | B16: 2.83 | I16: =LN(B16/100) -> -3.564893474 | J16: =($B16-$B$743)^6 -> 1339.921058 | K16: =($B16-$B$743)^4 -> 121.540068 | L16: =($I16-$I$743)^6 -> 0.09621377556 | N16: 0 | P16: =FREQUENCY(B16:B735,N16:N66) -> 0 | S16: =LOGNORMDIST(N17,S$12,S$13)-LOGNORMDIST(1E-97,S$12,S$13) -> 3.409011581e-12 | U16: 0 | W16: =FREQUENCY(H17:H735,U16:U66) -> 0 | X16: =W17/719 -> 0.05841446453 | Y16: =2*( NORMDIST($U17,Y$10,Y$11,TRUE)-NORMDIST($U16,Y$10,Y$11,TRUE)) -> 0.04489656409 | Z16: =(0.5*($X16-Y16)^2)/50.5 -> 1.809243885e-06 | AA16: =2*( NORMDIST($U17,AA$10,AA$11,TRUE)-NORMDIST($U16,AA$10,AA$11,TRUE)) -> 0.05625467333 | AB16: =(0.5*($X16-AA16)^2)/50.5 -> 4.618512904e-08 | AC16: =2*(1/(1+EXP(-AC$11*$U17))-1/(1+EXP(-AC$11*U16))) -> 0.05758031423 | AD16: =(0.5*($X16-AC16)^2)/50.5 -> 6.889175525e-09 | AE16: =((1/(1+EXP(-AE$11*U17)))^AE$9+1-(1-1/(1+EXP(-AE$11*U17)))^AE$9)-((1/(1+EXP(-AE$11*U16)))^AE$9+1-(1-1/(1+EXP(-AE$11*U16)))^AE$9) -> 0.06296540164 | AF16: =(0.5*($X16-AE16)^2)/36.5 -> 2.837127203e-07 | AG16: =2*(0.5*(2^AG$9-(2-(2/(1+EXP(-AG$11*U17)))^AG$9))/(2^AG$9-1)-0.5*(2^AG$9-(2-(2/(1+EXP(-AG$11*U16)))^AG$9))/(2^AG$9-1)) -> 0.06592442718 | AH16: =(0.5*($X16-AG16)^2)/36.5 -> 7.725964248e-07 | AI16: =2*(0.5*(2-(2/(EXP(AI$11*U17)+1))^AI$9)-0.5*(2-(2/(EXP(AI$11*U16)+1))^AI$9)) -> 0.06723596434 | AJ16: =(0.5*($X16-AI16)^2)/36.5 -> 1.066011765e-06 | AK16: =(0.5*($X16-AL16)^2)/50.5 -> 9.771002931e-07 | AL16: =(GAMMADIST(U17,AL11,AL12,TRUE) ) -> 0.04848032493 | AM16: =(1-GAMMADIST(1/U17,AM11,1/AM12,TRUE)) -> 0.0004943812725 | AN16: =(0.5*($X16-AM16)^2)/50.5 -> 3.321520837e-05 | AO16: =(GAMMADIST($U17^$AO$10,$AO$11,$AO$12^$AO$10,TRUE) ) -> 0.1148331612 | AP16: =(0.5*($X16-AO16)^2)/50.5 -> 3.151553796e-05 | AQ16: =(1-GAMMADIST((1/U17)^AQ$10,AQ$11,(1/AQ$12)^AQ$10,TRUE)) -> 0 | AR16: =(0.5*($X16-AQ16)^2)/50.5 -> 3.378465017e-05 | AS16: =AS$12*AO16+(1-AS$12)*AQ16 -> 0.05223178002 | AT16: =(0.5*($X16-AS16)^2)/50.5 -> 3.784711658e-07 | AU16: =$F$743-0.0025-0.19 -> -0.1930108932 | AV16: =$F$743-0.195 -> -0.1955108932 | AW16: =FREQUENCY(F17:F735,AU16:AU93) -> 2 | AX16: =AW16/719 -> 0.002781641168 | AY16: =NORMDIST(AU16,F$743,F$745,TRUE) -> 7.286669252e-06 | AZ16: =NORMDIST(AU16,F$743,AA$11,TRUE) -> 2.764925317e-08 | BA16: =0.5*(1-GAMMADIST(ABS(AU16-$F$743),AL$11,AL$12,TRUE)) -> 0.0006478222021 | BB16: =0.5*(1-AS$12*GAMMADIST(ABS(AU16-$F$743)^AO$10,AO$11,AO$12^AO$10,TRUE)-(1-AS$12)*( 1-GAMMADIST(ABS(1/(AU16-$F$743))^AQ$10,AQ$11,1/AQ$12^AQ$10,TRUE))) -> 0.003876296687 | BC16: =0.5*(1-GAMMADIST(ABS(AU16-$F$743)^AO$2,AO$3,AO$4^AO$2,TRUE)) -> 3.763288273e-05 | BD16: =1/(1+EXP(-$AC$11*(AU16-$F$743))) -> 0.0001395165456 | BE16: =(GAMMADIST($U17^$AO$2,$AO$3,$AO$4^$AO$2,TRUE) ) -> 0.05868576904 | BH16: =EXP(AU16) -> 0.8244729929 | BJ16: =FREQUENCY(BG17:BG726,BH16:BH74) -> 2 | BK16: =AX16 -> 0.002781641168 | BL16: =IF(ISERR(BM16),0,BM16) -> 
A17: 1953-05-19 | B17: 3.05 | C17: =B17-B16 -> 0.22 | D17: =ABS(C17) -> 0.22 | E17: =ABS(C17-C$743) -> 0.2212100139 | F17: =LN(B17/B16) -> 0.07486487896 | G17: =ABS(F17) -> 0.07486487896 | H17: =ABS(F17-F$743) -> 0.0753757722 | I17: =LN(B17/100) -> -3.490028595 | J17: =(B17-$B$743)^6 -> 888.0525478 | K17: 92.39017216 | L17: 0.04762471073 | M17: =(F17-F$743)^6 -> 1.833963324e-07 | N17: 0.25 | O17: =0 -> 0 | P17: 0 | Q17: =2*P17/720 -> 0 | S17: =LOGNORMDIST(1E-97,S$12,S$13)/((1E-97)/0.005) -> 0 | U17: 0.0025 | V17: =0 -> 0 | W17: 42 | X17: =2*X16 -> 0.1168289291 | Y17: =2*Y16 -> 0.08979312818 | AA17: =2*AA16 -> 0.1125093467 | AC17: =2*AC16 -> 0.1151606285 | AE17: =2*AE16 -> 0.1259308033 | AG17: =2*AG16 -> 0.1318488544 | AI17: =2*AI16 -> 0.1344719287 | AL17: =2*AL16 -> 0.09696064987 | AM17: =2*AM16 -> 0.000988762545 | AO17: =2*$AO16 -> 0.2296663224 | AQ17: =2*AQ16 -> 0 | AS17: =2*AS16 -> 0.10446356 | AU17: =AU16+0.005 -> -0.1880108932 | AV17: =AV16+0.005 -> -0.1905108932 | AW17: 0 | AX17: =AW17/719 -> 0 | AY17: =NORMDIST(AU17,F$743,F$745,TRUE)-NORMDIST(AU16,F$743,F$745,TRUE) -> 4.796815859e-06 | AZ17: =NORMDIST(AU17,F$743,AA$11,TRUE)-NORMDIST(AU16,F$743,AA$11,TRUE) -> 3.27620686e-08 | BA17: =IF(AU17 <$F$743,0.5*(1-GAMMADIST(ABS(AU17-$F$743),AL$11,AL$12,TRUE))-0.5*(1-GAMMADIST(ABS(AU16-$F$743),AL$11,AL$12,TRUE)),0.5*(GAMMADIST(ABS(AU17-$F$743),AL$11,AL$12,TRUE))-0.5*( GAMMADIST(ABS(AU16-$F$743),AL$11,AL$12,TRUE))) -> 0.0001289735441 | BB17: =AS$12*(IF(AU17 <$F$743,0.5*(1-GAMMADIST(ABS(AU17-$F$743)^AO$10,AO$11,AO$12^AO$10,TRUE))-0.5*(1-GAMMADIST(ABS(AU16-$F$743)^AO$10,AO$11,AO$12^AO$10,TRUE)),0.5*(GAMMADIST(ABS(AU17-$F$743)^AO$10,AO$11,AO$12^AO$10,TRUE))-0.5*( GAMMADIST(ABS(AU16-$F$743)^AO$10,AO$11,AO$12^AO$10,TRUE))))+(1-AS$12)*(IF(AU17 <$F$743,0.5*(GAMMADIST(1/ABS(AU17-$F$743)^AQ$10,AQ$11,1/AQ$12^AQ$10,TRUE))-0.5*(GAMMADIST(1/ABS(AU16-$F$743)^AQ$10,AQ$11,1/AQ$12^AQ$10,TRUE)),0.5*((1-GAMMADIST(1/ABS(AU17-$F$743)^AQ$10,AQ$11,1/AQ$12^AQ$10,TRUE)))-0.5*( (1-GAMMADIST(1/ABS(AU16-$F$743)^AQ$10,AQ$11,1/AQ$12^AQ$10,TRUE))))) -> 0.0002702434985 | BC17: =IF(AU17 <$F$743,0.5*(1-GAMMADIST(ABS(AU17-$F$743)^AO$2,AO$3,AO$4^AO$2,TRUE))-0.5*(1-GAMMADIST(ABS(AU16-$F$743)^AO$2,AO$3,AO$4^AO$2,TRUE)),0.5*(GAMMADIST(ABS(AU17-$F$743)^AO$2,AO$3,AO$4^AO$2,TRUE))-0.5*( GAMMADIST(ABS(AU16-$F$743)^AO$2,AO$3,AO$4^AO$2,TRUE))) -> 1.475857153e-05 | BD17: =1/(1+EXP(-$AC$11*(AU17-$F$743)))-1/(1+EXP(-$AC$11*(AU16-$F$743))) -> 3.617384972e-05 | BE17: =2*$BE16 -> 0.1173715381 | BG17: =B17/B16 -> 1.077738516 | BH17: 0.828605681 | BI17: =EXP(AV17) -> 0.826536754 | BJ17: 0 | BK17: 0 | BL17: =IF(ISERR(BM17),0,BM17) -> 0.009418282742 | BM17: =1-(BL$13/(LN(BH17)+BL$13))^BL$12-(1-(BL$13/(LN(BH16)+BL$13))^BL$12) -> 0.009418282742 | BN17: =((BK17-BL17)^2)/102 -> 8.696475471e-07 | BP17: =1/BG17 -> 0.9278688525
A18: 1953-06-19 | B18: 3.11 | C18: =B18-B17 -> 0.06 | D18: =ABS(C18) -> 0.06 | E18: 0.06121001391 | F18: =LN(B18/B17) -> 0.01948113557 | G18: =ABS(F18) -> 0.01948113557 | H18: =ABS(F18-F$743) -> 0.01999202881 | I18: -3.47054746 | J18: 789.7966773 | K18: 85.4430747 | L18: 0.03909505629 | M18: =(F18-F$743)^6 -> 6.384710557e-11 | N18: =N17+0.5 -> 0.75 | O18: =O17+0.5 -> 0.5 | P18: 0 | Q18: =P18/720 -> 0 | S18: =LOGNORMDIST(N18,S$12,S$13)-LOGNORMDIST(N17,S$12,S$13) -> 4.656663657e-06 | U18: =U17+0.005 -> 0.0075 | V18: =V17+0.005 -> 0.005 | W18: 81 | X18: =W18/719 -> 0.1126564673 | Y18: =2*( NORMDIST($U18,Y$10,Y$11,TRUE)-NORMDIST($U17,Y$10,Y$11,TRUE)) -> 0.08922630882 | Z18: =(($X18-Y18)^2)/50.5 -> 1.087073915e-05 | AA18: =2*( NORMDIST($U18,AA$10,AA$11,TRUE)-NORMDIST($U17,AA$10,AA$11,TRUE)) -> 0.1113963387 | AB18: =(($X18-AA18)^2)/50.5 -> 3.144404296e-08 | AC18: =2*(1/(1+EXP(-AC$11*U18))-1/(1+EXP(-AC$11*U17))) -> 0.1136484128 | AD18: =(($X18-AC18)^2)/50.5 -> 1.948427575e-08 | AE18: =((1/(1+EXP(-AE$11*U18)))^AE$9+1-(1-1/(1+EXP(-AE$11*U18)))^AE$9)-((1/(1+EXP(-AE$11*U17)))^AE$9+1-(1-1/(1+EXP(-AE$11*U17)))^AE$9) -> 0.1204464411 | AF18: =(($X18-AE18)^2)/36.5 -> 1.662566873e-06 | AG18: =2*(0.5*(2^AG$9-(2-(2/(1+EXP(-AG$11*U18)))^AG$9))/(2^AG$9-1)-0.5*(2^AG$9-(2-(2/(1+EXP(-AG$11*U17)))^AG$9))/(2^AG$9-1)) -> 0.1204253884 | AH18: =(($X18-AG18)^2)/36.5 -> 1.653592751e-06 | AI18: =2*(0.5*(2-(2/(EXP(AI$11*U18)+1))^AI$9)-0.5*(2-(2/(EXP(AI$11*U17)+1))^AI$9)) -> 0.1216278497 | AJ18: =(($X18-AI18)^2)/36.5 -> 2.205087699e-06 | AK18: =(($X18-AL18)^2)/50.5 -> 4.692630474e-07 | AL18: =(GAMMADIST(U18,AL$11,AL$12,TRUE)-GAMMADIST(U17,AL$11,AL$12,TRUE)) -> 0.1175245043 | AM18: =(1-GAMMADIST(1/U18,AM$11,1/AM$12,TRUE))-(1-GAMMADIST(1/U17,AM$11,1/AM$12,TRUE)) -> 0.08957123794 | AN18: =(($X18-AM18)^2)/50.5 -> 1.055302605e-05 | AO18: =(GAMMADIST($U18^$AO$10,$AO$11,$AO$12^$AO$10,TRUE)-GAMMADIST($U17^$AO$10,$AO$11,$AO$12^$AO$10,TRUE)) -> 0.2609150978 | AP18: =(($X18-AO18)^2)/50.5 -> 0.0004352598321 | AQ18: =(1-GAMMADIST((1/U18)^AQ$10,AQ$11,(1/AQ$12)^AQ$10,TRUE))-(1-GAMMADIST((1/U17)^AQ$10,AQ$11,(1/AQ$12)^AQ$10,TRUE)) -> 1.146860384e-13 | AR18: =(($X18-AQ18)^2)/50.5 -> 0.0002513164283 | AS18: =AS$12*AO18+(1-AS$12)*AQ18 -> 0.1186770429 | AT18: =(($X18-AS18)^2)/50.5 -> 7.177689106e-07 | AU18: =AU17+0.005 -> -0.1830108932 | AV18: =AV17+0.005 -> -0.1855108932 | AW18: 0 | AX18: =AW18/719 -> 0 | AY18: 7.712886686e-06 | AZ18: =NORMDIST(AU18,F$743,AA$11,TRUE)-NORMDIST(AU17,F$743,AA$11,TRUE) -> 6.905620127e-08 | BA18: 0.0001545404099 | BB18: 0.0002968546111 | BC18: =IF(AU18 <$F$743,0.5*(1-GAMMADIST(ABS(AU18-$F$743)^AO$2,AO$3,AO$4^AO$2,TRUE))-0.5*(1-GAMMADIST(ABS(AU17-$F$743)^AO$2,AO$3,AO$4^AO$2,TRUE)),0.5*(GAMMADIST(ABS(AU18-$F$743)^AO$2,AO$3,AO$4^AO$2,TRUE))-0.5*( GAMMADIST(ABS(AU17-$F$743)^AO$2,AO$3,AO$4^AO$2,TRUE))) -> 2.028662757e-05 | BD18: =1/(1+EXP(-$AC$11*(AU18-$F$743)))-1/(1+EXP(-$AC$11*(AU17-$F$743))) -> 4.555093007e-05 | BE18: =(GAMMADIST($U18^$AO$2,$AO$3,$AO$4^$AO$2,TRUE)-GAMMADIST($U17^$AO$2,$AO$3,$AO$4^$AO$2,TRUE)) -> 0.1172264713 | BG18: 1.019672131 | BH18: 0.8327590842 | BI18: 0.8306797867 | BJ18: 0 | BK18: 0 | BL18: 0.009281095679 | BM18: 0.009281095679 | BN18: 8.444974216e-07 | BP18: 0.9807073955
A19: 1953-07-19 | B19: 2.93 | C19: -0.18 | D19: 0.18 | E19: 0.1787899861 | F19: =LN(B19/B18) -> -0.05962030316 | G19: 0.05962030316 | H19: 0.05910940992 | I19: -3.530167763 | J19: 1115.305197 | K19: 107.5463851 | L19: 0.07014755343 | M19: 4.265203368e-08 | N19: 1.25 | O19: 1 | P19: 0 | Q19: =P19/720 -> 0 | S19: 0.0004733479495 | U19: 0.0125 | V19: =V18+0.005 -> 0.01 | W19: 90 | X19: =W19/719 -> 0.1251738526 | Y19: =2*( NORMDIST($U19,Y$10,Y$11,TRUE)-NORMDIST($U18,Y$10,Y$11,TRUE)) -> 0.0875472288 | Z19: =(($X19-Y19)^2)/50.5 -> 2.803490726e-05 | AA19: =2*( NORMDIST(U19,AA$10,AA$11,TRUE)-NORMDIST(U18,AA$10,AA$11,TRUE)) -> 0.1081229432 | AB19: =(($X19-AA19)^2)/50.5 -> 5.757099221e-06 | AC19: =2*(1/(1+EXP(-AC$11*U19))-1/(1+EXP(-AC$11*U18))) -> 0.1092673061 | AD19: =(($X19-AC19)^2)/50.5 -> 5.010261768e-06 | AE19: =((1/(1+EXP(-AE$11*U19)))^AE$9+1-(1-1/(1+EXP(-AE$11*U19)))^AE$9)-((1/(1+EXP(-AE$11*U18)))^AE$9+1-(1-1/(1+EXP(-AE$11*U18)))^AE$9) -> 0.107734851 | AF19: 8.3320213e-06 | AG19: =2*(0.5*(2^AG$9-(2-(2/(1+EXP(-AG$11*U19)))^AG$9))/(2^AG$9-1)-0.5*(2^AG$9-(2-(2/(1+EXP(-AG$11*U18)))^AG$9))/(2^AG$9-1)) -> 0.1063760774 | AH19: 9.680995889e-06 | AI19: =2*(0.5*(2-(2/(EXP(AI$11*U19)+1))^AI$9)-0.5*(2-(2/(EXP(AI$11*U18)+1))^AI$9)) -> 0.1062478828 | AJ19: 9.81348855e-06 | AK19: =(($X19-AL19)^2)/50.5 -> 2.593731667e-06 | AL19: =(GAMMADIST(U19,AL$11,AL$12,TRUE)-GAMMADIST(U18,AL$11,AL$12,TRUE)) -> 0.1137290525 | AM19: =(1-GAMMADIST(1/U19,AM$11,1/AM$12,TRUE))-(1-GAMMADIST(1/U18,AM$11,1/AM$12,TRUE)) -> 0.1579159811 | AN19: =(($X19-AM19)^2)/50.5 -> 2.122865304e-05 | AO19: =(GAMMADIST($U19^AO$10,AO$11,AO$12^AO$10,TRUE)-GAMMADIST($U18^AO$10,AO$11,AO$12^AO$10,TRUE)) -> 0.2551933513 | AP19: =(($X19-AO19)^2)/50.5 -> 0.0003347538623 | AQ19: =(1-GAMMADIST((1/U19)^AQ$10,AQ$11,(1/AQ$12)^AQ$10,TRUE))-(1-GAMMADIST((1/U18)^AQ$10,AQ$11,(1/AQ$12)^AQ$10,TRUE)) -> 4.234112827e-05 | AR19: =(($X19-AQ19)^2)/50.5 -> 0.0003100573298 | AS19: 0.1160975929 | AT19: =(($X19-AS19)^2)/50.5 -> 1.631257219e-06 | AU19: -0.1780108932 | AV19: -0.1805108932 | AW19: 0 | AX19: 0 | AY19: 1.224561053e-05 | AZ19: 1.426915649e-07 | BA19: 0.000185146921 | BB19: 0.0003268823076 | BC19: 2.777807237e-05 | BD19: 5.735754626e-05 | BE19: =(GAMMADIST($U19^$AO$2,$AO$3,$AO$4^$AO$2,TRUE)-GAMMADIST($U18^$AO$2,$AO$3,$AO$4^$AO$2,TRUE)) -> 0.1106000082 | BG19: 0.9421221865 | BH19: 0.8369333065 | BI19: 0.8348435865 | BJ19: 0 | BK19: 0 | BL19: 0.009146885261 | BM19: 0.009146885261 | BN19: 8.202500978e-07 | BP19: 1.061433447
A20: 1953-08-19 | B20: 2.95 | C20: 0.02 | D20: 0.02 | E20: 0.02121001391 | F20: 0.006802747323 | G20: 0.006802747323 | H20: 0.007313640561 | I20: -3.523365016 | J20: 1074.385111 | K20: 104.8994765 | L20: 0.06580556435 | M20: 1.530388435e-13 | N20: 1.75 | O20: 1.5 | P20: 7 | Q20: =P20/720 -> 0.009722222222 | S20: 0.004766656064 | U20: 0.0175 | V20: 0.015 | W20: 65 | X20: 0.09040333797 | Y20: 0.08481868418 | Z20: 6.175912459e-07 | AA20: 0.1028796382 | AB20: 3.08233797e-06 | AC20: =2*(1/(1+EXP(-AC$11*U20))-1/(1+EXP(-AC$11*U19))) -> 0.1024509612 | AD20: 2.874162861e-06 | AE20: 0.0936417232 | AF20: 2.873188749e-07 | AG20: 0.09367661423 | AH20: 2.935434934e-07 | AI20: 0.09274739431 | AJ20: 1.505369894e-07 | AK20: 3.12515233e-06 | AL20: 0.1029659887 | AM20: 0.1313674996 | AN20: 3.322896107e-05 | AO20: 0.2025051414 | AP20: 0.0002488478087 | AQ20: 0.007872567909 | AR20: 0.0001348777823 | AS20: 0.09640105271 | AT20: 7.123283584e-07 | AU20: -0.1730108932 | AV20: -0.1755108932 | AW20: 0 | AX20: 0 | AY20: 1.919744911e-05 | AZ20: 2.890401573e-07 | BA20: 0.0002217788668 | BB20: 0.0003608714518 | BC20: 3.788743986e-05 | BD20: 7.222246216e-05 | BE20: 0.1015757509 | BG20: 1.006825939 | BH20: 0.8411284522 | BI20: 0.8390282574 | BJ20: 0 | BK20: 0 | BL20: 0.009015565978 | BM20: 0.009015565978 | BN20: 7.968669599e-07 | BP20: 0.993220339
A21: 1953-09-19 | B21: 2.87 | C21: -0.08 | D21: 0.08 | E21: 0.07878998609 | F21: -0.02749314058 | G21: 0.02749314058 | H21: 0.02698224734 | I21: -3.550858156 | J21: 1245.939142 | K21: 115.7882668 | L21: 0.08484795156 | M21: 3.858946117e-10 | N21: 2.25 | O21: 2 | P21: 12 | Q21: 0.01666666667 | S21: 0.01730946428 | U21: 0.0225 | V21: 0.02 | W21: 59 | X21: 0.08205841446 | Y21: 0.08114099121 | Z21: 1.66666423e-08 | AA21: 0.09596339924 | AB21: 3.828685182e-06 | AC21: 0.09382376727 | AD21: 2.741059935e-06 | AE21: 0.08090650059 | AF21: 3.635357768e-08 | AG21: 0.08224708043 | AH21: 9.752012738e-10 | AI21: 0.08090537267 | AJ21: 3.642480471e-08 | AK21: 1.530543555e-06 | AL21: 0.09085002692 | AM21: 0.09908894994 | AN21: 5.743349281e-06 | AO21: 0.1161087565 | AP21: 2.295892657e-05 | AQ21: 0.05513169121 | AR21: 1.435739456e-05 | AS21: 0.08286706509 | AT21: 1.294882845e-08 | AU21: -0.1680108932 | AV21: -0.1705108932 | AW21: 0 | AX21: 0 | AY21: 2.971708468e-05 | AZ21: 5.73960963e-07 | BA21: 0.0002656127703 | BB21: 0.00039947136 | BC21: 5.147097029e-05 | BD21: 9.093674883e-05 | BE21: 0.0915967162 | BG21: 0.9728813559 | BH21: 0.8453446261 | BI21: 0.843233904 | BJ21: 0 | BK21: 0 | BL21: 0.00888705537 | BM21: 0.00888705537 | BN21: 7.743113054e-07 | BP21: 1.027874564
A22: 1953-10-19 | B22: 2.66 | C22: -0.21 | D22: 0.21 | E22: 0.2087899861 | F22: -0.07598590698 | G22: 0.07598590698 | H22: 0.07547501374 | I22: -3.626844063 | J22: 1807.969335 | K22: 148.4091599 | L22: 0.1627130384 | M22: 1.848498934e-07 | N22: 2.75 | O22: 2.5 | P22: 25 | Q22: 0.03472222222 | S22: 0.03682734003 | U22: 0.0275 | V22: 0.025 | W22: 64 | X22: 0.08901251739 | Y22: 0.07664586621 | Z22: 3.028397252e-06 | AA22: 0.08774986197 | AB22: 3.157027148e-08 | AC22: 0.08408777445 | AD22: 4.802592667e-07 | AE22: 0.06998825292 | AF22: 9.915688723e-06 | AG22: 0.07200560971 | AH22: 7.924244076e-06 | AI22: 0.07052567839 | AJ22: 9.363375787e-06 | AK22: 1.96428612e-06 | AL22: 0.07905277597 | AM22: 0.07490233851 | AN22: 3.942517779e-06 | AO22: 0.04170395232 | AP22: 4.431881838e-05 | AQ22: 0.1104909799 | AR22: 9.135135707e-06 | AS22: 0.07920325035 | AT22: 1.90538059e-06 | AU22: -0.1630108932 | AV22: -0.1655108932 | AW22: 0 | AX22: 0 | AY22: 4.54222325e-05 | AZ22: 1.117302658e-06 | BA22: 0.0003180521932 | BB22: 0.0004434593008 | BC22: 6.964263288e-05 | BD22: 0.0001144954379 | BE22: 0.08139492764 | BG22: 0.9268292683 | BH22: 0.8495819337 | BI22: 0.8474606316 | BJ22: 0 | BK22: 0 | BL22: 0.008761273894 | BM22: 0.008761273894 | BN22: 7.525482377e-07 | BP22: 1.078947368
A23: 1953-11-19 | B23: 2.68 | C23: 0.02 | D23: 0.02 | E23: 0.02121001391 | F23: 0.007490671729 | G23: 0.007490671729 | H23: 0.008001564968 | I23: -3.619353391 | J23: 1746.693571 | K23: 145.0366682 | L23: 0.1530630583 | M23: 2.624518357e-13 | N23: 3.25 | O23: 3 | P23: 38 | Q23: 0.05277777778 | S23: 0.05751355408 | U23: 0.0325 | V23: 0.03 | W23: 41 | X23: 0.05702364395 | Y23: 0.07148860371 | Z23: 4.143268533e-06 | AA23: 0.07865962685 | AB23: 9.269618931e-06 | AC23: 0.07391620724 | AD23: 5.650667216e-06 | AE23: 0.06067060247 | AF23: 3.643919581e-07 | AG23: 0.06286868733 | AH23: 9.360145785e-07 | AI23: 0.06143438452 | AJ23: 5.330036274e-07 | AK23: 2.468673653e-06 | AL23: 0.06818912735 | AM23: 0.0577898822 | AN23: 1.162615959e-08 | AO23: 0.008020704851 | AP23: 4.755025822e-05 | AQ23: 0.1306521614 | AR23: 0.000107349675 | AS23: 0.07487333242 | AT23: 6.309136208e-06 | AU23: -0.1580108932 | AV23: -0.1605108932 | AW23: 0 | AX23: 0 | AY23: 6.855361334e-05 | AZ23: 2.132178855e-06 | BA23: 0.00038077077 | BB23: 0.0004937700871 | BC23: 9.384349828e-05 | BD23: 0.0001441497217 | BE23: 0.07142627724 | BG23: 1.007518797 | BH23: 0.8538404808 | BI23: 0.8517085457 | BJ23: 0 | BK23: 0 | BL23: 0.008638144806 | BM23: 0.008638144806 | BN23: 7.315445656e-07 | BP23: 0.9925373134
A24: 1953-12-19 | B24: 2.59 | C24: -0.09 | D24: 0.09 | E24: 0.08878998609 | F24: -0.03415891881 | G24: 0.03415891881 | H24: 0.03364802557 | I24: -3.65351231 | J24: 2036.731578 | K24: 160.6777955 | L24: 0.2012866729 | M24: 1.45130106e-09 | N24: 3.75 | O24: 3.5 | P24: 40 | Q24: 0.05555555556 | S24: 0.07408914425 | U24: 0.0375 | V24: 0.035 | W24: 58 | X24: 0.08066759388 | Y24: 0.0658391995 | Z24: 4.35408475e-06 | AA24: 0.06912289831 | AB24: 2.639207836e-06 | AC24: 0.0638766868 | AD24: 5.582862584e-06 | AE24: 0.05267212085 | AF24: 2.147250713e-05 | AG24: 0.05475186139 | AH24: 1.840069015e-05 | AI24: 0.05347738483 | AJ24: 2.025499913e-05 | AK24: 9.760458473e-06 | AL24: 0.05846617156 | AM24: 0.04559748858 | AN24: 2.435469873e-05 | AO24: 0.0006968974808 | AP24: 0.0001266398472 | AQ24: 0.1229421 | AR24: 3.53887894e-05 | AS24: 0.06733895834 | AT24: 3.517871788e-06 | AU24: -0.1530108932 | AV24: -0.1555108932 | AW24: 0 | AX24: 0 | AY24: 0.0001021625745 | AZ24: 3.988786343e-06 | BA24: 0.0004557631636 | BB24: 0.0005515335478 | BC24: 0.0001259268613 | BD24: 0.0001814722853 | BE24: 0.06198377959 | BG24: 0.9664179104 | BH24: 0.8581203741 | BI24: 0.8559777525 | BJ24: 0 | BK24: 0 | BL24: 0.008517594039 | BM24: 0.008517594039 | BN24: 7.11268708e-07 | BP24: 1.034749035
A25: 1954-01-19 | B25: 2.48 | C25: -0.11 | D25: 0.11 | E25: 0.1087899861 | F25: -0.04339931553 | G25: 0.04339931553 | H25: 0.0428884223 | I25: -3.696911626 | J25: 2444.686572 | K25: 181.4744371 | L25: 0.2802224598 | M25: 6.223582097e-09 | N25: 4.25 | O25: 4 | P25: 104 | Q25: 0.1444444444 | S25: 0.08408392266 | U25: 0.0425 | V25: 0.04 | W25: 41 | X25: 0.05702364395 | Y25: 0.05987312385 | Z25: 1.607828856e-07 | AA25: 0.05954655104 | AB25: 1.260407958e-07 | AC25: 0.05439252888 | AD25: 1.370844856e-07 | AE25: 0.04576756284 | AF25: 3.471215398e-06 | AG25: 0.04757072784 | AH25: 2.448154055e-06 | AI25: 0.04651824433 | AJ25: 3.023655373e-06 | AK25: 1.0020001e-06 | AL25: 0.04991020561 | AM25: 0.03672592841 | AN25: 8.158361506e-06 | AO25: 2.27106467e-05 | AP25: 6.433874054e-05 | AQ25: 0.104458157 | AR25: 4.455510951e-05 | AS25: 0.05695577004 | AT25: 9.12251095e-11 | AU25: -0.1480108932 | AV25: -0.1505108932 | AW25: 1 | AX25: 0.001390820584 | AY25: 0.0001503325116 | AZ25: 7.315133825e-06 | BA25: 0.0005454053208 | BB25: 0.0006181222593 | BC25: 0.0001682616653 | BD25: 0.0002284389435 | BE25: 0.05324857469 | BG25: 0.9575289575 | BH25: 0.8624217203 | BI25: 0.8602683588 | BJ25: 1 | BK25: 0.001390820584 | BL25: 0.008399550095 | BM25: 0.008399550095 | BN25: 4.815910722e-07 | BP25: 1.044354839
A26: 1954-02-19 | B26: 2.47 | C26: -0.01 | D26: 0.01 | E26: 0.008789986092 | F26: -0.004040409537 | G26: 0.004040409537 | H26: 0.003529516299 | I26: -3.700952035 | J26: 2484.923924 | K26: 183.4602854 | L26: 0.2887257609 | M26: 1.93326394e-15 | N26: 4.75 | O26: 4.5 | P26: 60 | Q26: 0.08333333333 | S26: 0.08748198222 | U26: 0.0475 | V26: 0.045 | W26: 33 | X26: 0.04589707928 | Y26: 0.0537624364 | Z26: 1.225026588e-06 | AA26: 0.05028701933 | AB26: 3.81615321e-07 | AC26: 0.04573781812 | AD26: 5.02259695e-10 | AE26: 0.03978609541 | AF26: 1.023126679e-06 | AG26: 0.04124204536 | AH26: 5.93680569e-07 | AI26: 0.04043626967 | AJ26: 8.169983981e-07 | AK26: 2.333790043e-07 | AL26: 0.04246405733 | AM26: 0.03011999728 | AN26: 4.929035967e-06 | AO26: 2.25924492e-07 | AP26: 4.171329005e-05 | AQ26: 0.08482695682 | AR26: 3.00106013e-05 | AS26: 0.04624357984 | AT26: 2.377478027e-09 | AU26: -0.1430108932 | AV26: -0.1455108932 | AW26: 1 | AX26: 0.001390820584 | AY26: 0.0002184306646 | AZ26: 1.31512839e-05 | BA26: 0.0006525256254 | BB26: 0.0006952127176 | BC26: 0.000223856818 | BD26: 0.0002875304357 | BE26: 0.04532059277 | BG26: 0.9959677419 | BH26: 0.8667446272 | BI26: 0.8645804719 | BJ26: 1 | BK26: 0.001390820584 | BL26: 0.008283943937 | BM26: 0.008283943937 | BN26: 4.658347996e-07 | BP26: 1.004048583
A27: 1954-03-19 | B27: 2.37 | C27: -0.1 | D27: 0.1 | E27: 0.09878998609 | F27: -0.04132819549 | G27: 0.04132819549 | H27: 0.04081730225 | I27: -3.742280231 | J27: 2918.575959 | K27: 204.2273963 | L27: 0.3887706692 | M27: 4.624510656e-09 | N27: 5.25 | O27: 5 | P27: 39 | Q27: 0.05416666667 | S27: 0.08558303645 | U27: 0.0525 | V27: 0.05 | W27: 21 | X27: 0.02920723227 | Y27: 0.04766785537 | Z27: 6.748408028e-06 | AA27: 0.04163128174 | AB27: 3.056574361e-06 | AC27: 0.03805530948 | AD27: 1.550266741e-06 | AE27: 0.03459415776 | AF27: 7.950401708e-07 | AG27: 0.0356848499 | AH27: 1.14957617e-06 | AI27: 0.03512477828 | AJ27: 9.593794733e-07 | AK27: 9.227903416e-07 | AL27: 0.03603371835 | AM27: 0.0250926613 | AN27: 3.352414706e-07 | AO27: 5.471645359e-10 | AP27: 1.689232445e-05 | AQ27: 0.06765108902 | AR27: 2.926594301e-05 | AS27: 0.03688004053 | AT27: 1.165781913e-06 | AU27: -0.1380108932 | AV27: -0.1405108932 | AW27: 0 | AX27: 0 | AY27: 0.0003133819025 | AZ27: 2.317813152e-05 | BA27: 0.0007804887766 | BB27: 0.0007848642296 | BC27: 0.0002965088614 | BD27: 0.0003618590251 | BE27: 0.03824016065 | BG27: 0.95951417 | BH27: 0.8710892027 | BI27: 0.8689141996 | BJ27: 0 | BK27: 0 | BL27: 0.008170708889 | BM27: 0.008170708889 | BN27: 6.545145465e-07 | BP27: 1.042194093
A28: 1954-04-19 | B28: 2.29 | C28: -0.08 | D28: 0.08 | E28: 0.07878998609 | F28: -0.03433813758 | G28: 0.03433813758 | H28: 0.03382724434 | I28: -3.776618368 | J28: 3309.325351 | K28: 222.0715774 | L28: 0.4924697297 | M28: 1.498303254e-09 | N28: 5.75 | O28: 5.5 | P28: 37 | Q28: 0.05138888889 | S28: 0.08006740594 | U28: 0.0575 | V28: 0.055 | W28: 23 | X28: 0.03198887344 | Y28: 0.0417322625 | Z28: 1.879873871e-06 | AA28: 0.03378689403 | AB28: 6.401738712e-08 | AC28: 0.03138537708 | AD28: 7.212036718e-09 | AE28: 0.03008301745 | AF28: 9.951471307e-08 | AG28: 0.03082146611 | AH28: 3.73380782e-08 | AI28: 0.03048954727 | AJ28: 6.158846443e-08 | AK28: 4.318796582e-08 | AL28: 0.03051205514 | AM28: 0.02119061546 | AN28: 2.308957927e-06 | AO28: 2.52908805e-13 | AP28: 2.026312918e-05 | AQ28: 0.05370884177 | AR28: 9.341723256e-06 | AS28: 0.02927941407 | AT28: 1.453697036e-07 | AU28: -0.1330108932 | AV28: -0.1355108932 | AW28: 0 | AX28: 0 | AY28: 0.0004439497677 | AZ28: 4.004544287e-05 | BA28: 0.0009332944824 | BB28: 0.0008896213203 | BC28: 0.000390975076 | BD28: 0.0004553254083 | BE28: 0.03200445234 | BG28: 0.9662447257 | BH28: 0.8754555555 | BI28: 0.8732696501 | BJ28: 0 | BK28: 0 | BL28: 0.008059780537 | BM28: 0.008059780537 | BN28: 6.368633559e-07 | BP28: 1.034934498
A29: 1954-05-19 | B29: 2.37 | C29: 0.08 | D29: 0.08 | E29: 0.08121001391 | F29: 0.03433813758 | G29: 0.03433813758 | H29: 0.03484903082 | I29: -3.742280231 | J29: 2918.575959 | K29: 204.2273963 | L29: 0.3887706692 | M29: 1.791200604e-09 | N29: 6.25 | O29: 6 | P29: 49 | Q29: 0.06805555556 | S29: 0.07247383188 | U29: 0.0625 | V29: 0.06 | W29: 16 | X29: 0.02225312935 | Y29: 0.03607595972 | Z29: 3.78357702e-06 | AA29: 0.0268807481 | AB29: 4.240565417e-07 | AC29: 0.02569686661 | AD29: 2.348381457e-07 | AE29: 0.02616147769 | AF29: 4.184982675e-07 | AG29: 0.02657834632 | AH29: 5.12534297e-07 | AI29: 0.02644742474 | AJ29: 4.819757226e-07 | AK29: 2.478701736e-07 | AL29: 0.02579112931 | AM29: 0.01810847908 | AN29: 3.401609073e-07 | AO29: 0 | AP29: 9.805975558e-06 | AQ29: 0.04274030085 | AR29: 8.311370225e-06 | AS29: 0.02329990603 | AT29: 2.169785009e-08 | AU29: -0.1280108932 | AV29: -0.1305108932 | AW29: 1 | AX29: 0.001390820584 | AY29: 0.0006210025313 | AZ29: 6.782537481e-05 | BA29: 0.001115693325 | BB29: 0.001012647551 | BC29: 0.000513173386 | BD29: 0.0005728123481 | BE29: 0.02658040458 | BG29: 1.034934498 | BH29: 0.8798437947 | BI29: 0.8776469325 | BJ29: 0 | BK29: 0.001390820584 | BL29: 0.007951096643 | BM29: 0.007951096643 | BN29: 4.219335487e-07 | BP29: 0.9662447257
A30: 1954-06-19 | B30: 2.38 | C30: 0.01 | D30: 0.01 | E30: 0.01121001391 | F30: 0.004210532536 | G30: 0.004210532536 | H30: 0.004721425775 | I30: -3.738069698 | J30: 2872.558534 | K30: 202.0750018 | L30: 0.3774148809 | M30: 1.107742962e-14 | N30: 6.75 | O30: 6.5 | P30: 46 | Q30: 0.06388888889 | S30: 0.06399613636 | U30: 0.0675 | V30: 0.065 | W30: 14 | X30: 0.01947148818 | Y30: 0.03079381529 | Z30: 2.538516659e-06 | AA30: 0.0209652005 | AB30: 4.418171286e-08 | AC30: 0.0209143621 | AD30: 4.122544888e-08 | AE30: 0.02275167936 | AF30: 2.947850469e-07 | AG30: 0.02288670055 | AH30: 3.195527555e-07 | AI30: 0.0229250875 | AJ30: 3.267766648e-07 | AK30: 1.044803006e-07 | AL30: 0.02176849823 | AM30: 0.01563589864 | AN30: 2.913217241e-07 | AO30: 0 | AP30: 7.507700037e-06 | AQ30: 0.03421052816 | AR30: 4.301768306e-06 | AS30: 0.01864989425 | AT30: 1.336666484e-08 | AU30: -0.1230108932 | AV30: -0.1255108932 | AW30: 2 | AX30: 0.002781641168 | AY30: 0.0008577338061 | AZ30: 0.0001126148706 | BA30: 0.001333322428 | BB30: 0.001157901574 | BC30: 0.0006704092493 | BD30: 0.0007204222756 | BE30: 0.02191490645 | BG30: 1.004219409 | BH30: 0.8842540301 | BI30: 0.882046156 | BJ30: 2 | BK30: 0.002781641168 | BL30: 0.007844597053 | BM30: 0.007844597053 | BN30: 2.51309042e-07 | BP30: 0.9957983193
A31: 1954-07-19 | B31: 2.3 | C31: -0.08 | D31: 0.08 | E31: 0.07878998609 | F31: -0.03419136475 | G31: 0.03419136475 | H31: 0.03368047151 | I31: -3.772261063 | J31: 3258.221276 | K31: 219.7794338 | L31: 0.4781578266 | M31: 1.459718045e-09 | N31: 7.25 | O31: 7 | P31: 37 | Q31: 0.05138888889 | S31: 0.05546030105 | U31: 0.0725 | V31: 0.07 | W31: 17 | X31: 0.02364394993 | Y31: 0.02595426596 | Z31: 1.056942609e-07 | AA31: 0.01602954775 | AB31: 1.148101399e-06 | AC31: 0.01693952661 | AD31: 8.900849922e-07 | AE31: 0.0197865178 | AF31: 4.076652784e-07 | AG31: 0.01968290959 | AH31: 4.298586464e-07 | AI31: 0.01985793082 | AJ31: 3.927107039e-07 | AK31: 5.549239895e-07 | AL31: 0.01835021198 | AM31: 0.01362482739 | AN31: 1.987778545e-06 | AO31: 0 | AP31: 1.10700271e-05 | AQ31: 0.02758897054 | AR31: 3.081819321e-07 | AS31: 0.01504014731 | AT31: 1.465849891e-06 | AU31: -0.1180108932 | AV31: -0.1205108932 | AW31: 2 | AX31: 0.002781641168 | AY31: 0.001169799163 | AZ31: 0.0001833005357 | BA31: 0.00159286382 | BB31: 0.001330370338 | BC31: 0.0008716279542 | BD31: 0.0009057667068 | BE31: 0.01794275905 | BG31: 0.9663865546 | BH31: 0.8886863719 | BI31: 0.8864674308 | BJ31: 2 | BK31: 0.002781641168 | BL31: 0.007740223614 | BM31: 0.007740223614 | BN31: 2.410543124e-07 | BP31: 1.034782609
A32: 1954-08-19 | B32: 2.36 | C32: 0.06 | D32: 0.06 | E32: 0.06121001391 | F32: 0.0257524961 | G32: 0.0257524961 | H32: 0.02626338934 | I32: -3.746508567 | J32: 2965.206071 | K32: 206.3969397 | L32: 0.4004595951 | M32: 3.281743483e-10 | N32: 7.75 | O32: 7.5 | P32: 49 | Q32: 0.06805555556 | S32: 0.04738065512 | U32: 0.0775 | V32: 0.075 | W32: 12 | X32: 0.01668984701 | Y32: 0.02159999461 | Z32: 4.774168213e-07 | AA32: 0.01201456611 | AB32: 4.32836663e-07 | AC32: 0.01366626751 | AD32: 1.810303568e-07 | AE32: 0.0172078822 | AF32: 7.352341449e-09 | AG32: 0.01690873356 | AH32: 1.312638982e-09 | AI32: 0.01718907715 | AJ32: 6.828239337e-09 | AK32: 3.034362242e-08 | AL32: 0.01545196457 | AM32: 0.01196896076 | AN32: 4.413221185e-07 | AO32: 0 | AP32: 5.515861252e-06 | AQ32: 0.02243160509 | AR32: 6.528274429e-07 | AS32: 0.0122286058 | AT32: 3.941123398e-07 | AU32: -0.1130108932 | AV32: -0.1155108932 | AW32: 0 | AX32: 0 | AY32: 0.001575323346 | AZ32: 0.0002924800122 | BA32: 0.001902228595 | BB32: 0.001536380107 | BC32: 0.001127688227 | BD32: 0.001138315363 | BE32: 0.01459277176 | BG32: 1.026086957 | BH32: 0.8931409309 | BI32: 0.8909108673 | BJ32: 0 | BK32: 0 | BL32: 0.007637920096 | BM32: 0.007637920096 | BN32: 5.719394451e-07 | BP32: 0.9745762712
A33: 1954-09-19 | B33: 2.38 | C33: 0.02 | D33: 0.02 | E33: 0.02121001391 | F33: 0.008438868646 | G33: 0.008438868646 | H33: 0.008949761884 | I33: -3.738069698 | J33: 2872.558534 | K33: 202.0750018 | L33: 0.3774148809 | M33: 5.138884826e-13 | N33: 8.25 | O33: 8 | P33: 44 | Q33: 0.06111111111 | S33: 0.04003770579 | U33: 0.0825 | V33: 0.08 | W33: 3 | X33: 0.004172461752 | Y33: 0.01774999256 | Z33: 3.650482038e-06 | AA33: 0.008827942141 | AB33: 4.291781713e-07 | AC33: 0.01099056664 | AD33: 9.205258278e-07 | AE33: 0.01496533507 | AF33: 3.191400393e-06 | AG33: 0.01451134261 | AH33: 2.928560476e-06 | AI33: 0.01486849171 | AJ33: 3.134385121e-06 | AK33: 1.542803673e-06 | AL33: 0.01299921571 | AM33: 0.01059055066 | AN33: 8.156804996e-07 | AO33: 0 | AP33: 3.447413282e-07 | AQ33: 0.01839057626 | AR33: 4.003064953e-06 | AS33: 0.010025636 | AT33: 6.784088857e-07 | AU33: -0.1080108932 | AV33: -0.1105108932 | AW33: 2 | AX33: 0.002781641168 | AY33: 0.002094728486 | AZ33: 0.0004575021396 | BA33: 0.002270770103 | BB33: 0.001784013983 | BC33: 0.001451649646 | BD33: 0.001429811874 | BE33: 0.01179230116 | BG33: 1.008474576 | BH33: 0.8976178184 | BI33: 0.8953765766 | BJ33: 2 | BK33: 0.002781641168 | BL33: 0.007537632118 | BM33: 0.007537632118 | BN33: 2.217593129e-07 | BP33: 0.9915966387
A34: 1954-10-19 | B34: 2.43 | C34: 0.05 | D34: 0.05 | E34: 0.05121001391 | F34: 0.02079076967 | G34: 0.02079076967 | H34: 0.02130166291 | I34: -3.717278929 | J34: 2651.437489 | K34: 191.5671016 | L34: 0.3253103573 | M34: 9.34288594e-11 | N34: 8.75 | O34: 8.5 | P34: 25 | Q34: 0.03472222222 | S34: 0.03355080348 | U34: 0.0875 | V34: 0.085 | W34: 6 | X34: 0.008344923505 | Y34: 0.01440264801 | Z34: 7.266539846e-07 | AA34: 0.006358803733 | AB34: 7.811231181e-08 | AC34: 0.008816197609 | AD34: 4.398005574e-09 | AE34: 0.01301505163 | AF34: 5.975368969e-07 | AG34: 0.01244320244 | AH34: 4.60161376e-07 | AI34: 0.01285219426 | AJ34: 5.565887574e-07 | AK34: 1.319969821e-07 | AL34: 0.01092675378 | AM34: 0.00943177307 | AN34: 2.339093023e-08 | AO34: 0 | AP34: 1.378965313e-06 | AQ34: 0.01520104724 | AR34: 9.308204485e-07 | AS34: 0.008286861935 | AT34: 6.675536399e-11 | AU34: -0.1030108932 | AV34: -0.1055108932 | AW34: 4 | AX34: 0.005563282337 | AY34: 0.00275033374 | AZ34: 0.0007015434246 | BA34: 0.002709529337 | BB34: 0.002083675848 | BC34: 0.001859061857 | BD34: 0.001794760061 | BE34: 0.009470503523 | BG34: 1.021008403 | BH34: 0.9021171465 | BI34: 0.8998646704 | BJ34: 3 | BK34: 0.005563282337 | BL34: 0.007439307071 | BM34: 0.007439307071 | BN34: 3.450459612e-08 | BP34: 0.9794238683
A35: 1954-11-19 | B35: 2.48 | C35: 0.05 | D35: 0.05 | E35: 0.05121001391 | F35: 0.02036730282 | G35: 0.02036730282 | H35: 0.02087819606 | I35: -3.696911626 | J35: 2444.686572 | K35: 181.4744371 | L35: 0.2802224598 | M35: 8.282431063e-11 | N35: 9.25 | O35: 9 | P35: 28 | Q35: 0.03888888889 | S35: 0.02793618832 | U35: 0.0925 | V35: 0.09 | W35: 3 | X35: 0.004172461752 | Y35: 0.01153947781 | Z35: 1.074711397e-06 | AA35: 0.004490098926 | AB35: 1.997888594e-09 | AC35: 0.007057530766 | AD35: 1.64824222e-07 | AE35: 0.01131893442 | AF35: 1.399234836e-06 | AG35: 0.01066184956 | AH35: 1.153757647e-06 | AI35: 0.01110155714 | AJ35: 1.315407201e-06 | AK35: 4.961419734e-07 | AL35: 0.009177975678 | AM35: 0.008448960979 | AN35: 3.621474384e-07 | AO35: 0 | AP35: 3.447413282e-07 | AQ35: 0.01266369126 | AR35: 1.427742151e-06 | AS35: 0.006903620484 | AT35: 1.477074855e-07 | AU35: -0.09801089324 | AV35: -0.1005108932 | AW35: 0 | AX35: 0 | AY35: 0.003565682627 | AZ35: 0.001054582333 | BA35: 0.003231515393 | BB35: 0.002448856126 | BC35: 0.002368237876 | BD35: 0.002250978796 | BE35: 0.007560543268 | BG35: 1.020576132 | BH35: 0.9066390275 | BI35: 0.9043752608 | BJ35: 0 | BK35: 0 | BL35: 0.007342894052 | BM35: 0.007342894052 | BN35: 5.286087554e-07 | BP35: 0.9798387097
A36: 1954-12-19 | B36: 2.51 | C36: 0.03 | D36: 0.03 | E36: 0.03121001391 | F36: 0.01202419297 | G36: 0.01202419297 | H36: 0.01253508621 | I36: -3.684887433 | J36: 2327.217492 | K36: 175.6135336 | L36: 0.256141413 | M36: 3.879394538e-12 | N36: 9.75 | O36: 9.5 | P36: 6 | Q36: 0.008333333333 | S36: 0.02314936476 | U36: 0.0975 | V36: 0.095 | W36: 3 | X36: 0.004172461752 | Y36: 0.009129134411 | Z36: 4.865070069e-07 | AA36: 0.003108142595 | AB36: 2.243119344e-08 | AC36: 0.005640424919 | AD36: 4.267160117e-08 | AE36: 0.009843856403 | AF36: 8.81225131e-07 | AG36: 0.009129588837 | AH36: 6.732358612e-07 | AI36: 0.009582680769 | AJ36: 8.019306797e-07 | AK36: 2.469720324e-07 | AL36: 0.007704046048 | AM36: 0.007608676899 | AN36: 2.338133571e-07 | AO36: 0 | AP36: 3.447413282e-07 | AQ36: 0.01062889751 | AR36: 8.254566871e-07 | AS36: 0.005794351193 | AT36: 5.208961101e-08 | AU36: -0.09301089324 | AV36: -0.09551089324 | AW36: 1 | AX36: 0.001390820584 | AY36: 0.004564567206 | AZ36: 0.001554071298 | BA36: 0.003852023024 | BB36: 0.002897175596 | BC36: 0.003000486664 | BD36: 0.00282021246 | BE36: 0.006000973327 | BG36: 1.012096774 | BH36: 0.9111835745 | BI36: 0.9089084606 | BJ36: 1 | BK36: 0.001390820584 | BL36: 0.007248343797 | BM36: 0.007248343797 | BN36: 3.363782176e-07 | BP36: 0.9880478088
A37: 1955-01-19 | B37: 2.61 | C37: 0.1 | D37: 0.1 | E37: 0.1012100139 | F37: 0.03906746819 | G37: 0.03906746819 | H37: 0.03957836143 | I37: -3.645819965 | J37: 1969.040741 | K37: 157.0976908 | L37: 0.1894520186 | M37: 3.843676787e-09 | N37: 10.25 | O37: 10 | P37: 6 | Q37: 0.008333333333 | S37: 0.01911410093 | U37: 0.1025 | V37: 0.1 | W37: 3 | X37: 0.004172461752 | Y37: 0.007131365253 | Z37: 1.733685134e-07 | AA37: 0.002109164665 | AB37: 8.430088853e-08 | AC37: 0.004501957591 | AD37: 2.149851642e-09 | AE37: 0.008561010838 | AF37: 5.276537829e-07 | AG37: 0.007813142033 | AH37: 3.631384357e-07 | AI37: 0.008265838495 | AJ37: 4.590611823e-07 | AK37: 1.038951781e-07 | AL37: 0.006463030785 | AM37: 0.006884989808 | AN37: 1.456991773e-07 | AO37: 0 | AP37: 3.447413282e-07 | AQ37: 0.008984143321 | AR37: 4.584609806e-07 | AS37: 0.004897712252 | AT37: 1.041560966e-08 | AU37: -0.08801089324 | AV37: -0.09051089324 | AW37: 1 | AX37: 0.001390820584 | AY37: 0.005769738904 | AZ37: 0.002245049463 | BA37: 0.004588987839 | BB37: 0.003451810242 | BC37: 0.003780271634 | BD37: 0.003528765383 | BE37: 0.004736475752 | BG37: 1.039840637 | BH37: 0.9157509012 | BI37: 0.9134643833 | BJ37: 1 | BK37: 0.001390820584 | BL37: 0.007155608621 | BM37: 0.007155608621 | BN37: 3.258115795e-07 | BP37: 0.9616858238
A38: 1955-02-19 | B38: 2.65 | C38: 0.04 | D38: 0.04 | E38: 0.04121001391 | F38: 0.01520941866 | G38: 0.01520941866 | H38: 0.0157203119 | I38: -3.630610546 | J38: 1839.272524 | K38: 150.1172922 | L38: 0.1677535679 | M38: 1.50927004e-11 | N38: 10.75 | O38: 10.5 | P38: 13 | Q38: 0.01805555556 | S38: 0.0157411977 | U38: 0.1075 | V38: 0.105 | W38: 5 | X38: 0.006954102921 | Y38: 0.00550066748 | Z38: 4.18311798e-08 | AA38: 0.001403086849 | AB38: 6.1017385e-07 | AC38: 0.003589520122 | AD38: 2.241666814e-07 | AE38: 0.007445343726 | AF38: 6.611439147e-09 | AG38: 0.006683271012 | AH38: 2.009586929e-09 | AI38: 0.007124983531 | AJ38: 8.000050099e-10 | AK38: 4.666061067e-08 | AL38: 0.005419058674 | AM38: 0.006257555532 | AN38: 9.607490378e-09 | AO38: 0 | AP38: 9.576148006e-07 | AQ38: 0.007644402727 | AR38: 9.435917283e-09 | AS38: 0.004167351695 | AT38: 1.537818296e-07 | AU38: -0.08301089324 | AV38: -0.08551089324 | AW38: 4 | AX38: 0.005563282337 | AY38: 0.007201324007 | AZ38: 0.003179401867 | BA38: 0.005463376892 | BB38: 0.004143430968 | BC38: 0.004735251761 | BD38: 0.004408098805 | BE38: 0.003718123715 | BG38: 1.01532567 | BH38: 0.9203411217 | BI38: 0.9180431425 | BJ38: 4 | BK38: 0.005563282337 | BL38: 0.007064642352 | BM38: 0.007064642352 | BN38: 2.209884212e-08 | BP38: 0.9849056604
A39: 1955-03-19 | B39: 2.68 | C39: 0.03 | D39: 0.03 | E39: 0.03121001391 | F39: 0.01125715452 | G39: 0.01125715452 | H39: 0.01176804776 | I39: -3.619353391 | J39: 1746.693571 | K39: 145.0366682 | L39: 0.1530630583 | M39: 2.655990604e-12 | N39: 11.25 | O39: 11 | P39: 5 | Q39: 0.006944444444 | S39: 0.01293994769 | U39: 0.1125 | V39: 0.11 | W39: 3 | X39: 0.004172461752 | Y39: 0.004189456972 | Z39: 5.719554549e-12 | AA39: 0.0009150042791 | AB39: 2.101193899e-07 | AC39: 0.002859623749 | AD39: 3.41295767e-08 | AE39: 0.006475070799 | AF39: 1.452605047e-07 | AG39: 0.005714394132 | AH39: 6.513850588e-08 | AI39: 0.006137311478 | AJ39: 1.057708066e-07 | AK39: 2.697404043e-09 | AL39: 0.004541540205 | AM39: 0.005710242514 | AN39: 4.682712217e-08 | AO39: 0 | AP39: 3.447413282e-07 | AQ39: 0.006545030203 | AR39: 1.114669515e-07 | AS39: 0.003568027965 | AT39: 7.234459462e-09 | AU39: -0.07801089324 | AV39: -0.08051089324 | AW39: 0 | AX39: 0 | AY39: 0.008874996281 | AZ39: 0.004413971071 | BA39: 0.006499607857 | BB39: 0.005012817998 | BC39: 0.005896150581 | BD39: 0.005495283322 | BE39: 0.002903299292 | BG39: 1.011320755 | BH39: 0.9249543507 | BI39: 0.9226448529 | BJ39: 0 | BK39: 0 | BL39: 0.00697540028 | BM39: 0.00697540028 | BN39: 4.770216575e-07 | BP39: 0.9888059701
A40: 1955-04-19 | B40: 2.75 | C40: 0.07 | D40: 0.07 | E40: 0.07121001391 | F40: 0.02578411716 | G40: 0.02578411716 | H40: 0.02629501039 | I40: -3.593569274 | J40: 1545.675466 | K40: 133.6838289 | L40: 0.1234094933 | M40: 3.30552222e-10 | N40: 11.75 | O40: 11.5 | P40: 13 | Q40: 0.01805555556 | S40: 0.01062462627 | U40: 0.1175 | V40: 0.115 | W40: 1 | X40: 0.001390820584 | Y40: 0.003150646693 | Z40: 6.13264937e-08 | AA40: 0.0005849600244 | AB40: 1.285962855e-08 | AC40: 0.002276630727 | AD40: 1.553781403e-08 | AE40: 0.005631242166 | AF40: 4.926349367e-07 | AG40: 0.004884209623 | AH40: 3.343497801e-07 | AI40: 0.005282872458 | AJ40: 4.150155558e-07 | AK40: 1.153592409e-07 | AL40: 0.00380445719 | AM40: 0.005230133922 | AN40: 2.918876615e-07 | AO40: 0 | AP40: 3.830459203e-08 | AQ40: 0.00563653329 | AR40: 3.569520076e-07 | AS40: 0.003072760214 | AT40: 5.601823602e-08 | AU40: -0.07301089324 | AV40: -0.07551089324 | AW40: 3 | AX40: 0.004172461752 | AY40: 0.01079999731 | AZ40: 0.006007283056 | BA40: 0.007725982285 | BB40: 0.006114302898 | BC40: 0.007296385879 | BD40: 0.006833133753 | BE40: 0.002255376454 | BG40: 1.026119403 | BH40: 0.9295907037 | BI40: 0.9272696295 | BJ40: 3 | BK40: 0.004172461752 | BL40: 0.006887839097 | BM40: 0.006887839097 | BN40: 7.228700119e-08 | BP40: 0.9745454545
A41: 1955-05-19 | B41: 2.76 | C41: 0.01 | D41: 0.01 | E41: 0.01121001391 | F41: 0.003629768051 | G41: 0.003629768051 | H41: 0.004140661289 | I41: -3.589939506 | J41: 1518.601144 | K41: 132.1181494 | L41: 0.1196490612 | M41: 5.039857265e-15 | N41: 12.25 | O41: 12 | P41: 5 | Q41: 0.006944444444 | S41: 0.008717749744 | U41: 0.1225 | V41: 0.12 | W41: 2 | X41: 0.002781641168 | Y41: 0.002339598326 | Z41: 3.869344053e-09 | AA41: 0.0003666010713 | AB41: 1.15493439e-07 | AC41: 0.001811533414 | AD41: 1.863582288e-08 | AE41: 0.004897393228 | AF41: 1.226412816e-07 | AG41: 0.0041733356 | AH41: 5.306338055e-08 | AI41: 0.004544227563 | AJ41: 8.511536433e-08 | AK41: 3.23338368e-09 | AL41: 0.003185727639 | AM41: 0.004806793441 | AN41: 8.121270747e-08 | AO41: 0 | AP41: 1.532183681e-07 | AQ41: 0.004880743158 | AR41: 8.725206267e-08 | AS41: 0.002660740675 | AT41: 2.894441427e-10 | AU41: -0.06801089324 | AV41: -0.07051089324 | AW41: 8 | AX41: 0.01112656467 | AY41: 0.01297713298 | AZ41: 0.008014773873 | BA41: 0.009175105991 | BB41: 0.007520073656 | BC41: 0.008971379526 | BD41: 0.008469763303 | BE41: 0.001743255908 | BG41: 1.003636364 | BH41: 0.9342502965 | BI41: 0.9319175879 | BJ41: 8 | BK41: 0.01112656467 | BL41: 0.006801916846 | BM41: 0.006801916846 | BN41: 1.83358616e-07 | BP41: 0.9963768116
A42: 1955-06-19 | B42: 2.78 | C42: 0.02 | D42: 0.02 | E42: 0.02121001391 | F42: 0.007220247973 | G42: 0.007220247973 | H42: 0.007731141212 | I42: -3.582719258 | J42: 1465.636918 | K42: 129.0280886 | L42: 0.1124523056 | M42: 2.135313448e-13 | N42: 12.75 | O42: 12.5 | P42: 9 | Q42: 0.0125 | S42: 0.007151319624 | U42: 0.1275 | V42: 0.125 | W42: 3 | X42: 0.004172461752 | Y42: 0.001715467612 | Z42: 1.195409942e-07 | AA42: 0.0002252297412 | AB42: 3.085275357e-07 | AC42: 0.001440844551 | AD42: 1.477570799e-07 | AE42: 0.004259151194 | AF42: 2.05892035e-10 | AG42: 0.003564973013 | AH42: 1.01107553e-08 | AI42: 0.003906144815 | AJ42: 1.943142771e-09 | AK42: 4.490068372e-08 | AL42: 0.002666644855 | AM42: 0.004431718424 | AN42: 1.330970732e-09 | AO42: 0 | AP42: 3.447413282e-07 | AQ42: 0.004248005253 | AR42: 1.130063471e-10 | AS42: 0.002315803147 | AT42: 6.82610134e-08 | AU42: -0.06301089324 | AV42: -0.06551089324 | AW42: 11 | AX42: 0.01529902643 | AY42: 0.01539690765 | AZ42: 0.01048260025 | BA42: 0.01088424912 | BB42: 0.009324947127 | BC42: 0.01095745322 | BD42: 0.01045718105 | BE42: 0.001340818499 | BG42: 1.007246377 | BH42: 0.9389332456 | BI42: 0.9365888442 | BJ42: 11 | BK42: 0.01529902643 | BL42: 0.006717592874 | BM42: 0.006717592874 | BN42: 7.21970606e-07 | BP42: 0.9928057554
A43: 1955-07-19 | B43: 2.9 | C43: 0.12 | D43: 0.12 | E43: 0.1212100139 | F43: 0.04225980929 | G43: 0.04225980929 | H43: 0.04277070253 | I43: -3.540459449 | J43: 1179.115303 | K43: 111.6102764 | L43: 0.0771686249 | M43: 6.121788241e-09 | N43: 13.25 | O43: 13 | P43: 4 | Q43: 0.005555555556 | S43: 0.005866876903 | U43: 0.1325 | V43: 0.13 | W43: 3 | X43: 0.004172461752 | Y43: 0.001242005063 | Z43: 1.70051018e-07 | AA43: 0.0001356507496 | AB43: 3.226899618e-07 | AC43: 0.001145624696 | AD43: 1.814206449e-07 | AE43: 0.003704132936 | AF43: 6.009092612e-09 | AG43: 0.003044595121 | AH43: 3.485159281e-08 | AI43: 0.003355330336 | AJ43: 1.829325347e-08 | AK43: 7.460935753e-08 | AL43: 0.00223138665 | AM43: 0.004097927972 | AN43: 1.10005631e-10 | AO43: 0 | AP43: 3.447413282e-07 | AQ43: 0.003715110347 | AR43: 4.141986305e-09 | AS43: 0.002025295102 | AT43: 9.129355693e-08 | AU43: -0.05801089324 | AV43: -0.06051089324 | AW43: 9 | AX43: 0.01251738526 | AY43: 0.01803797986 | AZ43: 0.01344037405 | BA43: 0.01289556466 | BB43: 0.01164995302 | BC43: 0.01329020229 | BD43: 0.01284843331 | BE43: 0.001026346772 | BG43: 1.043165468 | BH43: 0.9436396681 | BI43: 0.9412835153 | BJ43: 8 | BK43: 0.01251738526 | BL43: 0.006634827777 | BM43: 0.006634827777 | BN43: 3.392596325e-07 | BP43: 0.9586206897
A44: 1955-08-19 | B44: 2.97 | C44: 0.07 | D44: 0.07 | E44: 0.07121001391 | F44: 0.02385121582 | G44: 0.02385121582 | H44: 0.02436210906 | I44: -3.516608233 | J44: 1034.723868 | K44: 102.30173 | L44: 0.06171696186 | M44: 2.090688345e-10 | N44: 13.75 | O44: 13.5 | P44: 8 | Q44: 0.01111111111 | S44: 0.00481490356 | U44: 0.1375 | V44: 0.135 | W44: 0 | X44: 0 | Y44: 0.0008878995354 | Z44: 1.56111997e-08 | AA44: 8.009088573e-05 | AB44: 1.270207916e-10 | AC44: 0.0009106508167 | AD44: 1.642148336e-08 | AE44: 0.003221478913 | AF44: 2.843267503e-07 | AG44: 0.002599665101 | AH44: 1.851577709e-07 | AI44: 0.002880190854 | AJ44: 2.272739549e-07 | AK44: 6.899315571e-08 | AL44: 0.001866588965 | AM44: 0.003799649354 | AN44: 2.858878259e-07 | AO44: 0 | AP44: 0 | AQ44: 0.003263762766 | AR44: 2.109336117e-07 | AS44: 0.001779242641 | AT44: 6.268721533e-08 | AU44: -0.05301089324 | AV44: -0.05551089324 | AW44: 12 | AX44: 0.01668984701 | AY44: 0.02086613125 | AZ44: 0.01689344701 | BA44: 0.01525602757 | BB44: 0.01463970704 | BC44: 0.01600222617 | BD44: 0.01569268854 | BE44: 0.0007819501521 | BG44: 1.024137931 | BH44: 0.9483696816 | BI44: 0.9460017186 | BJ44: 11 | BK44: 0.01668984701 | BL44: 0.00655358336 | BM44: 0.00655358336 | BN44: 1.007292557e-06 | BP44: 0.9764309764
A45: 1955-09-19 | B45: 2.97 | C45: 0 | D45: 0 | E45: 0.001210013908 | F45: 0 | G45: 0 | H45: 0.0005108932384 | I45: -3.516608233 | J45: 1034.723868 | K45: 102.30173 | L45: 0.06171696186 | M45: 1.778201324e-20 | N45: 14.25 | O45: 14 | P45: 4 | Q45: 0.005555555556 | S45: 0.003953910393 | U45: 0.1425 | V45: 0.14 | W45: 1 | X45: 0.001390820584 | Y45: 0.000626763805 | Z45: 1.156005469e-08 | AA45: 4.635626305e-05 | AB45: 3.579374873e-08 | AC45: 0.0007237180502 | AD45: 8.812391898e-09 | AE45: 0.002801555775 | AF45: 5.452530899e-08 | AG45: 0.002219381934 | AH45: 1.88086003e-08 | AI45: 0.002470624081 | AJ45: 3.194453676e-08 | AK45: 5.733345366e-10 | AL45: 0.001560977553 | AM45: 0.003532076946 | AN45: 9.079165953e-08 | AO45: 0 | AP45: 3.830459203e-08 | AQ45: 0.002879439364 | AR45: 4.388090834e-08 | AS45: 0.001569728459 | AT45: 6.338223316e-10 | AU45: -0.04801089324 | AV45: -0.05051089324 | AW45: 13 | AX45: 0.01808066759 | AY45: 0.02383392769 | AZ45: 0.02081564087 | BA45: 0.01801685918 | BB45: 0.01844002026 | BC45: 0.01912008032 | BD45: 0.01902765474 | BE45: 0.0005930177228 | BG45: 1 | BH45: 0.9531234044 | BI45: 0.9507435719 | BJ45: 13 | BK45: 0.01808066759 | BL45: 0.006473822592 | BM45: 0.006473822592 | BN45: 1.320773048e-06 | BP45: 1
A46: 1955-10-19 | B46: 2.88 | C46: -0.09 | D46: 0.09 | E46: 0.08878998609 | F46: -0.03077165867 | G46: 0.03077165867 | H46: 0.03026076543 | I46: -3.547379892 | J46: 1223.32277 | K46: 114.3827955 | L46: 0.08221149574 | M46: 7.678554203e-10 | N46: 14.75 | O46: 14.5 | P46: 4 | Q46: 0.005555555556 | S46: 0.003249416742 | U46: 0.1475 | V46: 0.145 | W46: 1 | X46: 0.001390820584 | Y46: 0.0004368613291 | Z46: 1.802055961e-08 | AA46: 2.63025678e-05 | AB46: 3.68694934e-08 | AC46: 0.0005750608714 | AD46: 1.317750315e-08 | AE46: 0.002436710819 | AF46: 2.996948996e-08 | AG46: 0.001894453701 | AH46: 6.949214144e-09 | AI46: 0.002117833852 | AJ46: 1.448077513e-08 | AK46: 1.456708621e-10 | AL46: 0.001305051251 | AM46: 0.003291185221 | AN46: 7.151258916e-08 | AO46: 0 | AP46: 3.830459203e-08 | AQ46: 0.002550533952 | AR46: 2.663237813e-08 | AS46: 0.001390425435 | AT46: 3.091935844e-15 | AU46: -0.04301089324 | AV46: -0.04551089324 | AW46: 15 | AX46: 0.02086230876 | AY46: 0.0268812182 | AZ46: 0.02514350967 | BA46: 0.02123202866 | BB46: 0.02312178992 | BC46: 0.02266029638 | BD46: 0.02286890906 | BE46: 0.0004477136361 | BG46: 0.9696969697 | BH46: 0.9579009554 | BI46: 0.9555091939 | BJ46: 15 | BK46: 0.02086230876 | BL46: 0.00639550956 | BM46: 0.00639550956 | BN46: 2.051845874e-06 | BP46: 1.03125
A47: 1955-11-19 | B47: 2.89 | C47: 0.01 | D47: 0.01 | E47: 0.01121001391 | F47: 0.003466207976 | G47: 0.003466207976 | H47: 0.003977101215 | I47: -3.543913684 | J47: 1201.049549 | K47: 112.9901581 | L47: 0.07965244836 | M47: 3.957308082e-15 | N47: 15.25 | O47: 15 | P47: 2 | Q47: 0.002777777778 | S47: 0.002672940489 | U47: 0.1525 | V47: 0.15 | W47: 1 | X47: 0.001390820584 | Y47: 0.0003006650233 | Z47: 2.353344845e-08 | AA47: 1.463026765e-05 | AB47: 3.750296608e-08 | AC47: 0.0004568778869 | AD47: 1.727225667e-08 | AE47: 0.002118726653 | AF47: 1.451636287e-08 | AG47: 0.001616896767 | AH47: 1.400286043e-09 | AI47: 0.001814167243 | AJ47: 4.91020257e-09 | AK47: 1.782296348e-09 | AL47: 0.001090810642 | AM47: 0.003073582411 | AN47: 5.607301718e-08 | AO47: 0 | AP47: 3.830459203e-08 | AQ47: 0.002267711405 | AR47: 1.522648539e-08 | AS47: 0.001236244519 | AT47: 4.731437633e-10 | AU47: -0.03801089324 | AV47: -0.04051089324 | AW47: 14 | AX47: 0.01947148818 | AY47: 0.02993656193 | AZ47: 0.02977327552 | BA47: 0.0249551028 | BB47: 0.02847788502 | BC47: 0.02662428734 | BD47: 0.02719626444 | BE47: 0.0003365233306 | BG47: 1.003472222 | BH47: 0.9627024539 | BI47: 0.9602987037 | BJ47: 14 | BK47: 0.01947148818 | BL47: 0.006318609433 | BM47: 0.006318609433 | BN47: 1.696060973e-06 | BP47: 0.9965397924
A48: 1955-12-19 | B48: 2.96 | C48: 0.07 | D48: 0.07 | E48: 0.07121001391 | F48: 0.02393276621 | G48: 0.02393276621 | H48: 0.02444365945 | I48: -3.519980918 | J48: 1054.399096 | K48: 103.5944964 | L48: 0.06373049301 | M48: 2.133031882e-10 | N48: 15.75 | O48: 15.5 | P48: 1 | Q48: 0.001388888889 | S48: 0.002201061294 | U48: 0.1575 | V48: 0.155 | W48: 0 | X48: 0 | Y48: 0.0002043251491 | Z48: 8.267082484e-10 | AA48: 7.977572687e-06 | AB48: 1.260231009e-12 | AC48: 0.0003629445707 | AD48: 2.608490325e-09 | AE48: 0.001838820584 | AF48: 9.263729153e-08 | AG48: 0.001379858957 | AH48: 5.216467782e-08 | AI48: 0.001552971177 | AJ48: 6.607450621e-08 | AK48: 1.645307416e-08 | AL48: 0.0009115263271 | AM48: 0.00287639509 | AN48: 1.63834628e-07 | AO48: 0 | AP48: 0 | AQ48: 0.002023416724 | AR48: 8.107356907e-08 | AS48: 0.001103067096 | AT48: 2.409419836e-08 | AU48: -0.03301089324 | AV48: -0.03551089324 | AW48: 32 | AX48: 0.04450625869 | AY48: 0.03291959975 | AZ48: 0.03456144916 | BA48: 0.02923308578 | BB48: 0.03366947917 | BC48: 0.0309918898 | BD48: 0.0319383434 | BE48: 0.0002518537227 | BG48: 1.024221453 | BH48: =EXP(AU48) -> 0.96752802 | BI48: 0.965112221 | BJ48: 32 | BK48: =AX48 -> 0.04450625869 | BL48: 0.00624308842 | BM48: 0.00624308842 | BN48: 1.435362941e-05 | BP48: 0.9763513514
A49: 1956-01-19 | B49: 2.9 | C49: -0.06 | D49: 0.06 | E49: 0.05878998609 | F49: -0.02047853134 | G49: 0.02047853134 | H49: 0.01996763811 | I49: -3.540459449 | J49: 1179.115303 | K49: 111.6102764 | L49: 0.0771686249 | M49: 6.33811597e-11 | N49: 16.25 | O49: 16 | P49: 0 | Q49: 0 | S49: 0.001814585758 | U49: 0.1625 | V49: 0.16 | W49: 0 | X49: 0 | Y49: 0.0001371072267 | Z49: 3.722453784e-10 | AA49: 4.26435771e-06 | AB49: 3.600939936e-13 | AC49: 0.0002882994433 | AD49: 1.645872654e-09 | AE49: 0.001597035226 | AF49: 6.987730173e-08 | AG49: 0.00117746461 | AH49: 3.798418926e-08 | AI49: =2*(0.5*(2-(2/(EXP(AI$11*U49)+1))^AI$9)-0.5*(2-(2/(EXP(AI$11*U48)+1))^AI$9)) -> 0.001328466302 | AJ49: 4.835130725e-08 | AK49: 1.148406965e-08 | AL49: 0.00076154154 | AM49: 0.002697176443 | AN49: 1.440546686e-07 | AO49: 0 | AP49: 0 | AQ49: 0.001811499329 | AR49: 6.498078852e-08 | AS49: 0.0009875401742 | AT49: 1.931159595e-08 | AU49: -0.02801089324 | AV49: -0.03051089324 | AW49: 15 | AX49: 0.02086230876 | AY49: =NORMDIST(AU49,F$743,F$745,TRUE)-NORMDIST(AU48,F$743,F$745,TRUE) -> 0.03574430186 | AZ49: 0.03932981342 | BA49: 0.03409456367 | BB49: 0.03743666621 | BC49: 0.03571313862 | BD49: 0.03695810362 | BE49: 0.0001876869966 | BG49: 0.9797297297 | BH49: 0.9723777744 | BI49: =EXP(AV49) -> 0.9699498661 | BJ49: 15 | BK49: 0.02086230876 | BL49: 0.006168913735 | BM49: =1-(BL$13/(LN(BH49)+BL$13))^BL$12-(1-(BL$13/(LN(BH48)+BL$13))^BL$12) -> 0.006168913735 | BN49: =((BK49-BL49)^2)/102 -> 2.116626053e-06 | BP49: =1/BG49 -> 1.020689655
A50: 1956-02-19 | B50: 2.84 | C50: -0.06 | D50: 0.06 | E50: 0.05878998609 | F50: -0.02090668482 | G50: 0.02090668482 | H50: 0.02039579158 | I50: -3.561366134 | J50: 1315.889526 | K50: 120.0824721 | L50: 0.09324456328 | M50: 7.198522928e-11 | N50: 16.75 | O50: 16.5 | P50: 0 | Q50: 0 | S50: 0.001497822949 | U50: 0.1675 | V50: 0.165 | W50: 0 | X50: 0 | Y50: 9.0844465e-05 | Z50: 1.634201351e-10 | AA50: 2.234605316e-06 | AB50: 9.88804142e-14 | AC50: 0.0002289908759 | AD50: 1.038352896e-09 | AE50: 0.001414011712 | AF50: 5.477888004e-08 | AG50: 0.001004679387 | AH50: 2.765426496e-08 | AI50: 0.001135636151 | AJ50: 3.533341006e-08 | AK50: 8.012451293e-09 | AL50: 0.0006361043863 | AM50: 0.002533832862 | AN50: 1.271348311e-07 | AO50: 0 | AP50: 0 | AQ50: 0.001626923637 | AR50: 5.241347566e-08 | AS50: 0.0008869186016 | AT50: 1.557672487e-08 | AU50: -0.02301089324 | AV50: -0.02551089324 | AW50: 31 | AX50: 0.04311543811 | AY50: 0.03832293311 | AZ50: 0.04387493098 | BA50: 0.03952638798 | BB50: 0.03960162517 | BC50: 0.04069746382 | BD50: 0.04204388723 | BE50: 0.0001392852658 | BG50: 0.9793103448 | BH50: 0.9772518383 | BI50: 0.9748117601 | BJ50: 31 | BK50: 0.04311543811 | BL50: 0.00609605356 | BM50: 0.00609605356 | BN50: 1.343563561e-05 | BP50: 1.021126761
A51: 1956-03-19 | B51: 2.96 | C51: 0.12 | D51: 0.12 | E51: 0.1212100139 | F51: 0.04138521616 | G51: 0.04138521616 | H51: 0.0418961094 | I51: -3.519980918 | J51: 1054.399096 | K51: 103.5944964 | L51: 0.06373049301 | M51: 5.408068323e-09 | N51: 17.25 | O51: 17 | P51: 0 | Q51: 0 | S51: 0.001237967243 | U51: 0.1725 | V51: 0.17 | W51: 0 | X51: 0 | Y51: 5.943416936e-05 | Z51: 6.994892054e-11 | AA51: 1.147921926e-06 | AB51: 2.609355937e-14 | AC51: 0.0001818734977 | AD51: 6.550092901e-10 | AE51: 0.001204095016 | AF51: 3.972177554e-08 | AG51: 0.0008571927055 | AH51: 2.013094067e-08 | AI51: 0.0009701298226 | AJ51: 2.578498281e-08 | AK51: 5.588130197e-09 | AL51: 0.0005312255406 | AM51: 0.002384564796 | AN51: 1.125970152e-07 | AO51: 0 | AP51: 0 | AQ51: 0.001465544632 | AR51: 4.253111027e-08 | AS51: 0.0007989427199 | AT51: 1.263979148e-08 | AU51: -0.01801089324 | AV51: -0.02051089324 | AW51: 31 | AX51: 0.04311543811 | AY51: 0.0405704956 | AZ51: 0.04798169962 | BA51: 0.04542501346 | BB51: 0.04143353255 | BC51: 0.0457983581 | BD51: 0.04691188364 | BE51: 0.0001029419406 | BG51: 1.042253521 | BH51: 0.9821503335 | BI51: 0.9796980243 | BJ51: 31 | BK51: 0.04311543811 | BL51: 0.006024477014 | BM51: 0.006024477014 | BN51: 1.348764113e-05 | BP51: 0.9594594595
A52: 1956-04-19 | B52: 3.18 | C52: 0.22 | D52: 0.22 | E52: 0.2212100139 | F52: 0.07169192846 | G52: 0.07169192846 | H52: 0.07220282169 | I52: -3.448288989 | J52: 686.7820716 | K52: 77.84175753 | L52: 0.03094651968 | M52: 1.416853741e-07 | N52: 17.75 | O52: 17.5 | P52: 0 | Q52: 0 | S52: 0.001024579587 | U52: 0.1775 | V52: 0.175 | W52: 1 | X52: 0.001390820584 | Y52: 3.839489822e-05 | Z52: 3.621891556e-08 | AA52: 5.780803145e-07 | AB52: 3.827275682e-08 | AC52: 0.0001444449243 | AD52: 3.076143139e-08 | AE52: 0.001090446794 | AF52: 2.471901752e-09 | AG52: 0.0007313158137 | AH52: 1.191634362e-08 | AI52: 0.0008281765985 | AJ52: 8.673102866e-09 | AK52: 1.776845363e-08 | AL52: 0.0004435577335 | AM52: 0.002247818804 | AN52: 1.454348415e-08 | AO52: 0 | AP52: 3.830459203e-08 | AQ52: 0.001323932757 | AR52: 8.859369023e-11 | AS52: 0.0007217429037 | AT52: 8.864652327e-09 | AU52: -0.01301089324 | AV52: -0.01551089324 | AW52: 32 | AX52: 0.04450625869 | AY52: 0.04240934209 | AZ52: 0.0514398191 | BA52: 0.05148299434 | BB52: 0.04820052635 | BC52: 0.05078787544 | BD52: 0.05122548058 | BE52: 7.577487973e-05 | BG52: 1.074324324 | BH52: 0.9870733825 | BI52: 0.9846087811 | BJ52: 32 | BK52: 0.04450625869 | BL52: 0.005954154114 | BM52: 0.005954154114 | BN52: 1.457122321e-05 | BP52: 0.9308176101
A53: 1956-05-19 | B53: 3.07 | C53: -0.11 | D53: 0.11 | E53: 0.1087899861 | F53: -0.03520363519 | G53: 0.03520363519 | H53: 0.03469274195 | I53: -3.483492624 | J53: 854.2294581 | K53: 90.02912502 | L53: 0.04460559884 | M53: 1.743539356e-09 | N53: 18.25 | O53: 18 | P53: 0 | Q53: 0 | S53: 0.000849155767 | U53: 0.1825 | V53: 0.18 | W53: 1 | X53: 0.001390820584 | Y53: 2.449122105e-05 | Z53: 3.696744413e-08 | AA53: 2.8538313e-07 | AB53: 3.828887416e-08 | AC53: 0.0001147150925 | AD53: 3.224644011e-08 | AE53: 0.0006610212296 | AF53: 1.459197528e-08 | AG53: 0.0006238936412 | AH53: 1.61144366e-08 | AI53: 0.000706511106 | AJ53: 1.28295743e-08 | AK53: 2.062326399e-08 | AL53: 0.0003702938421 | AM53: 0.002122248447 | AN53: 1.059379639e-08 | AO53: 0 | AP53: 3.830459203e-08 | AQ53: 0.001199236439 | AR53: 7.26821478e-10 | AS53: 0.0006537646152 | AT53: 1.075745547e-08 | AU53: -0.008010893238 | AV53: -0.01051089324 | AW53: 42 | AX53: 0.05841446453 | AY53: 0.0437736144 | AZ53: 0.0540614716 | BA53: 0.05686452624 | BB53: 0.05804879645 | BC53: 0.05530000408 | BD53: 0.05463365307 | BE53: 5.555614474e-05 | BG53: 0.965408805 | BH53: 0.9920211085 | BI53: 0.9895441532 | BJ53: 41 | BK53: 0.05841446453 | BL53: 0.005885055749 | BM53: 0.005885055749 | BN53: 2.705234105e-05 | BP53: 1.035830619
A54: 1956-06-19 | B54: 3 | C54: -0.07 | D54: 0.07 | E54: 0.06878998609 | F54: -0.02306527293 | G54: 0.02306527293 | H54: 0.02255437969 | I54: -3.506557897 | J54: 977.5243009 | K54: 98.49595039 | L54: 0.05602841064 | M54: 1.316392271e-10 | N54: 18.75 | O54: 18.5 | P54: 0 | Q54: 0 | S54: 0.0007047697373 | U54: 0.1875 | V54: 0.185 | W54: 0 | X54: 0 | Y54: 1.542577337e-05 | Z54: 4.711969982e-12 | AA54: 1.381124026e-07 | AB54: 3.777234804e-16 | AC54: 9.110186013e-05 | AD54: 1.643475034e-10 | AE54: 0.0005985670291 | AG54: 0.00053222872 | AI54: 0.0006023077762 | AK54: 1.891702044e-09 | AL54: 0.0003090808199 | AM54: 0.002006682212 | AN54: 7.97380891e-08 | AO54: 0 | AP54: 0 | AQ54: 0.001089073524 | AR54: 2.348675528e-08 | AS54: 0.0005937092223 | AT54: 6.980012685e-09 | AU54: -0.003010893238 | AV54: -0.005510893238 | AW54: 40 | AX54: 0.05563282337 | AY54: 0.04461315441 | AZ54: 0.05569816934 | BA54: 0.05876225214 | BB54: 0.05933852143 | BC54: 0.05861323567 | BD54: 0.05682420642 | BE54: 4.057325514e-05 | BG54: 0.9771986971 | BH54: 0.996993635 | BI54: 0.9945042639 | BJ54: 40 | BK54: 0.05563282337 | BL54: 0.005817153649 | BM54: 0.005817153649 | BN54: 2.432942107e-05 | BP54: 1.023333333
A55: 1956-07-19 | B55: 3.11 | C55: 0.11 | D55: 0.11 | E55: 0.1112100139 | F55: 0.03601043752 | G55: 0.03601043752 | H55: 0.03652133076 | I55: -3.47054746 | J55: 789.7966773 | K55: 85.4430747 | L55: 0.03909505629 | M55: 2.372900696e-09 | N55: 19.25 | O55: 19 | P55: 0 | Q55: 0 | S55: 0.0005857805708 | U55: 0.1925 | V55: 0.19 | W55: 0 | X55: 0 | Y55: 9.593631718e-06 | Z55: 1.82253009e-12 | AA55: 6.552413701e-08 | AB55: 8.501806991e-17 | AC55: 7.234769944e-05 | AD55: 1.036473191e-10 | AE55: =((1/(1+EXP(-AE$11*U55)))^AE$9+1-(1-1/(1+EXP(-AE$11*U55)))^AE$9)-((1/(1+EXP(-AE$11*U54)))^AE$9+1-(1-1/(1+EXP(-AE$11*U54)))^AE$9) -> 0.005736723642 | AG55: =2*(0.5*(2^AG$9-(2-(2/(1+EXP(-AG$11*U55)))^AG$9))/(2^AG$9-1)-0.5*(2^AG$9-(2-(2/(1+EXP(-AG$11*U54)))^AG$9))/(2^AG$9-1)) -> 0.0004540156426 | AI55: 0.0005131234921 | AK55: 1.317558423e-09 | AL55: 0.0002579470883 | AM55: 0.001900097076 | AN55: 7.14924534e-08 | AO55: 0 | AP55: 0 | AQ55: 0.0009914450654 | AR55: 1.946462015e-08 | AS55: 0.000540486997 | AT55: 5.784677107e-09 | AU55: 0.001989106762 | AV55: -0.0005108932384 | AW55: 42 | AX55: 0.05841446453 | AY55: 0.04489656409 | AZ55: 0.05625467333 | BA55: =GAMMADIST(AU55-$F$743,AL$11,AL$12,TRUE) -> 0.04848032493 | BB55: =AS$12*GAMMADIST((AU55-$F$743)^AO$10,AO$11,AO$12^AO$10,TRUE)+(1-AS$12)*(1-GAMMADIST(1/(AU55-$F$743)^AQ$10,AQ$11,1/AQ$12^AQ$10,TRUE)) -> 0.05223178002 | BC55: =GAMMADIST(ABS(AU55-$F$743)^AO$2,AO$3,AO$4^AO$2,TRUE) -> 0.05868576904 | BD55: 0.05758031423 | BE55: 2.951714306e-05 | BG55: 1.036666667 | BH55: 1.001991086 | BI55: 0.9994892372 | BJ55: 42 | BK55: 0.05841446453 | BL55: 0.005750420354 | BM55: 0.005750420354 | BN55: 2.719119166e-05 | BP55: 0.9646302251
A56: 1956-08-19 | B56: 3.33 | C56: 0.22 | D56: 0.22 | E56: 0.2212100139 | F56: 0.0683495778 | G56: 0.0683495778 | H56: 0.06886047104 | I56: -3.402197882 | J56: 503.256983 | K56: 63.26932578 | L56: 0.01848985362 | M56: 1.066153986e-07 | N56: 19.75 | O56: 19.5 | P56: 0 | Q56: 0 | S56: 0.0004875926895 | U56: 0.1975 | V56: 0.195 | W56: 0 | X56: 0 | Y56: 5.891402883e-06 | Z56: 6.872995629e-13 | AA56: 3.047433039e-08 | AB56: 1.838979827e-17 | AC56: 5.745328928e-05 | AD56: 6.53639693e-11 | AE56: 0 | AG56: 0.0003872846826 | AI56: 0.0004368474471 | AK56: 9.174026974e-10 | AL56: 0.0002152413441 | AM56: 0.001801596586 | AN56: 6.427228238e-08 | AO56: 0 | AP56: 0 | AQ56: 0.0009046664729 | AR56: 1.620636489e-08 | AS56: 0.0004931795843 | AT56: 4.816358463e-09 | AU56: 0.006989106762 | AV56: 0.004489106762 | AW56: 41 | AX56: 0.05702364395 | AY56: 0.04461315441 | AZ56: 0.05569816934 | BA56: =IF(AU56 <$F$743,0.5*(1-GAMMADIST(ABS(AU56-$F$743),AL$11,AL$12,TRUE))-0.5*(1-GAMMADIST(ABS(AU55-$F$743),AL$11,AL$12,TRUE)),0.5*(GAMMADIST(ABS(AU56-$F$743),AL$11,AL$12,TRUE))-0.5*( GAMMADIST(ABS(AU55-$F$743),AL$11,AL$12,TRUE))) -> 0.05876225214 | BB56: =AS$12*(IF(AU56 <$F$743,0.5*(1-GAMMADIST(ABS(AU56-$F$743)^AO$10,AO$11,AO$12^AO$10,TRUE))-0.5*(1-GAMMADIST(ABS(AU55-$F$743)^AO$10,AO$11,AO$12^AO$10,TRUE)),0.5*(GAMMADIST(ABS(AU56-$F$743)^AO$10,AO$11,AO$12^AO$10,TRUE))-0.5*( GAMMADIST(ABS(AU55-$F$743)^AO$10,AO$11,AO$12^AO$10,TRUE))))+(1-AS$12)*(IF(AU56 <$F$743,0.5*(GAMMADIST(1/ABS(AU56-$F$743)^AQ$10,AQ$11,1/AQ$12^AQ$10,TRUE))-0.5*(GAMMADIST(1/ABS(AU55-$F$743)^AQ$10,AQ$11,1/AQ$12^AQ$10,TRUE)),0.5*((1-GAMMADIST(1/ABS(AU56-$F$743)^AQ$10,AQ$11,1/AQ$12^AQ$10,TRUE)))-0.5*( (1-GAMMADIST(1/ABS(AU55-$F$743)^AQ$10,AQ$11,1/AQ$12^AQ$10,TRUE))))) -> 0.05933852143 | BC56: 0.05861323567 | BD56: 0.05682420642 | BE56: 2.139243594e-05 | BG56: 1.07073955 | BH56: 1.007013588 | BI56: 1.004499198 | BJ56: 41 | BK56: 0.05702364395 | BL56: 0.005684829188 | BM56: 0.005684829188 | BN56: 2.583994021e-05 | BP56: 0.9339339339
A57: 1956-09-19 | B57: 3.38 | C57: 0.05 | D57: 0.05 | E57: 0.05121001391 | F57: 0.0149034055 | G57: 0.0149034055 | H57: 0.01541429874 | I57: -3.387294476 | J57: 452.0423268 | K57: 58.90055691 | L57: 0.01549875712 | M57: 1.341351595e-11 | N57: 20.25 | O57: 20 | P57: 0 | Q57: 0 | S57: 0.000406460283 | U57: 0.2025 | V57: 0.2 | W57: 0 | X57: 0 | Y57: 3.572349849e-06 | Z57: 2.527066028e-13 | AA57: 1.389412585e-08 | AB57: 3.822707587e-18 | AC57: 4.562462054e-05 | AD57: 4.121992078e-11 | AE57: 0 | AG57: =2*(0.5*(2^AG$9-(2-(2/(1+EXP(-AG$11*U57)))^AG$9))/(2^AG$9-1)-0.5*(2^AG$9-(2-(2/(1+EXP(-AG$11*U56)))^AG$9))/(2^AG$9-1)) -> 0.0003303533576 | AI57: 0.0003716573446 | AK57: 6.386009523e-10 | AL57: 0.0001795810349 | AM57: 0.001710392622 | AN57: 5.792956279e-08 | AO57: 0 | AP57: 0 | AQ57: 0.0008273122528 | AR57: 1.35533775e-08 | AS57: 0.0004510098751 | AT57: 4.027918959e-09 | AU57: 0.01198910676 | AV57: 0.009489106762 | AW57: 48 | AX57: 0.06675938804 | AY57: 0.0437736144 | AZ57: 0.0540614716 | BA57: 0.05686452624 | BB57: 0.05804879645 | BC57: 0.05530000408 | BD57: 0.05463365307 | BE57: 1.544618893e-05 | BG57: 1.015015015 | BH57: 1.012061264 | BI57: 1.009534271 | BJ57: 48 | BK57: 0.06675938804 | BL57: 0.005620354232 | BM57: 0.005620354232 | BN57: 3.664687701e-05 | BP57: 0.9852071006
A58: 1956-10-19 | B58: 3.34 | C58: -0.04 | D58: 0.04 | E58: 0.03878998609 | F58: -0.01190490251 | G58: 0.01190490251 | H58: 0.01139400927 | I58: -3.399199379 | J58: 492.6450569 | K58: 62.37675143 | L58: 0.0178523161 | M58: 2.188060924e-12 | N58: 20.75 | O58: 20.5 | P58: 0 | Q58: 0 | S58: 0.0003393281312 | U58: 0.2075 | V58: 0.205 | W58: 0 | X58: 0 | Y58: 2.138891831e-06 | Z58: 9.059125273e-14 | AA58: 6.210012726e-09 | AB58: 7.636486745e-19 | AC58: 3.623089178e-05 | AD58: 2.599361424e-11 | AE58: 0 | AG58: =2*(0.5*(2^AG$9-(2-(2/(1+EXP(-AG$11*U58)))^AG$9))/(2^AG$9-1)-0.5*(2^AG$9-(2-(2/(1+EXP(-AG$11*U57)))^AG$9))/(2^AG$9-1)) -> 0.0002817848613 | AI58: 0.0003159811688 | AK58: 4.444106804e-10 | AL58: 0.0001498090096 | AM58: 0.001625790128 | AN58: 5.234046615e-08 | AO58: 0 | AP58: 0 | AQ58: 0.0007581714204 | AR58: 1.138265154e-08 | AS58: 0.0004133177001 | AT58: 3.382802401e-09 | AU58: 0.01698910676 | AV58: 0.01448910676 | AW58: 33 | AX58: 0.04589707928 | AY58: 0.04240934209 | AZ58: 0.0514398191 | BA58: 0.05148299434 | BB58: 0.04820052635 | BC58: 0.05078787544 | BD58: 0.05122548058 | BE58: 1.111169775e-05 | BG58: 0.9881656805 | BH58: 1.017134242 | BI58: 1.014594583 | BJ58: 33 | BK58: 0.04589707928 | BL58: 0.005556970298 | BM58: 0.005556970298 | BN58: 1.595416071e-05 | BP58: 1.011976048
A59: 1956-11-19 | B59: 3.49 | C59: 0.15 | D59: 0.15 | E59: 0.1512100139 | F59: 0.04393092923 | G59: 0.04393092923 | H59: 0.04444182246 | I59: -3.35526845 | J59: 354.4889748 | K59: 50.08816887 | L59: 0.01041275774 | M59: 7.704618883e-09 | N59: 21.25 | O59: 21 | P59: 0 | Q59: 0 | S59: 0.0002837022572 | U59: 0.2125 | V59: 0.21 | W59: 0 | X59: 0 | Y59: 1.264512809e-06 | Z59: 3.166322068e-14 | AA59: 2.720933256e-09 | AB59: 1.466035205e-19 | AC59: 2.877101092e-05 | AD59: 1.639150633e-11 | AE59: 0 | AG59: 0.0002403524239 | AI59: 0.0002684638474 | AK59: 3.091934731e-10 | AL59: 0.0001249570742 | AM59: 0.001547174301 | AN59: 4.740095677e-08 | AO59: 0 | AP59: 0 | AQ59: 0.0006962113552 | AR59: 9.598222795e-09 | AS59: 0.0003795401256 | AT59: 2.852489247e-09 | AU59: 0.02198910676 | AV59: 0.01948910676 | AW59: 28 | AX59: 0.03894297636 | AY59: 0.0405704956 | AZ59: 0.04798169962 | BA59: 0.04542501346 | BB59: 0.04143353255 | BC59: 0.0457983581 | BD59: 0.04691188364 | BE59: 7.964515921e-06 | BG59: 1.04491018 | BH59: 1.022232649 | BI59: 1.019680259 | BJ59: 27 | BK59: 0.03894297636 | BL59: 0.005494652904 | BM59: 0.005494652904 | BN59: 1.096853276e-05 | BP59: 0.9570200573
A60: 1956-12-19 | B60: 3.59 | C60: 0.1 | D60: 0.1 | E60: 0.1012100139 | F60: 0.02825046629 | G60: 0.02825046629 | H60: 0.02876135952 | I60: -3.327017983 | J60: 281.6857822 | K60: 42.97111453 | L60: 0.007162615291 | M60: 5.660521776e-10 | N60: 21.75 | O60: 21.5 | P60: 0 | Q60: 0 | S60: 0.000237544931 | U60: 0.2175 | V60: 0.215 | W60: 0 | X60: 0 | Y60: 7.381713985e-07 | Z60: 1.079003987e-14 | AA60: 1.168711794e-09 | AB60: 2.704727242e-20 | AC60: 2.284695432e-05 | AD60: 1.03363034e-11 | AE60: 0 | AG60: 0.0002050087787 | AI60: 0.0002279382034 | AK60: 2.150662136e-10 | AL60: 0.0001042153721 | AM60: 0.001473999773 | AN60: 4.302327387e-08 | AO60: 0 | AP60: 0 | AQ60: 0.0006405483607 | AR60: 8.124796087e-09 | AS60: 0.0003491954037 | AT60: 2.414602574e-09 | AU60: 0.02698910676 | AV60: 0.02448910676 | AW60: 33 | AX60: 0.04589707928 | AY60: 0.03832293311 | AZ60: 0.04387493098 | BA60: 0.03952638798 | BB60: 0.03960162517 | BC60: 0.04069746382 | BD60: 0.04204388723 | BE60: 5.688258529e-06 | BG60: 1.028653295 | BH60: 1.027356611 | BI60: 1.024791428 | BJ60: 32 | BK60: 0.04589707928 | BL60: 0.005433378252 | BM60: 0.005433378252 | BN60: 1.605206961e-05 | BP60: 0.9721448468
A61: 1957-01-19 | B61: 3.46 | C61: -0.13 | D61: 0.13 | E61: 0.1287899861 | F61: -0.03688361343 | G61: 0.03688361343 | H61: 0.03637272019 | I61: -3.363901597 | J61: 379.1605139 | K61: 52.38601972 | L61: 0.01162162768 | M61: 2.315552809e-09 | N61: 22.25 | O61: 22 | P61: 0 | Q61: 0 | S61: 0.000199189492 | U61: 0.2225 | V61: 0.22 | W61: 0 | X61: 0 | Y61: 4.254913741e-07 | Z61: 3.585008108e-15 | AA61: 4.921087982e-10 | AB61: 4.795466717e-21 | AC61: 1.814258626e-05 | AD61: 6.517889824e-12 | AE61: 0 | AG61: 0.0001748600211 | AI61: 0.0001933996669 | AK61: 1.49559803e-10 | AL61: 8.690667437e-05 | AM61: 0.001405781456 | AN61: 3.913309908e-08 | AO61: 0 | AP61: 0 | AQ61: 0.0005904235785 | AR61: 6.902970337e-09 | AS61: 0.0003218698423 | AT61: 2.051489018e-09 | AU61: 0.03198910676 | AV61: 0.02948910676 | AW61: 26 | AX61: 0.03616133519 | AY61: 0.03574430186 | AZ61: 0.03932981342 | BA61: 0.03409456367 | BB61: 0.03743666621 | BC61: 0.03571313862 | BD61: 0.03695810362 | BE61: 4.048186944e-06 | BG61: 0.9637883008 | BH61: 1.032506258 | BI61: 1.029928216 | BJ61: 26 | BK61: 0.03616133519 | BL61: 0.005373123204 | BM61: 0.005373123204 | BN61: 9.293274482e-06 | BP61: 1.037572254
A62: 1957-02-19 | B62: 3.34 | C62: -0.12 | D62: 0.12 | E62: 0.1187899861 | F62: -0.03529778208 | G62: 0.03529778208 | H62: 0.03478688884 | I62: -3.399199379 | J62: 492.6450569 | K62: 62.37675143 | L62: 0.0178523161 | M62: 1.772121672e-09 | N62: 22.75 | O62: 22.5 | P62: 0 | Q62: 0 | S62: 0.0001672712669 | U62: 0.2275 | V62: 0.225 | W62: 0 | X62: 0 | Y62: 2.421719665e-07 | Z62: 1.161331908e-15 | AA62: 2.031321777e-10 | AB62: 8.170828047e-22 | AC62: 1.440682388e-05 | AD62: 4.110031172e-12 | AE62: 0 | AG62: 0.0001491432403 | AI62: 0.0001639842781 | AK62: 1.039831246e-10 | AL62: 7.246480382e-05 | AM62: 0.001342086761 | AN62: 3.566726483e-08 | AO62: 0 | AP62: 0 | AQ62: 0.0005451831974 | AR62: 5.885637994e-09 | AS62: 0.0002972070158 | AT62: 1.749148717e-09 | AU62: 0.03698910676 | AV62: 0.03448910676 | AW62: 26 | AX62: 0.03616133519 | AY62: 0.03291959975 | AZ62: 0.03456144916 | BA62: 0.02923308578 | BB62: 0.03366947917 | BC62: 0.0309918898 | BD62: 0.0319383434 | BE62: 2.870930438e-06 | BG62: 0.9653179191 | BH62: 1.037681717 | BI62: 1.035090753 | BJ62: 25 | BK62: 0.03616133519 | BL62: 0.005313865258 | BM62: 0.005313865258 | BN62: 9.329082363e-06 | BP62: 1.035928144
A63: 1957-03-19 | B63: 3.41 | C63: 0.07 | D63: 0.07 | E63: 0.07121001391 | F63: 0.02074148431 | G63: 0.02074148431 | H63: 0.02125237755 | I63: -3.378457895 | J63: 423.4548916 | K63: 56.3903473 | L63: 0.01392417574 | M63: 9.213934803e-11 | N63: 23.25 | O63: 23 | P63: 0 | Q63: 0 | S63: 0.000140671541 | U63: 0.2325 | V63: 0.23 | W63: 0 | X63: 0 | Y63: 1.360995014e-07 | Z63: 3.667935504e-16 | AA63: 8.219802616e-11 | AB63: 1.337923862e-22 | AC63: 1.144025861e-05 | AD63: 2.591673604e-12 | AE63: 0 | AG63: 0.0001272073893 | AI63: 0.0001389495693 | AK63: 7.228035754e-11 | AL63: 6.041653793e-05 | AM63: 0.001282528952 | AN63: 3.257189133e-08 | AO63: 0 | AP63: 0 | AQ63: 0.0005042621243 | AR63: 5.035253268e-09 | AS63: 0.0002748988631 | AT63: 1.496423464e-09 | AU63: 0.04198910676 | AV63: 0.03948910676 | AW63: 27 | AX63: 0.03755215577 | AY63: 0.02993656193 | AZ63: 0.02977327552 | BA63: 0.0249551028 | BB63: 0.02847788502 | BC63: 0.02662428734 | BD63: 0.02719626444 | BE63: 2.02901172e-06 | BG63: 1.020958084 | BH63: 1.042883118 | BI63: 1.040279167 | BJ63: 26 | BK63: 0.03755215577 | BL63: 0.005255582533 | BM63: 0.005255582533 | BN63: 1.022616317e-05 | BP63: 0.9794721408
A64: 1957-04-19 | B64: 3.48 | C64: 0.07 | D64: 0.07 | E64: 0.07121001391 | F64: 0.02032000249 | G64: 0.02032000249 | H64: 0.02083089573 | I64: -3.358137892 | J64: 362.5595165 | K64: 50.84554101 | L64: 0.01080233225 | M64: 8.170481861e-11 | N64: 23.75 | O64: 23.5 | P64: 0 | Q64: 0 | S64: 0.0001184721044 | U64: 0.2375 | V64: 0.235 | W64: 0 | X64: 0 | Y64: 7.552465564e-08 | Z64: 1.129499725e-16 | AA64: 3.26065841e-11 | AB64: 2.105325399e-23 | AC64: 9.084526182e-06 | AD64: 1.634230019e-12 | AE64: 0 | AG64: 0.0001084969304 | AI64: 0.0001176579624 | AK64: 5.023322571e-11 | AL64: 5.036643623e-05 | AM64: 0.001226761467 | AN64: 2.98008653e-08 | AO64: 0 | AP64: 0 | AQ64: 0.0004671704572 | AR64: 4.32174725e-09 | AS64: 0.0002546783138 | AT64: 1.2843771e-09 | AU64: 0.04698910676 | AV64: 0.04448910676 | AW64: 18 | AX64: 0.02503477051 | AY64: 0.0268812182 | AZ64: 0.02514350967 | BA64: 0.02123202866 | BB64: 0.02312178992 | BC64: 0.02266029638 | BD64: 0.02286890906 | BE64: 1.429106085e-06 | BG64: 1.020527859 | BH64: 1.048110592 | BI64: 1.045493588 | BJ64: 18 | BK64: 0.02503477051 | BL64: 0.005198253743 | BM64: 0.005198253743 | BN64: 3.857719585e-06 | BP64: 0.9798850575
A65: 1957-05-19 | B65: 3.6 | C65: 0.12 | D65: 0.12 | E65: 0.1212100139 | F65: 0.03390155168 | G65: 0.03390155168 | H65: 0.03441244491 | I65: -3.324236341 | J65: 275.1487174 | K65: 42.30369754 | L65: 0.006894613802 | M65: 1.660707608e-09 | N65: 24.25 | O65: 24 | P65: 0 | Q65: 0 | S65: 9.991836019e-05 | U65: 0.2425 | V65: 0.24 | W65: 0 | X65: 0 | Y65: 4.138286203e-08 | Z65: 3.391170831e-17 | AA65: 1.267985716e-11 | AB65: 3.183738172e-24 | AC65: 7.213861536e-06 | AD65: 1.030491055e-12 | AE65: 0 | AG65: 9.253785886e-05 | AI65: 9.956236465e-05 | AK65: 3.490429246e-11 | AL65: 4.198412521e-05 | AM65: 0.001174473037 | AN65: 2.731459239e-08 | AO65: 0 | AP65: 0 | AQ65: 0.0004334822369 | AR65: 3.720927717e-09 | AS65: 0.0002363131561 | AT65: 1.105819955e-09 | AU65: 0.05198910676 | AV65: 0.04948910676 | AW65: 8 | AX65: 0.01112656467 | AY65: 0.02383392769 | AZ65: 0.02081564087 | BA65: 0.01801685918 | BB65: 0.01844002026 | BC65: 0.01912008032 | BD65: 0.01902765474 | BE65: 1.00318273e-06 | BG65: 1.034482759 | BH65: 1.053364268 | BI65: 1.050734146 | BJ65: 8 | BK65: 0.01112656467 | BL65: 0.005141858179 | BM65: 0.005141858179 | BN65: 3.511442335e-07 | BP65: 0.9666666667
A66: 1957-06-19 | B66: 3.8 | C66: 0.2 | D66: 0.2 | E66: 0.2012100139 | F66: 0.05406722127 | G66: 0.05406722127 | H66: 0.05457811451 | I66: -3.270169119 | J66: 168.5626543 | K66: 30.51459247 | L66: 0.003117006818 | M66: 2.643085238e-08 | N66: 24.75 | O66: 24.5 | P66: 0 | Q66: 0 | S66: 8.438936339e-05 | U66: 0.2475 | V66: 0.245 | W66: 0 | X66: 0 | Y66: 2.23898835e-08 | Z66: 9.926868976e-18 | AA66: 4.833911049e-12 | AB66: 4.627068521e-25 | AC66: 5.728390221e-06 | AD66: 6.497911787e-13 | AE66: =1-((1/(1+EXP(-AE$11*U65)))^AE$9+1-(1-1/(1+EXP(-AE$11*U65)))^AE$9) -> -1 | AG66: 7.892576198e-05 | AI66: 8.419367984e-05 | AK66: 2.424862024e-11 | AL66: 3.499364688e-05 | AM66: 0.001125383477 | AN66: 2.507896972e-08 | AO66: 0 | AP66: 0 | AQ66: 0.0004028260583 | AR66: 3.213244223e-09 | AS66: 0.0002196009181 | AT66: 9.549418459e-10 | AU66: 0.05698910676 | AV66: 0.05448910676 | AW66: 11 | AX66: 0.01529902643 | AY66: 0.02086613125 | AZ66: 0.01689344701 | BA66: 0.01525602757 | BB66: 0.01463970704 | BC66: 0.01600222617 | BD66: 0.01569268854 | BE66: 7.018565404e-07 | BG66: 1.055555556 | BH66: 1.058644278 | BI66: 1.056000973 | BJ66: 11 | BK66: 0.01529902643 | BL66: 0.005086375693 | BM66: 0.005086375693 | BN66: 1.022531715e-06 | BP66: 0.9473684211
A67: 1957-07-19 | B67: 3.93 | C67: 0.13 | D67: 0.13 | E67: 0.1312100139 | F67: 0.03363835915 | G67: 0.03363835915 | H67: 0.03414925239 | I67: -3.23653076 | J67: 119.8099188 | K67: 24.30310981 | L67: 0.001793372855 | M67: 1.58594164e-09 | N67: 25.25 | O67: 25 | P67: 0 | Q67: 0 | S67: =1-LOGNORMDIST(N66,S$12,S$13) -> 0.000487249261 | U67: 0.2525 | V67: 0.25 | W67: 2 | X67: 0.002781641168 | Y67: =2*( 1-NORMDIST($U66,Y$10,Y$11,TRUE)) -> 2.494949025e-08 | Z67: 1.532156196e-07 | AA67: =2*( 1-NORMDIST(U66,AA$10,AA$11,TRUE)) -> 2.833067114e-12 | AB67: 1.532183678e-07 | AC67: =2*(1-1/(1+EXP(-AC$11*U66))) -> 2.208987773e-05 | AD67: 1.507945213e-07 | AG67: 6.731562039e-05 | AI67: 7.114999089e-05 | AK67: 1.345762128e-07 | AL67: =(1-GAMMADIST(U66,AL$11,AL$12,TRUE)) -> 0.0001747083448 | AM67: =1-(1-GAMMADIST(1/U66,AM$11,1/AM$12,TRUE)) -> 0.04912427116 | AN67: 4.252751198e-05 | AO67: =(1-GAMMADIST($U66^AO$10,AO$11,AO$12^AO$10,TRUE)) -> 0 | AP67: 1.532183681e-07 | AQ67: =1-(1-GAMMADIST((1/U66)^AQ$10,AQ$11,(1/AQ$12)^AQ$10,TRUE)) -> 0.007450751479 | AR67: 4.316948732e-07 | AS67: 0.004061782577 | AT67: 3.245073318e-08 | AU67: 0.06198910676 | AV67: 0.05948910676 | AW67: 7 | AX67: 0.009735744089 | AY67: 0.01803797986 | AZ67: 0.01344037405 | BA67: 0.01289556466 | BB67: 0.01164995302 | BC67: 0.01329020229 | BD67: 0.01284843331 | BE67: =(1-GAMMADIST($U66^$AO$2,$AO$3,$AO$4^$AO$2,TRUE)) -> 1.58039393e-06 | BG67: 1.034210526 | BH67: 1.063950755 | BI67: 1.0612942 | BJ67: 7 | BK67: 0.009735744089 | BL67: 0.005031786677 | BM67: 0.005031786677 | BN67: 2.169334837e-07 | BP67: 0.9669211196
A68: 1957-08-19 | B68: 3.93 | C68: 0 | D68: 0 | E68: 0.001210013908 | F68: 0 | G68: 0 | H68: 0.0005108932384 | I68: -3.23653076 | J68: 119.8099188 | K68: 24.30310981 | L68: 0.001793372855 | M68: 1.778201324e-20 | U68: 0.2575 | AG68: 5.741309876e-05 | AU68: 0.06698910676 | AV68: 0.06448910676 | AW68: 3 | AX68: 0.004172461752 | AY68: 0.01539690765 | AZ68: 0.01048260025 | BA68: 0.01088424912 | BB68: 0.009324947127 | BC68: 0.01095745322 | BD68: 0.01045718105 | BG68: 1 | BH68: 1.06928383 | BI68: 1.066613959 | BJ68: 3 | BK68: 0.004172461752 | BL68: 0.004978072044 | BM68: 0.004978072044 | BN68: 6.362822967e-09 | BP68: 1
A69: 1957-09-19 | B69: 3.92 | C69: -0.01 | D69: 0.01 | E69: 0.008789986092 | F69: -0.002547772079 | G69: 0.002547772079 | H69: 0.00203687884 | I69: -3.239078532 | J69: 123.0842331 | K69: 24.74390746 | L69: 0.001873475121 | M69: 7.141528601e-17 | U69: 0.2625 | AG69: 4.896710998e-05 | AM69: =(1-GAMMADIST(1/U69,AM$11,1/AM$12,TRUE))-(1-GAMMADIST(1/U68,AM$11,1/AM$12,TRUE)) -> 0.0009948994485 | AO69: 0 | AQ69: 0.0003259974564 | AS69: 0.0001777177499 | AU69: 0.07198910676 | AV69: 0.06948910676 | AW69: 9 | AX69: 0.01251738526 | AY69: 0.01297713298 | AZ69: 0.008014773873 | BA69: 0.009175105991 | BB69: 0.007520073656 | BC69: 0.008971379526 | BD69: 0.008469763303 | BG69: 0.9974554707 | BH69: 1.074643638 | BI69: 1.071960384 | BJ69: 9 | BK69: 0.01251738526 | BL69: 0.004925213219 | BM69: 0.004925213219 | BN69: 5.651085907e-07 | BP69: 1.00255102
A70: 1957-10-19 | B70: 3.97 | C70: 0.05 | D70: 0.05 | E70: 0.05121001391 | F70: 0.0126744409 | G70: 0.0126744409 | H70: 0.01318533414 | I70: -3.226404091 | J70: 107.4288106 | K70: 22.59854674 | L70: 0.001502602965 | M70: 5.254686848e-12 | U70: 0.2675 | AG70: 4.176346761e-05 | AM70: 0.0009563077076 | AO70: 0 | AQ70: 0.0003045960948 | AS70: 0.0001660507822 | AU70: 0.07698910676 | AV70: 0.07448910676 | AW70: 9 | AX70: 0.01251738526 | AY70: 0.01079999731 | AZ70: 0.006007283056 | BA70: 0.007725982285 | BB70: 0.006114302898 | BC70: 0.007296385879 | BD70: 0.006833133753 | BG70: 1.012755102 | BH70: 1.080030311 | BI70: 1.077333608 | BJ70: 9 | BK70: 0.01251738526 | BL70: 0.004873192114 | BM70: 0.004873192114 | BN70: 5.72879302e-07 | BP70: 0.9874055416
A71: 1957-11-19 | B71: 3.72 | C71: -0.25 | D71: 0.25 | E71: 0.2487899861 | F71: -0.06504242641 | G71: 0.06504242641 | H71: 0.06453153318 | I71: -3.291446518 | J71: 206.0535825 | K71: 34.88618234 | L71: 0.004314289281 | M71: 7.221574578e-08 | U71: 0.2725 | AG71: 3.561946799e-05 | AM71: 0.0009198685133 | AO71: 0 | AQ71: 0.0002849524189 | AS71: 0.000155342018 | AU71: 0.08198910676 | AV71: 0.07948910676 | AW71: 3 | AX71: 0.004172461752 | AY71: 0.008874996281 | AZ71: 0.004413971071 | BA71: 0.006499607857 | BB71: 0.005012817998 | BC71: 0.005896150581 | BD71: 0.005495283322 | BG71: 0.9370277078 | BH71: 1.085443986 | BI71: 1.082733765 | BJ71: 3 | BK71: 0.004172461752 | BL71: 0.004821991118 | BM71: 0.004821991118 | BN71: 4.136160751e-09 | BP71: 1.067204301
A72: 1957-12-19 | B72: 3.21 | C72: -0.51 | D72: 0.51 | E72: 0.5087899861 | F72: -0.1474527311 | G72: 0.1474527311 | H72: 0.1469418379 | I72: -3.438899249 | J72: 646.2002111 | K72: 74.74429738 | L72: 0.02796241924 | M72: 1.006636806e-05 | U72: 0.2775 | AG72: 3.037926642e-05 | AM72: 0.0008854265358 | AO72: 0 | AQ72: 0.0002668942682 | AS72: 0.000145497604 | AU72: 0.08698910676 | AV72: 0.08448910676 | AW72: 2 | AX72: 0.002781641168 | AY72: 0.007201324007 | AZ72: 0.003179401867 | BA72: 0.005463376892 | BB72: 0.004143430968 | BC72: 0.004735251761 | BD72: 0.004408098805 | BG72: 0.8629032258 | BH72: 1.090884796 | BI72: 1.088160991 | BJ72: 2 | BK72: 0.002781641168 | BL72: 0.004771593079 | BM72: 0.004771593079 | BN72: 3.88226334e-08 | BP72: 1.158878505
A73: 1958-01-19 | B73: 3.09 | C73: -0.12 | D73: 0.12 | E73: 0.1187899861 | F73: -0.03809984623 | G73: 0.03809984623 | H73: 0.03758895299 | I73: -3.476999095 | J73: 821.4867635 | K73: 87.71362237 | L73: 0.04176574798 | M73: 2.820729068e-09 | U73: 0.2825 | AM73: 0.0008528401096 | AO73: 0 | AQ73: 0.0002502689604 | AS73: 0.0001364343054 | AU73: 0.09198910676 | AV73: 0.08948910676 | AW73: 2 | AX73: 0.002781641168 | AY73: 0.005769738904 | AZ73: 0.002245049463 | BA73: 0.004588987839 | BB73: 0.003451810242 | BC73: 0.003780271634 | BD73: 0.003528765383 | BG73: 0.9626168224 | BH73: 1.096352879 | BI73: 1.09361542 | BJ73: 2 | BK73: 0.002781641168 | BL73: 0.004721981292 | BM73: 0.004721981292 | BN73: 3.69109784e-08 | BP73: 1.038834951
A74: 1958-02-19 | B74: 3.05 | C74: -0.04 | D74: 0.04 | E74: 0.03878998609 | F74: -0.01302950029 | G74: 0.01302950029 | H74: 0.01251860705 | I74: -3.490028595 | J74: 888.0525478 | K74: 92.39017216 | L74: 0.04762471073 | M74: 3.848894838e-12 | U74: 0.2875 | AM74: 0.0008219798236 | AO74: 0 | AQ74: 0.0002349408029 | AS74: 0.0001280781492 | AU74: 0.09698910676 | AV74: 0.09448910676 | AW74: 2 | AX74: 0.002781641168 | AY74: 0.004564567206 | AZ74: 0.001554071298 | BA74: 0.003852023024 | BB74: 0.002897175596 | BC74: 0.003000486664 | BD74: 0.00282021246 | BG74: 0.9870550162 | BH74: 1.101848371 | BI74: 1.09909719 | BJ74: 1 | BK74: 0.002781641168 | BL74: 0.004673139485 | BM74: 0.004673139485 | BN74: 3.507613611e-08 | BP74: 1.013114754
A75: 1958-03-19 | B75: 2.98 | C75: -0.07 | D75: 0.07 | E75: 0.06878998609 | F75: -0.0232182901 | G75: 0.0232182901 | H75: 0.02270739686 | I75: -3.513246885 | J75: 1015.355548 | K75: 101.021101 | L75: 0.05976322695 | M75: 1.370894714e-10 | U75: 0.2925 | AM75: 0.000792727276 | AO75: 0 | AQ75: 0.0002207889578 | AS75: 0.0001203632606 | AU75: 0.1019891068 | AV75: 0.09948910676 | AW75: 3 | AX75: 0.004172461752 | AY75: 0.003565682627 | AZ75: 0.001054582333 | BA75: 0.003231515393 | BB75: 0.002448856126 | BC75: 0.002368237876 | BD75: 0.002250978796 | BG75: 0.9770491803 | BH75: 1.107371409 | BI75: 1.104606438 | BJ75: 11 | BK75: 0.004172461752 | BL75: 0.004625051804 | BM75: 0.004625051804 | BN75: 2.008213282e-09 | BP75: 1.023489933
A76: 1958-04-19 | B76: 2.88 | C76: -0.1 | D76: 0.1 | E76: 0.09878998609 | F76: -0.03413300637 | G76: 0.03413300637 | H76: 0.03362211313 | I76: -3.547379892 | J76: 1223.32277 | K76: 114.3827955 | L76: 0.08221149574 | M76: 1.44460805e-09 | U76: 0.2975 | AM76: 0.000764973975 | AO76: 0 | AQ76: 0.0002077056044 | AS76: 0.000113230861 | AU76: 0.1069891068 | AV76: 0.1044891068 | AW76: 1 | AX76: 0.001390820584 | AY76: 0.00275033374 | AZ76: 0.0007015434246 | BA76: 0.002709529337 | BB76: 0.002083675848 | BC76: 0.001859061857 | BD76: 0.001794760061 | BG76: 0.966442953 | BH76: 1.112922131 | BI76: 1.110143301 | BK76: =BJ76/710 ->  | BL76: 0.0045777028 | BM76: 0.0045777028 | BP76: 1.034722222
A77: 1958-05-19 | B77: 2.92 | C77: 0.04 | D77: 0.04 | E77: 0.04121001391 | F77: 0.01379332213 | G77: 0.01379332213 | H77: 0.01430421537 | I77: -3.53358657 | J77: 1136.247209 | K77: 108.8884677 | L77: 0.07241821354 | M77: 8.566121748e-12 | U77: 0.3025 | AM77: 0.0007386203642 | AO77: 0 | AQ77: 0.0001955943543 | AS77: 0.0001066284042 | AU77: 0.1119891068 | AV77: 0.1094891068 | AW77: 1 | AX77: 0.001390820584 | AY77: 0.002094728486 | AZ77: 0.0004575021396 | BA77: 0.002270770103 | BB77: 0.001784013983 | BC77: 0.001451649646 | BD77: 0.001429811874 | BG77: 1.013888889 | BH77: 1.118500676 | BI77: 1.115707917 | BL77: 0.00453107742 | BM77: 0.00453107742 | BP77: 0.9863013699
A78: 1958-06-19 | B78: 2.97 | C78: 0.05 | D78: 0.05 | E78: 0.05121001391 | F78: 0.01697833653 | G78: 0.01697833653 | H78: 0.01748922977 | I78: -3.516608233 | J78: 1034.723868 | K78: 102.30173 | L78: 0.06171696186 | M78: 2.861699985e-11 | U78: 0.3075 | AM78: 0.0007135749584 | AO78: 0 | AQ78: 0.0001843688809 | AS78: 0.0001005088292 | AU78: 0.1169891068 | AV78: 0.1144891068 | AW78: 1 | AX78: 0.001390820584 | AY78: 0.001575323346 | AZ78: 0.0002924800122 | BA78: 0.001902228595 | BB78: 0.001536380107 | BC78: 0.001127688227 | BD78: 0.001138315363 | BG78: 1.017123288 | BH78: 1.124107184 | BI78: 1.121300426 | BL78: 0.00448516099 | BM78: 0.00448516099 | BP78: 0.9831649832
A79: 1958-07-19 | B79: 3.2 | C79: 0.23 | D79: 0.23 | E79: 0.2312100139 | F79: 0.07458885699 | G79: 0.07458885699 | H79: 0.07509975023 | I79: -3.442019376 | J79: 659.4991639 | K79: 75.76631517 | L79: 0.0289261469 | M79: 1.794035182e-07 | U79: 0.3125 | AM79: 0.0006897535743 | AO79: 0 | AQ79: 0.0001739517314 | AS79: 9.482991261e-05 | AU79: 0.1219891068 | AV79: 0.1194891068 | AW79: 0 | AX79: 0 | AY79: 0.001169799163 | AZ79: 0.0001833005357 | BA79: 0.00159286382 | BB79: 0.001330370338 | BC79: 0.0008716279542 | BD79: 0.0009057667068 | BG79: 1.077441077 | BH79: 1.129741795 | BI79: 1.126920968 | BL79: 0.004439939208 | BM79: 0.004439939208 | BP79: 0.928125
A80: 1958-08-19 | B80: 3.54 | C80: 0.34 | D80: 0.34 | E80: 0.3412100139 | F80: 0.1009759173 | G80: 0.1009759173 | H80: 0.1014868106 | I80: -3.341043459 | J80: 316.3457111 | K80: =($B80-$B$743)^4 -> 46.42742893 | L80: =($I80-$I$743)^6 -> 0.008649907134 | M80: 1.092591016e-06 | U80: 0.3175 | AM80: 0.0006670786457 | AO80: 0 | AQ80: 0.0001642732949 | AS80: 8.955370595e-05 | AU80: 0.1269891068 | AV80: 0.1244891068 | AW80: 1 | AX80: 0.001390820584 | AY80: 0.0008577338061 | AZ80: 0.0001126148706 | BA80: 0.001333322428 | BB80: 0.001157901574 | BC80: 0.0006704092493 | BD80: 0.0007204222756 | BG80: 1.10625 | BH80: =EXP(AU80) -> 1.135404649 | BI80: 1.132569683 | BL80: 0.00439539813 | BM80: 0.00439539813 | BP80: 0.9039548023
A81: 1958-09-19 | B81: 3.76 | C81: 0.22 | D81: 0.22 | E81: =ABS(C81-C$743) -> 0.2212100139 | F81: 0.06029223026 | G81: 0.06029223026 | H81: 0.06080312349 | I81: =LN(B81/100) -> -3.280751229 | J81: =(B81-$B$743)^6 -> 186.5244062 | K81: 32.64553403 | L81: 0.003672011353 | M81: 5.053070284e-08 | U81: 0.3225 | AM81: 0.0006454786117 | AO81: 0 | AQ81: 0.0001552709039 | AS81: =AS$12*AO81+(1-AS$12)*AQ81 -> 8.464604598e-05 | AU81: 0.1319891068 | AV81: 0.1294891068 | AW81: 2 | AX81: 0.002781641168 | AY81: =NORMDIST(AU81,F$743,F$745,TRUE)-NORMDIST(AU80,F$743,F$745,TRUE) -> 0.0006210025313 | AZ81: 6.782537481e-05 | BA81: 0.001115693325 | BB81: 0.001012647551 | BC81: 0.000513173386 | BD81: 0.0005728123481 | BG81: =B81/B80 -> 1.062146893 | BH81: 1.141095889 | BI81: =EXP(AV81) -> 1.138246712 | BL81: =IF(ISERR(BM81),0,BM81) -> 0.00435152416 | BM81: =1-(BL$13/(LN(BH81)+BL$13))^BL$12-(1-(BL$13/(LN(BH80)+BL$13))^BL$12) -> 0.00435152416 | BP81: 0.9414893617
A82: 1958-10-19 | B82: 3.8 | C82: =B82-B81 -> 0.04 | D82: =ABS(C82) -> 0.04 | E82: 0.04121001391 | F82: 0.01058210933 | G82: =ABS(F82) -> 0.01058210933 | H82: =ABS(F82-F$743) -> 0.01109300257 | I82: -3.270169119 | J82: 168.5626543 | K82: 30.51459247 | L82: 0.003117006818 | M82: =(F82-F$743)^6 -> 1.863351045e-12 | U82: =U81+0.005 -> 0.3275 | AM82: 0.00062488737 | AO82: 0 | AQ82: 0.0001468880503 | AS82: 8.007612722e-05 | AU82: =AU81+0.005 -> 0.1369891068 | AV82: =AV81+0.005 -> 0.1344891068 | AW82: 0 | AX82: =AW82/719 -> 0 | AY82: 0.0004439497677 | AZ82: =NORMDIST(AU82,F$743,AA$11,TRUE)-NORMDIST(AU81,F$743,AA$11,TRUE) -> 4.004544287e-05 | BA82: 0.0009332944824 | BB82: 0.0008896213203 | BC82: =IF(AU82 <$F$743,0.5*(1-GAMMADIST(ABS(AU82-$F$743)^AO$2,AO$3,AO$4^AO$2,TRUE))-0.5*(1-GAMMADIST(ABS(AU81-$F$743)^AO$2,AO$3,AO$4^AO$2,TRUE)),0.5*(GAMMADIST(ABS(AU82-$F$743)^AO$2,AO$3,AO$4^AO$2,TRUE))-0.5*( GAMMADIST(ABS(AU81-$F$743)^AO$2,AO$3,AO$4^AO$2,TRUE))) -> 0.000390975076 | BD82: =1/(1+EXP(-$AC$11*(AU82-$F$743)))-1/(1+EXP(-$AC$11*(AU81-$F$743))) -> 0.0004553254083 | BG82: 1.010638298 | BH82: 1.146815656 | BI82: 1.143952198 | BL82: 0.00430830404 | BM82: 0.00430830404 | BN82: =((BK82-BL82)^2)/102 ->  | BP82: =1/BG82 -> 0.9894736842
A83: 1958-11-19 | B83: 3.74 | C83: -0.06 | D83: 0.06 | E83: 0.05878998609 | F83: =LN(B83/B82) -> -0.01591545531 | G83: 0.01591545531 | H83: 0.01540456207 | I83: -3.286084575 | J83: 196.0864689 | K83: 33.75191489 | L83: 0.003981512981 | M83: 1.336275907e-11 | U83: 0.3325 | AM83: =(1-GAMMADIST(1/U83,AM$11,1/AM$12,TRUE))-(1-GAMMADIST(1/U82,AM$11,1/AM$12,TRUE)) -> 0.0006052437874 | AO83: =(GAMMADIST($U83^AO$10,AO$11,AO$12^AO$10,TRUE)-GAMMADIST($U82^AO$10,AO$11,AO$12^AO$10,TRUE)) -> 0 | AQ83: =(1-GAMMADIST((1/U83)^AQ$10,AQ$11,(1/AQ$12)^AQ$10,TRUE))-(1-GAMMADIST((1/U82)^AQ$10,AQ$11,(1/AQ$12)^AQ$10,TRUE)) -> 0.0001390736996 | AS83: 7.581612826e-05 | AU83: 0.1419891068 | AV83: 0.1394891068 | AW83: 1 | AX83: 0.001390820584 | AY83: 0.0003133819025 | AZ83: 2.317813152e-05 | BA83: 0.0007804887766 | BB83: 0.0007848642296 | BC83: 0.0002965088614 | BD83: 0.0003618590251 | BG83: 0.9842105263 | BH83: 1.152564093 | BI83: 1.149686282 | BL83: 0.004265724841 | BM83: 0.004265724841 | BP83: 1.016042781
A84: 1958-12-19 | B84: 3.86 | C84: 0.12 | D84: 0.12 | E84: 0.1212100139 | F84: 0.03158157205 | G84: 0.03158157205 | H84: 0.03209246529 | I84: -3.254503003 | J84: 144.3365636 | K84: 27.51593284 | L84: 0.002424812449 | M84: 1.092492542e-09 | U84: 0.3375 | AM84: 0.0005864912597 | AO84: 0 | AQ84: 0.0001317816907 | AS84: 7.184088435e-05 | AU84: 0.1469891068 | AV84: 0.1444891068 | AW84: 0 | AX84: 0 | AY84: 0.0002184306646 | AZ84: 1.31512839e-05 | BA84: 0.0006525256254 | BB84: 0.0006952127176 | BC84: 0.000223856818 | BD84: 0.0002875304357 | BG84: 1.032085561 | BH84: 1.158341345 | BI84: 1.155449108 | BL84: 0.00422377395 | BM84: 0.00422377395 | BP84: 0.9689119171
A85: 1959-01-19 | B85: 4.02 | C85: 0.16 | D85: 0.16 | E85: 0.1612100139 | F85: 0.04061471915 | G85: 0.04061471915 | H85: 0.04112561239 | I85: -3.213888283 | J85: 93.46917047 | K85: 20.59581232 | L85: 0.001198538384 | M85: 4.83809362e-09 | U85: 0.3425 | AM85: 0.0005685773177 | AO85: 0 | AQ85: 0.0001249702088 | AS85: 6.812760002e-05 | AU85: 0.1519891068 | AV85: 0.1494891068 | AW85: 0 | AX85: 0 | AY85: 0.0001503325116 | AZ85: 7.315133825e-06 | BA85: 0.0005454053208 | BB85: 0.0006181222593 | BC85: 0.0001682616653 | BD85: 0.0002284389435 | BG85: 1.041450777 | BH85: 1.164147555 | BI85: 1.161240821 | BL85: 0.004182439064 | BM85: 0.004182439064 | BP85: 0.960199005
A86: 1959-02-19 | B86: 3.96 | C86: -0.06 | D86: 0.06 | E86: 0.05878998609 | F86: -0.01503787736 | G86: 0.01503787736 | H86: 0.01452698413 | I86: -3.228926161 | J86: 110.4192395 | K86: 23.01599923 | L86: 0.00157105313 | M86: 9.398375048e-12 | U86: 0.3475 | AM86: 0.0005514532706 | AO86: 0 | AQ86: 0.000118601321 | AS86: 6.465559625e-05 | AU86: 0.1569891068 | AV86: 0.1544891068 | AW86: 0 | AX86: 0 | AY86: 0.0001021625745 | AZ86: 3.988786343e-06 | BA86: 0.0004557631636 | BB86: 0.0005515335478 | BC86: 0.0001259268613 | BD86: 0.0001814722853 | BG86: 0.9850746269 | BH86: 1.169982869 | BI86: 1.167061565 | BL86: 0.004141708179 | BM86: 0.004141708179 | BP86: 1.015151515
A87: 1959-03-19 | B87: 3.99 | C87: 0.03 | D87: 0.03 | E87: 0.03121001391 | F87: 0.007547205635 | G87: 0.007547205635 | H87: 0.008058098874 | I87: -3.221378955 | J87: 101.6501088 | K87: 21.78070327 | L87: 0.001373609146 | M87: 2.73776112e-13 | U87: 0.3525 | AM87: 0.0005350738868 | AO87: 0 | AQ87: 0.0001126405687 | AS87: 6.140608777e-05 | AU87: 0.1619891068 | AV87: 0.1594891068 | AW87: 0 | AX87: 0 | AY87: 6.855361334e-05 | AZ87: 2.132178855e-06 | BA87: 0.00038077077 | BB87: 0.0004937700871 | BC87: 9.384349828e-05 | BD87: 0.0001441497217 | BG87: 1.007575758 | BH87: 1.175847432 | BI87: 1.172911485 | BL87: 0.004101569582 | BM87: 0.004101569582 | BP87: 0.992481203
A88: 1959-04-19 | B88: 4.12 | C88: 0.13 | D88: 0.13 | E88: 0.1312100139 | F88: 0.03206193246 | G88: 0.03206193246 | H88: 0.0325728257 | I88: -3.189317023 | J88: 70.04646831 | K88: 16.99250849 | L88: 0.0007488606303 | M88: 1.194352745e-09 | U88: 0.3575 | AM88: 0.0005193971035 | AO88: 0 | AQ88: 0.0001070566059 | AS88: 5.836198641e-05 | AU88: 0.1669891068 | AV88: 0.1644891068 | AW88: 0 | AX88: 0 | AY88: 4.54222325e-05 | AZ88: 1.117302658e-06 | BA88: 0.0003180521932 | BB88: 0.0004434593008 | BC88: 6.964263288e-05 | BD88: 0.0001144954379 | BG88: 1.032581454 | BH88: 1.181741392 | BI88: 1.178790729 | BL88: 0.004062011845 | BM88: 0.004062011845 | BP88: 0.9684466019
A89: 1959-05-19 | B89: 4.31 | C89: 0.19 | D89: 0.19 | E89: 0.1912100139 | F89: 0.04508474075 | G89: 0.04508474075 | H89: 0.04559563399 | I89: -3.144232282 | J89: 38.8471613 | K89: 11.47024935 | L89: 0.0002832093765 | M89: 8.985444227e-09 | U89: 0.3625 | AM89: 0.0005043837659 | AO89: 0 | AQ89: 0.0001018208811 | AS89: 5.550772725e-05 | AU89: 0.1719891068 | AV89: 0.1694891068 | AW89: 0 | AX89: 0 | AY89: 2.971708468e-05 | AZ89: 5.73960963e-07 | BA89: 0.0002656127703 | BB89: 0.00039947136 | BC89: 5.147097029e-05 | BD89: 9.093674883e-05 | BG89: 1.046116505 | BH89: 1.187664896 | BI89: 1.184699442 | BL89: 0.00402302381 | BM89: 0.00402302381 | BP89: 0.9559164733
A90: 1959-06-19 | B90: 4.34 | C90: 0.03 | D90: 0.03 | E90: 0.03121001391 | F90: 0.006936443997 | G90: 0.006936443997 | H90: 0.007447337235 | I90: -3.137295838 | J90: 35.19907874 | K90: 10.74041011 | L90: 0.0002402167036 | M90: 1.706106438e-13 | U90: 0.3675 | AM90: 0.0004899973902 | AO90: 0 | AQ90: 9.690735434e-05 | AS90: 5.282911456e-05 | AU90: 0.1769891068 | AV90: 0.1744891068 | AW90: 1 | AX90: 0.001390820584 | AY90: 1.919744911e-05 | AZ90: 2.890401573e-07 | BA90: 0.0002217788668 | BB90: 0.0003608714518 | BC90: 3.788743986e-05 | BD90: 7.222246216e-05 | BG90: 1.006960557 | BH90: 1.193618091 | BI90: 1.190637772 | BL90: 0.003984594589 | BM90: 0.003984594589 | BP90: 0.9930875576
A91: 1959-07-19 | B91: 4.4 | C91: 0.06 | D91: 0.06 | E91: 0.06121001391 | F91: 0.01373019281 | G91: 0.01373019281 | H91: 0.01424108605 | I91: -3.123565645 | J91: 28.75437316 | K91: 9.385756216 | L91: 0.0001710027126 | M91: 8.341778691e-12 | U91: 0.3725 | AM91: 0.0004762039488 | AO91: 0 | AQ91: 9.229224656e-05 | AS91: 5.03131852e-05 | AU91: 0.1819891068 | AV91: 0.1794891068 | AW91: 1 | AX91: 0.001390820584 | AY91: 1.224561053e-05 | AZ91: 1.42691565e-07 | BA91: 0.000185146921 | BB91: 0.0003268823076 | BC91: 2.777807237e-05 | BD91: 5.735754626e-05 | BG91: 1.013824885 | BH91: 1.199601126 | BI91: 1.196605869 | BL91: 0.003946713552 | BM91: 0.003946713552 | BP91: 0.9863636364
A92: 1959-08-19 | B92: 4.43 | C92: 0.03 | D92: 0.03 | E92: 0.03121001391 | F92: 0.006795043133 | G92: 0.006795043133 | H92: 0.007305936371 | I92: -3.116770602 | J92: 25.92116931 | K92: 8.758634277 | L92: 0.0001434638262 | M92: 1.520741204e-13 | U92: 0.3775 | AM92: 0.0004629716756 | AO92: 0 | AQ92: 8.795381694e-05 | AS92: 4.794808714e-05 | AU92: 0.1869891068 | AV92: 0.1844891068 | AW92: 0 | AX92: 0 | AY92: 7.712886686e-06 | AZ92: 6.905620131e-08 | BA92: 0.0001545404099 | BB92: 0.0002968546111 | BC92: 2.028662757e-05 | BD92: 4.555093007e-05 | BG92: 1.006818182 | BH92: 1.205614152 | BI92: 1.202603881 | BL92: 0.003909370321 | BM92: 0.003909370321 | BP92: 0.993227991
A93: 1959-09-19 | B93: 4.68 | C93: 0.25 | D93: 0.25 | E93: 0.2512100139 | F93: 0.05489852587 | G93: 0.05489852587 | H93: 0.05540941911 | I93: -3.061872076 | J93: 10.1034618 | K93: 4.673549024 | L93: 2.765845103e-05 | M93: 2.894020368e-08 | U93: 0.3825 | AM93: 0.0004502708887 | AO93: 0 | AQ93: 8.387216457e-05 | AS93: 4.572297139e-05 | AU93: 0.1919891068 | AV93: 0.1894891068 | AW93: 0 | AX93: 0 | AY93: 4.796815859e-06 | AZ93: 3.27620685e-08 | BA93: 0.0001289735441 | BB93: 0.0002702434985 | BC93: 1.475857153e-05 | BD93: 3.617384972e-05 | BG93: 1.056433409 | BH93: 1.211657318 | BI93: 1.208631958 | BL93: 0.00387255476 | BM93: 0.00387255476 | BP93: 0.9465811966
A94: 1959-10-19 | B94: 4.53 | C94: -0.15 | D94: 0.15 | E94: 0.1487899861 | F94: -0.03257617043 | G94: 0.03257617043 | H94: 0.0320652772 | I94: -3.094448246 | J94: 18.09688649 | K94: 6.892909475 | L94: 7.748991633e-05 | M94: 1.086951064e-09 | U94: 0.3875 | AM94: 0.0004380738295 | AO94: 0 | AQ94: 8.002905165e-05 | AS94: 4.36278956e-05 | AV94: 0.1944891068 | AW94: 0 | AX94: 0 | AY94: =1-NORMDIST(AU93,F$743,F$745,TRUE) -> 7.286669252e-06 | AZ94: =1-NORMDIST(AU93,F$743,AA$11,TRUE) -> 2.764925322e-08 | BA94: =0.5*(1)-0.5*( GAMMADIST(ABS(AU93-$F$743),AL$11,AL$12,TRUE)) -> 0.0006478222021 | BB94: =AS$12*(0.5*(1)-0.5*( GAMMADIST(ABS(AU93-$F$743)^AO$10,AO$11,AO$12^AO$10,TRUE)))+(1-AS$12)*(0.5*((1))-0.5*( (1-GAMMADIST(1/ABS(AU93-$F$743)^AQ$10,AQ$11,1/AQ$12^AQ$10,TRUE)))) -> 0.003876296687 | BC94: =0.5*(1)-0.5*( GAMMADIST(ABS(AU93-$F$743)^AO$2,AO$3,AO$4^AO$2,TRUE)) -> 3.763288273e-05 | BD94: =1-1/(1+EXP(-$AC$11*(AU93-$F$743))) -> 0.0001395165456 | BG94: 0.9679487179 | BI94: 1.214690251 | BL94: 0 | BP94: 1.033112583
A95: 1959-11-19 | B95: 4.53 | C95: 0 | D95: 0 | E95: 0.001210013908 | F95: 0 | G95: 0 | H95: 0.0005108932384 | I95: -3.094448246 | J95: 18.09688649 | K95: 6.892909475 | L95: 7.748991633e-05 | M95: 1.778201324e-20 | U95: 0.3925 | AM95: 0.0004263545154 | AO95: 0 | AQ95: 7.640774573e-05 | AS95: 4.165373804e-05 | BG95: 1 | BL95: 0 | BP95: 1
A96: 1959-12-19 | B96: 4.69 | C96: 0.16 | D96: 0.16 | E96: 0.1612100139 | F96: 0.03471064296 | G96: 0.03471064296 | H96: 0.0352215362 | I96: -3.059737604 | J96: 9.698112279 | K96: 4.547696484 | L96: 2.568306105e-05 | M96: 1.909192694e-09 | U96: 0.3975 | AM96: 0.000415088606 | AO96: 0 | AQ96: 7.299287853e-05 | AS96: 3.979212071e-05 | AY96: =NORMDIST(AU96,F$743,F$745,TRUE)-NORMDIST(AU95,F$743,F$745,TRUE) ->  | BA96: =IF(AU96 <0,0.5*(1-GAMMADIST(ABS(AU96-$F$743),AL$11,AL$12,TRUE))-0.5*(1-GAMMADIST(ABS(AU95-$F$743),AL$11,AL$12,TRUE)),0.5*(GAMMADIST(ABS(AU96-$F$743),AL$11,AL$12,TRUE))-0.5*( GAMMADIST(ABS(AU95-$F$743),AL$11,AL$12,TRUE))) ->  | BB96: =AS$12*(IF(AU96 <$F$743,0.5*(1-GAMMADIST(ABS(AU96-$F$743)^AO$10,AO$11,AO$12^AO$10,TRUE))-0.5*(1-GAMMADIST(ABS(AU95-$F$743)^AO$10,AO$11,AO$12^AO$10,TRUE)),0.5*(GAMMADIST(ABS(AU96-$F$743)^AO$10,AO$11,AO$12^AO$10,TRUE))-0.5*( GAMMADIST(ABS(AU95-$F$743)^AO$10,AO$11,AO$12^AO$10,TRUE))))+(1-AS$12)*(IF(AU96 <$F$743,0.5*(GAMMADIST(1/ABS(AU96-$F$743)^AQ$10,AQ$11,1/AQ$12^AQ$10,TRUE))-0.5*(GAMMADIST(1/ABS(AU95-$F$743)^AQ$10,AQ$11,1/AQ$12^AQ$10,TRUE)),0.5*((1-GAMMADIST(1/ABS(AU96-$F$743)^AQ$10,AQ$11,1/AQ$12^AQ$10,TRUE)))-0.5*( (1-GAMMADIST(1/ABS(AU95-$F$743)^AQ$10,AQ$11,1/AQ$12^AQ$10,TRUE))))) ->  | BG96: 1.035320088 | BL96: 0 | BP96: 0.9658848614
A97: 1960-01-19 | B97: 4.72 | C97: 0.03 | D97: 0.03 | E97: 0.03121001391 | F97: 0.006376217139 | G97: 0.006376217139 | H97: 0.006887110378 | I97: -3.053361386 | J97: 8.562454094 | K97: 4.185353749 | L97: 2.046805344e-05 | M97: 1.067142116e-13 | U97: 0.4025 | AM97: 0.0004042532807 | AO97: 0 | AQ97: 6.977031966e-05 | AS97: 3.803534041e-05 | BG97: 1.006396588 | BL97: 0 | BP97: 0.9936440678
A98: 1960-02-19 | B98: 4.49 | C98: -0.23 | D98: 0.23 | E98: 0.2287899861 | F98: -0.04995609784 | G98: 0.04995609784 | H98: 0.0494452046 | I98: -3.103317484 | J98: 20.94835497 | K98: 7.599177981 | L98: 9.973284619e-05 | M98: 1.461319131e-08 | U98: 0.4075 | AM98: 0.0003938271267 | AO98: 0 | AQ98: 6.672706335e-05 | AS98: 3.637630702e-05 | BG98: 0.9512711864 | BL98: 0 | BP98: 1.051224944
A99: 1960-03-19 | B99: 4.25 | C99: -0.24 | D99: 0.24 | E99: 0.2387899861 | F99: -0.05493371882 | G99: 0.05493371882 | H99: 0.05442282558 | I99: -3.158251203 | J99: 47.09335952 | K99: 13.04086649 | L99: 0.0003898473446 | M99: 2.59828339e-08 | U99: 0.4125 | AM99: 0.0003837900366 | AO99: 0 | AQ99: 6.385112668e-05 | AS99: 3.480848805e-05 | BG99: 0.9465478842 | BL99: 0 | BP99: 1.056470588
A100: 1960-04-19 | B100: 4.28 | C100: 0.03 | D100: 0.03 | E100: 0.03121001391 | F100: 0.007034026657 | G100: 0.007034026657 | H100: 0.007544919896 | I100: -3.151217176 | J100: 42.8050229 | K100: 12.2366674 | L100: 0.0003327988655 | M100: 1.844708715e-13 | U100: 0.4175 | AM100: 0.0003741231145 | AO100: 0 | AQ100: 6.113145822e-05 | AS100: 3.332585882e-05 | BG100: 1.007058824 | BL100: 0 | BP100: 0.9929906542
A101: 1960-05-19 | B101: 4.35 | C101: 0.07 | D101: 0.07 | E101: 0.07121001391 | F101: 0.01622283551 | G101: 0.01622283551 | H101: 0.01673372875 | I101: -3.134994341 | J101: 34.04845679 | K101: 10.50505398 | L101: 0.0002272155083 | M101: 2.195615806e-11 | U101: 0.4225 | AM101: 0.0003648085899 | AO101: 0 | AQ101: 5.85578557e-05 | AS101: 3.192285754e-05 | BG101: 1.01635514 | BL101: 0 | BP101: 0.983908046
A102: 1960-06-19 | B102: 4.15 | C102: -0.2 | D102: 0.2 | E102: 0.1987899861 | F102: -0.04706751086 | G102: 0.04706751086 | H102: 0.04655661762 | I102: -3.182061852 | J102: 64.06135783 | K102: 16.01022467 | L102: 0.000646989914 | M102: 1.01832997e-08 | U102: 0.4275 | AM102: 0.0003558297384 | AO102: 0 | AQ102: 5.612089182e-05 | AS102: 3.059434491e-05 | BG102: 0.9540229885 | BL102: 0 | BP102: 1.048192771
A103: 1960-07-19 | B103: 3.9 | C103: -0.25 | D103: 0.25 | E103: 0.2487899861 | F103: -0.06213178111 | G103: 0.06213178111 | H103: 0.06162088787 | I103: -3.244193633 | J103: 129.8569018 | K103: 25.64346404 | L103: 0.002043318214 | M103: 5.474793078e-08 | U103: 0.4325 | AM103: 0.0003471708093 | AO103: 0 | AQ103: 5.381184735e-05 | AS103: 2.933556764e-05 | BG103: 0.9397590361 | BL103: 0 | BP103: 1.064102564
A104: 1960-08-19 | B104: 3.8 | C104: -0.1 | D104: 0.1 | E104: 0.09878998609 | F104: -0.0259754864 | G104: 0.0259754864 | H104: 0.02546459316 | I104: -3.270169119 | J104: 168.5626543 | K104: 30.51459247 | L104: 0.003117006818 | M104: 2.72659386e-10 | U104: 0.4375 | AM104: 0.0003388169584 | AO104: 0 | AQ104: 5.162265063e-05 | AS104: 2.814212546e-05 | BG104: 0.9743589744 | BL104: 0 | BP104: 1.026315789
A105: 1960-09-19 | B105: 3.8 | C105: 0 | D105: 0 | E105: 0.001210013908 | F105: 0 | G105: 0 | H105: 0.0005108932384 | I105: -3.270169119 | J105: 168.5626543 | K105: 30.51459247 | L105: 0.003117006818 | M105: 1.778201324e-20 | U105: 0.4425 | AM105: 0.0003307541867 | AO105: 0 | AQ105: 4.954582284e-05 | AS105: 2.700994128e-05 | BG105: 1 | BL105: 0 | BP105: 1
A106: 1960-10-19 | B106: 3.89 | C106: 0.09 | D106: 0.09 | E106: 0.09121001391 | F106: 0.0234080909 | G106: 0.0234080909 | H106: 0.02391898414 | I106: -3.246761028 | J106: 133.3579548 | K106: 26.1023305 | L106: 0.002133286023 | M106: 1.872649007e-10 | U106: 0.4475 | AM106: 0.0003229692832 | AO106: 0 | AQ106: 4.757442854e-05 | AS106: 2.593523425e-05 | BG106: 1.023684211 | BL106: 0 | BP106: 0.9768637532
A107: 1960-11-19 | B107: 3.93 | C107: 0.04 | D107: 0.04 | E107: 0.04121001391 | F107: 0.01023026825 | G107: 0.01023026825 | H107: 0.01074116149 | I107: -3.23653076 | J107: 119.8099188 | K107: 24.30310981 | L107: 0.001793372855 | M107: 1.535703862e-12 | U107: 0.4525 | AM107: 0.0003154497728 | AO107: 0 | AQ107: 4.570203067e-05 | AS107: 2.491449519e-05 | BG107: 1.010282776 | BL107: 0 | BP107: 0.989821883
A108: 1960-12-19 | B108: 3.84 | C108: -0.09 | D108: 0.09 | E108: 0.08878998609 | F108: -0.02316705928 | G108: 0.02316705928 | H108: 0.02265616604 | I108: -3.259697819 | J108: 152.0660271 | K108: 28.48971687 | L108: 0.002638457091 | M108: 1.352441577e-10 | U108: 0.4575 | AM108: 0.0003081838679 | AO108: 0 | AQ108: 4.392264988e-05 | AS108: 2.394446446e-05 | BG108: 0.9770992366 | BL108: 0 | BP108: 1.0234375
A109: 1961-01-19 | B109: 3.84 | C109: 0 | D109: 0 | E109: 0.001210013908 | F109: 0 | G109: 0 | H109: 0.0005108932384 | I109: -3.259697819 | J109: 152.0660271 | K109: 28.48971687 | L109: 0.002638457091 | M109: 1.778201324e-20 | U109: 0.4625 | AM109: 0.0003011604235 | AO109: 0 | AQ109: 4.223072743e-05 | AS109: 2.302211171e-05 | BG109: 1 | BL109: 0 | BP109: 1
A110: 1961-02-19 | B110: 3.78 | C110: -0.06 | D110: 0.06 | E110: 0.05878998609 | F110: -0.01574835697 | G110: 0.01574835697 | H110: 0.01523746373 | I110: -3.275446176 | J110: 177.3541173 | K110: 31.56657889 | L110: 0.003384306577 | M110: 1.251630418e-11 | U110: 0.4675 | AM110: 0.0002943688958 | AO110: 0 | AQ110: 4.062109153e-05 | AS110: 2.214461753e-05 | BG110: 0.984375 | BL110: 0 | BP110: 1.015873016
A111: 1961-03-19 | B111: 3.74 | C111: -0.04 | D111: 0.04 | E111: 0.03878998609 | F111: -0.01063839821 | G111: 0.01063839821 | H111: 0.01012750497 | I111: -3.286084575 | J111: 196.0864689 | K111: 33.75191489 | L111: 0.003981512981 | M111: 1.078983464e-12 | U111: 0.4725 | AM111: 0.0002877993039 | AO111: 0 | AQ111: 3.90889267e-05 | AS111: 2.130935676e-05 | BG111: 0.9894179894 | BL111: 0 | BP111: 1.010695187
A112: 1961-04-19 | B112: 3.78 | C112: 0.04 | D112: 0.04 | E112: 0.04121001391 | F112: 0.01063839821 | G112: 0.01063839821 | H112: 0.01114929144 | I112: -3.275446176 | J112: 177.3541173 | K112: 31.56657889 | L112: 0.003384306577 | M112: 1.920806464e-12 | U112: 0.4775 | AM112: 0.0002814421946 | AO112: 0 | AQ112: 3.76297458e-05 | AS112: 2.051388324e-05 | BG112: 1.010695187 | BH112: =EXP(AU112) ->  | BL112: 0 | BP112: 0.9894179894
A113: 1961-05-19 | B113: 3.71 | C113: -0.07 | D113: 0.07 | E113: 0.06878998609 | F113: -0.01869213301 | G113: 0.01869213301 | H113: 0.01818123977 | I113: -3.294138309 | J113: 211.1932737 | K113: 35.46391861 | L113: 0.004489891976 | M113: 3.611943647e-11 | U113: 0.4825 | AM113: 0.0002752886089 | AO113: 0 | AQ113: 3.623936456e-05 | AS113: 1.975591589e-05 | BG113: 0.9814814815 | BI113: =EXP(AV113) ->  | BL113: 0 | BM113: =1-(BL$13/(LN(BH113)+BL$13))^BL$12-(1-(BL$13/(LN(BH112)+BL$13))^BL$12) ->  | BP113: 1.018867925
A114: 1961-06-19 | B114: 3.88 | C114: 0.17 | D114: 0.17 | E114: 0.1712100139 | F114: 0.04480327702 | G114: 0.04480327702 | H114: 0.04531417025 | I114: -3.249335032 | J114: 136.9373163 | K114: 26.56732784 | L114: 0.002226775296 | M114: 8.657733081e-09 | U114: 0.4875 | AM114: 0.0002693300518 | AO114: 0 | AQ114: 3.491387826e-05 | AS114: 1.903332608e-05 | BG114: 1.045822102 | BL114: 0 | BP114: 0.956185567
A115: 1961-07-19 | B115: 3.92 | C115: 0.04 | D115: 0.04 | E115: 0.04121001391 | F115: 0.01025650017 | G115: 0.01025650017 | H115: 0.01076739341 | I115: -3.239078532 | J115: 123.0842331 | K115: 24.74390746 | L115: 0.001873475121 | M115: 1.558344549e-12 | U115: 0.4925 | AM115: 0.0002635584639 | AO115: 0 | AQ115: 3.364964052e-05 | AS115: 1.834412595e-05 | BG115: 1.010309278 | BL115: 0 | BP115: 0.9897959184
A116: 1961-08-19 | B116: 4.04 | C116: 0.12 | D116: 0.12 | E116: 0.1212100139 | F116: 0.03015303817 | G116: 0.03015303817 | H116: 0.03066393141 | I116: -3.208925494 | J116: 88.32613019 | K116: 19.83320049 | L116: 0.001093121613 | M116: 8.313176643e-10 | U116: 0.4975 | AM116: 0.0002579661948 | AO116: 0 | AQ116: 3.244324378e-05 | AS116: 1.768645789e-05 | BG116: 1.030612245 | BL116: 0 | BP116: 0.9702970297
A117: 1961-09-19 | B117: 3.98 | C117: -0.06 | D117: 0.06 | E117: 0.05878998609 | F117: -0.01496287268 | G117: 0.01496287268 | H117: 0.01445197944 | I117: -3.223888367 | J117: 104.5061788 | K117: 22.18679883 | L117: 0.001436819171 | M117: 9.110957274e-12 | U117: 0.5025 | AM117: 0.0002525459788 | AO117: 0 | AQ117: 3.129150149e-05 | AS117: 1.705858475e-05 | BG117: 0.9851485149 | BL117: 0 | BP117: 1.015075377
A118: 1961-10-19 | B118: 3.92 | C118: -0.06 | D118: 0.06 | E118: 0.05878998609 | F118: -0.01519016549 | G118: 0.01519016549 | H118: 0.01467927226 | I118: -3.239078532 | J118: 123.0842331 | K118: 24.74390746 | L118: 0.001873475121 | M118: 1.000523174e-11 | U118: 0.5075 | AM118: 0.0002472909117 | AO118: 0 | AQ118: 3.019143182e-05 | AS118: 1.645888097e-05 | BG118: 0.9849246231 | BL118: 0 | BP118: 1.015306122
A119: 1961-11-19 | B119: 3.94 | C119: 0.02 | D119: 0.02 | E119: 0.02121001391 | F119: 0.005089069507 | G119: 0.005089069507 | H119: 0.005599962746 | I119: -3.233989463 | J119: 116.6085152 | K119: 23.86822796 | L119: 0.001716337888 | M119: 3.083974845e-14 | U119: 0.5125 | AM119: 0.0002421944301 | AO119: 0 | AQ119: 2.914024263e-05 | AS119: 1.588582442e-05 | BG119: 1.005102041 | BP119: 0.9949238579
A120: 1961-12-19 | B120: 4.06 | C120: 0.12 | D120: 0.12 | E120: 0.1212100139 | F120: 0.0300022503 | G120: 0.0300022503 | H120: 0.03051314354 | I120: -3.203987212 | J120: 83.42110969 | K120: 19.09196554 | L120: 0.0009960107286 | M120: 8.070895282e-10 | U120: 0.5175 | AM120: 0.0002372502908 | AO120: 0 | AQ120: 2.813531772e-05 | AS120: 1.533798888e-05 | BG120: 1.030456853 | BP120: 0.9704433498
A121: 1962-01-19 | B121: 4.08 | C121: 0.02 | D121: 0.02 | E121: 0.02121001391 | F121: 0.004914014802 | G121: 0.004914014802 | H121: 0.005424908041 | I121: -3.199073198 | J121: 78.74521376 | K121: 18.37170419 | L121: 0.0009066223739 | M121: 2.548908728e-14 | U121: 0.5225 | AM121: 0.0002324525528 | AO121: 0 | AQ121: 2.717420423e-05 | AS121: 1.481403716e-05 | BG121: 1.004926108 | BP121: 0.9950980392
A122: 1962-02-19 | B122: 4.04 | C122: -0.04 | D122: 0.04 | E122: 0.03878998609 | F122: -0.009852296443 | G122: 0.009852296443 | H122: 0.009341403205 | I122: -3.208925494 | J122: 88.32613019 | K122: 19.83320049 | L122: 0.001093121613 | M122: 6.644659152e-13 | U122: 0.5275 | AM122: 0.0002277955599 | AO122: 0 | AQ122: 2.625460098e-05 | AS122: 1.431271478e-05 | BG122: 0.9901960784 | BP122: 1.00990099
A123: 1962-03-19 | B123: 3.93 | C123: -0.11 | D123: 0.11 | E123: 0.1087899861 | F123: -0.02760526609 | G123: 0.02760526609 | H123: 0.02709437285 | I123: -3.23653076 | J123: 119.8099188 | K123: 24.30310981 | L123: 0.001793372855 | M123: 3.956167016e-10 | U123: 0.5325 | AM123: 0.0002232739245 | AO123: 0 | AQ123: 2.537434782e-05 | AS123: 1.383284413e-05 | BG123: 0.9727722772 | BP123: 1.027989822
A124: 1962-04-19 | B124: 3.84 | C124: -0.09 | D124: 0.09 | E124: 0.08878998609 | F124: -0.02316705928 | G124: 0.02316705928 | H124: 0.02265616604 | I124: -3.259697819 | J124: 152.0660271 | K124: 28.48971687 | L124: 0.002638457091 | M124: 1.352441577e-10 | U124: 0.5375 | AM124: 0.0002188825124 | AO124: 0 | AQ124: 2.453141571e-05 | AS124: 1.337331908e-05 | BG124: 0.9770992366 | BP124: 1.0234375
A125: 1962-05-19 | B125: 3.87 | C125: 0.03 | D125: 0.03 | E125: 0.03121001391 | F125: 0.007782140442 | G125: 0.007782140442 | H125: 0.00829303368 | I125: -3.251915679 | J125: 140.5963814 | K125: 27.03851042 | L125: 0.002323908629 | M125: 3.252973873e-13 | U125: 0.5425 | AM125: 0.0002146164291 | AO125: 0 | AQ125: 2.372389772e-05 | AS125: 1.293310006e-05 | BG125: 1.0078125 | BP125: 0.992248062
A126: 1962-06-19 | B126: 3.91 | C126: 0.04 | D126: 0.04 | E126: 0.04121001391 | F126: 0.01028286696 | G126: 0.01028286696 | H126: 0.01079376019 | I126: -3.241632812 | J126: 126.4327807 | K126: 25.19067432 | L126: 0.001956752997 | M126: 1.581381269e-12 | U126: 0.5475 | AM126: 0.0002104710059 | AO126: 0 | AQ126: 2.295000062e-05 | AS126: 1.25112095e-05 | BG126: 1.010335917 | BP126: 0.989769821
A127: 1962-07-19 | B127: 4.01 | C127: 0.1 | D127: 0.1 | E127: 0.1012100139 | F127: 0.02525386732 | G127: 0.02525386732 | H127: 0.02576476056 | I127: -3.216378945 | J127: 96.1327978 | K127: 20.98526163 | L127: 0.001254554315 | M127: 2.925207408e-10 | U127: 0.5525 | AM127: 0.0002064417883 | AO127: 0 | AQ127: 2.220803713e-05 | AS127: 1.210672756e-05 | BG127: 1.025575448 | BP127: 0.9750623441
A128: 1962-08-19 | B128: 3.98 | C128: -0.03 | D128: 0.03 | E128: 0.02878998609 | F128: -0.007509422022 | G128: 0.007509422022 | H128: 0.006998528784 | I128: -3.223888367 | J128: 104.5061788 | K128: 22.18679883 | L128: 0.001436819171 | M128: 1.175007175e-13 | U128: 0.5575 | AM128: 0.0002025245239 | AO128: 0 | AQ128: 2.149641882e-05 | AS128: 1.171878832e-05 | BG128: 0.9925187032 | BP128: 1.007537688
A129: 1962-09-19 | B129: 3.98 | C129: 0 | D129: 0 | E129: 0.001210013908 | F129: 0 | G129: 0 | H129: 0.0005108932384 | I129: -3.223888367 | J129: 104.5061788 | K129: 22.18679883 | L129: 0.001436819171 | M129: 1.778201324e-20 | U129: 0.5625 | AM129: 0.0001987151517 | AO129: 0 | AQ129: 2.081364947e-05 | AS129: 1.134657612e-05 | BG129: 1 | BP129: 1
A130: 1962-10-19 | B130: 3.93 | C130: -0.05 | D130: 0.05 | E130: 0.04878998609 | F130: -0.01264239342 | G130: 0.01264239342 | H130: 0.01213150018 | I130: -3.23653076 | J130: 119.8099188 | K130: 24.30310981 | L130: 0.001793372855 | M130: 3.187770544e-12 | U130: 0.5675 | AM130: 0.0001950097918 | AO130: 0 | AQ130: 2.015831899e-05 | AS130: 1.098932223e-05 | BG130: 0.9874371859 | BP130: 1.012722646
A131: 1962-11-19 | B131: 3.92 | C131: -0.01 | D131: 0.01 | E131: 0.008789986092 | F131: -0.002547772079 | G131: 0.002547772079 | H131: 0.00203687884 | I131: -3.239078532 | J131: 123.0842331 | K131: 24.74390746 | L131: 0.001873475121 | M131: 7.141528601e-17 | U131: 0.5725 | AM131: 0.0001914047359 | AO131: 0 | AQ131: 1.952909775e-05 | AS131: 1.064630181e-05 | BG131: 0.9974554707 | BP131: 1.00255102
A132: 1962-12-19 | B132: 3.86 | C132: -0.06 | D132: 0.06 | E132: 0.05878998609 | F132: -0.01542447033 | G132: 0.01542447033 | H132: 0.01491357709 | I132: -3.254503003 | J132: 144.3365636 | K132: 27.51593284 | L132: 0.002424812449 | M132: 1.100248893e-11 | U132: 0.5775 | AM132: 0.0001878964386 | AO132: 0 | AQ132: 1.892473134e-05 | AS132: 1.031683103e-05 | BG132: 0.9846938776 | BP132: 1.015544041
A133: 1963-01-19 | B133: 3.83 | C133: -0.03 | D133: 0.03 | E133: 0.02878998609 | F133: -0.007802380284 | G133: 0.007802380284 | H133: 0.007291487046 | I133: -3.262305383 | J133: 156.05823 | K133: 28.98618888 | L133: 0.002751470934 | M133: 1.502784307e-13 | U133: 0.5825 | AM133: 0.0001844815083 | AO133: 0 | AQ133: 1.834403574e-05 | AS133: 1.00002644e-05 | BG133: 0.9922279793 | BP133: 1.007832898
A134: 1963-02-19 | B134: 3.92 | C134: 0.09 | D134: 0.09 | E134: 0.09121001391 | F134: 0.02322685061 | G134: 0.02322685061 | H134: 0.02373774385 | I134: -3.239078532 | J134: 123.0842331 | K134: 24.74390746 | L134: 0.001873475121 | M134: 1.789108317e-10 | U134: 0.5875 | AM134: 0.0001811566999 | AO134: 0 | AQ134: 1.778589277e-05 | AS134: 9.695992355e-06 | BG134: 1.023498695 | BP134: 0.9770408163
A135: 1963-03-19 | B135: 3.93 | C135: 0.01 | D135: 0.01 | E135: 0.01121001391 | F135: 0.002547772079 | G135: 0.002547772079 | H135: 0.003058665317 | I135: -3.23653076 | J135: 119.8099188 | K135: 24.30310981 | L135: 0.001793372855 | M135: 8.188262397e-16 | U135: 0.5925 | AM135: 0.0001779189069 | AO135: 0 | AQ135: 1.724924597e-05 | AS135: 9.403438958e-06 | BG135: 1.00255102 | BP135: 0.9974554707
A136: 1963-04-19 | B136: 3.97 | C136: 0.04 | D136: 0.04 | E136: 0.04121001391 | F136: 0.01012666882 | G136: 0.01012666882 | H136: 0.01063756206 | I136: -3.226404091 | J136: 107.4288106 | K136: 22.59854674 | L136: 0.001502602965 | M136: 1.448947467e-12 | U136: 0.5975 | AM136: 0.0001747651549 | AO136: 0 | AQ136: 1.673309664e-05 | AS136: 9.122059777e-06 | BG136: 1.010178117 | BP136: 0.9899244332
A137: 1963-05-19 | B137: 3.93 | C137: -0.04 | D137: 0.04 | E137: 0.03878998609 | F137: -0.01012666882 | G137: 0.01012666882 | H137: 0.00961577558 | I137: -3.23653076 | J137: 119.8099188 | K137: 24.30310981 | L137: 0.001793372855 | M137: 7.905073517e-13 | U137: 0.6025 | AM137: 0.0001716925942 | AO137: 0 | AQ137: 1.62365003e-05 | AS137: 8.851339924e-06 | BG137: 0.9899244332 | BP137: 1.010178117
A138: 1963-06-19 | B138: 3.99 | C138: 0.06 | D138: 0.06 | E138: 0.06121001391 | F138: 0.01515180502 | G138: 0.01515180502 | H138: 0.01566269826 | I138: -3.221378955 | J138: 101.6501088 | K138: 21.78070327 | L138: 0.001373609146 | M138: 1.476384538e-11 | U138: 0.6075 | AM138: 0.0001686984942 | AO138: 0 | AQ138: 1.575856331e-05 | AS138: 8.590792224e-06 | BG138: 1.015267176 | BP138: 0.984962406
A139: 1963-07-19 | B139: 4.02 | C139: 0.03 | D139: 0.03 | E139: 0.03121001391 | F139: 0.007490671729 | G139: 0.007490671729 | H139: 0.008001564968 | I139: -3.213888283 | J139: 93.46917047 | K139: 20.59581232 | L139: 0.001198538384 | M139: 2.624518357e-13 | U139: 0.6125 | AM139: 0.0001657802373 | AO139: 0 | AQ139: 1.529843972e-05 | AS139: 8.339955516e-06 | BG139: 1.007518797 | BP139: 0.9925373134
A140: 1963-08-19 | B140: 4 | C140: -0.02 | D140: 0.02 | E140: 0.01878998609 | F140: -0.004987541511 | G140: 0.004987541511 | H140: 0.004476648273 | I140: -3.218875825 | J140: 98.85938229 | K140: 21.38020812 | L140: 0.001312883168 | M140: 8.048553606e-15 | U140: 0.6175 | AM140: 0.0001629353135 | AO140: 0 | AQ140: 1.48553284e-05 | AS140: 8.098393062e-06 | BG140: 0.9950248756 | BP140: 1.005
A141: 1963-09-19 | B141: 4.08 | C141: 0.08 | D141: 0.08 | E141: 0.08121001391 | F141: 0.0198026273 | G141: 0.0198026273 | H141: 0.02031352053 | I141: -3.199073198 | J141: 78.74521376 | K141: 18.37170419 | L141: 0.0009066223739 | M141: 7.026049171e-11 | U141: 0.6225 | AM141: 0.0001601613149 | AO141: 0 | AQ141: 1.442847033e-05 | AS141: 7.865691073e-06 | BG141: 1.02 | BP141: 0.9803921569
A142: 1963-10-19 | B142: 4.11 | C142: 0.03 | D142: 0.03 | E142: 0.03121001391 | F142: 0.007326040092 | G142: 0.007326040092 | H142: 0.00783693333 | I142: -3.191747157 | J142: 72.1421383 | K142: 17.32976501 | L142: 0.0007858329902 | M142: 2.316737952e-13 | U142: 0.6275 | AM142: 0.0001574559309 | AO142: 0 | AQ142: 1.401714603e-05 | AS142: 7.641457331e-06 | BG142: 1.007352941 | BP142: 0.9927007299
A143: 1963-11-19 | B143: 4.12 | C143: 0.01 | D143: 0.01 | E143: 0.01121001391 | F143: 0.002430134853 | G143: 0.002430134853 | H143: 0.002941028092 | I143: -3.189317023 | J143: 70.04646831 | K143: 16.99250849 | L143: 0.0007488606303 | M143: 6.471352198e-16 | U143: 0.6325 | AM143: 0.0001548169437 | AO143: 0 | AQ143: 1.362067325e-05 | AS143: 7.425319908e-06 | BG143: 1.00243309 | BP143: 0.9975728155
A144: 1963-12-19 | B144: 4.13 | C144: 0.01 | D144: 0.01 | E144: 0.01121001391 | F144: 0.002424243612 | G144: 0.002424243612 | H144: 0.00293513685 | I144: -3.186892779 | J144: 68.00177708 | K144: =($B144-$B$743)^4 -> 16.66019862 | L144: =($I144-$I$743)^6 -> 0.0007134337215 | M144: 6.393963157e-16 | U144: 0.6375 | AM144: 0.0001522422237 | AO144: 0 | AQ144: 1.323840476e-05 | AS144: 7.216925963e-06 | BG144: 1.002427184 | BP144: 0.9975786925
A145: 1964-01-19 | B145: 4.17 | C145: 0.04 | D145: 0.04 | E145: =ABS(C145-C$743) -> 0.04121001391 | F145: 0.009638628838 | G145: 0.009638628838 | H145: 0.01014952208 | I145: =LN(B145/100) -> -3.17725415 | J145: =(B145-$B$743)^6 -> 60.31308048 | K145: 15.37945717 | L145: 0.0005860671621 | M145: 1.093134384e-12 | U145: 0.6425 | AM145: 0.0001497297254 | AO145: 0 | AQ145: 1.286972629e-05 | AS145: =AS$12*AO145+(1-AS$12)*AQ145 -> 7.015940629e-06 | BG145: =B145/B144 -> 1.00968523 | BP145: 0.9904076739
A146: 1964-02-19 | B146: 4.15 | C146: =B146-B145 -> -0.02 | D146: =ABS(C146) -> 0.02 | E146: 0.01878998609 | F146: -0.004807701568 | G146: =ABS(F146) -> 0.004807701568 | H146: =ABS(F146-F$743) -> 0.00429680833 | I146: -3.182061852 | J146: 64.06135783 | K146: 16.01022467 | L146: 0.000646989914 | M146: =(F146-F$743)^6 -> 6.293263088e-15 | U146: =U145+0.005 -> 0.6475 | AM146: 0.0001472774833 | AO146: 0 | AQ146: 1.251405463e-05 | AS146: 6.822045962e-06 | AU146: =AU145+0.005 ->  | BG146: 0.9952038369 | BP146: =1/BG146 -> 1.004819277
A147: 1964-03-19 | B147: 4.22 | C147: 0.07 | D147: 0.07 | E147: 0.07121001391 | F147: =LN(B147/B146) -> 0.01672679381 | G147: 0.01672679381 | H147: 0.01723768704 | I147: -3.165335058 | J147: 51.73388729 | K147: 13.88406831 | L147: 0.0004553129711 | M147: 2.623456999e-11 | U147: 0.6525 | AM147: =(1-GAMMADIST(1/U147,AM$11,1/AM$12,TRUE))-(1-GAMMADIST(1/U146,AM$11,1/AM$12,TRUE)) -> 0.0001448836086 | AO147: =(GAMMADIST($U147^AO$10,AO$11,AO$12^AO$10,TRUE)-GAMMADIST($U146^AO$10,AO$11,AO$12^AO$10,TRUE)) -> 0 | AQ147: =(1-GAMMADIST((1/U147)^AQ$10,AQ$11,(1/AQ$12)^AQ$10,TRUE))-(1-GAMMADIST((1/U146)^AQ$10,AQ$11,(1/AQ$12)^AQ$10,TRUE)) -> 1.217083579e-05 | AS147: 6.634939967e-06 | BG147: 1.01686747 | BP147: 0.9834123223
A148: 1964-04-19 | B148: 4.23 | C148: 0.01 | D148: 0.01 | E148: 0.01121001391 | F148: 0.00236686501 | G148: 0.00236686501 | H148: 0.002877758249 | I148: -3.162968193 | J148: 50.14652887 | K148: 13.59859119 | L148: 0.0004324924879 | M148: 5.679705853e-16 | U148: 0.6575 | AM148: 0.0001425462853 | AO148: 0 | AQ148: 1.183954341e-05 | AS148: 6.454335684e-06 | BG148: 1.002369668 | BP148: 0.9976359338
A149: 1964-05-19 | B149: 4.2 | C149: -0.03 | D149: 0.03 | E149: 0.02878998609 | F149: -0.007117467769 | G149: 0.007117467769 | H149: 0.00660657453 | I149: -3.170085661 | J149: 55.03443394 | K149: 14.46848314 | L149: 0.0005041534131 | M149: 8.314919183e-14 | U149: 0.6625 | AM149: 0.000140263767 | AO149: 0 | AQ149: 1.15196771e-05 | AS149: 6.279960333e-06 | BG149: 0.9929078014 | BP149: 1.007142857
A150: 1964-06-19 | B150: 4.17 | C150: -0.03 | D150: 0.03 | E150: 0.02878998609 | F150: -0.007168489479 | G150: 0.007168489479 | H150: 0.00665759624 | I150: -3.17725415 | J150: 60.31308048 | K150: 15.37945717 | L150: 0.0005860671621 | M150: 8.707725282e-14 | U150: 0.6675 | AM150: 0.0001380343737 | AO150: 0 | AQ150: 1.121076103e-05 | AS150: 6.111554512e-06 | BG150: 0.9928571429 | BP150: 1.007194245
A151: 1964-07-19 | B151: 4.19 | C151: 0.02 | D151: 0.02 | E151: 0.02121001391 | F151: 0.004784698123 | G151: 0.004784698123 | H151: 0.005295591362 | I151: -3.172469452 | J151: 56.74937545 | K151: 14.76751399 | L151: 0.0005302591239 | M151: 2.205397056e-14 | U151: 0.6725 | AM151: 0.0001358564887 | AO151: 0 | AQ151: 1.091234253e-05 | AS151: 5.948871452e-06 | BG151: 1.004796163 | BP151: 0.9952267303
A152: 1964-08-19 | B152: 4.19 | C152: 0 | D152: 0 | E152: 0.001210013908 | F152: 0 | G152: 0 | H152: 0.0005108932384 | I152: -3.172469452 | J152: 56.74937545 | K152: 14.76751399 | L152: 0.0005302591239 | M152: 1.778201324e-20 | U152: 0.6775 | AM152: 0.0001337285562 | AO152: 0 | AQ152: 1.062399082e-05 | AS152: 5.791676307e-06 | BG152: 1 | BP152: 1
A153: 1964-09-19 | B153: 4.2 | C153: 0.01 | D153: 0.01 | E153: 0.01121001391 | F153: 0.002383791355 | G153: 0.002383791355 | H153: 0.002894684594 | I153: -3.170085661 | J153: 55.03443394 | K153: 14.46848314 | L153: 0.0005041534131 | M153: 5.883117172e-16 | U153: 0.6825 | AM153: 0.000131649078 | AO153: 0 | AQ153: 1.034529578e-05 | AS153: 5.639745503e-06 | BG153: 1.002386635 | BP153: 0.9976190476
A154: 1964-10-19 | B154: 4.19 | C154: -0.01 | D154: 0.01 | E154: 0.008789986092 | F154: -0.002383791355 | G154: 0.002383791355 | H154: 0.001872898117 | I154: -3.172469452 | J154: 56.74937545 | K154: 14.76751399 | L154: 0.0005302591239 | M154: 4.316034603e-17 | U154: 0.6875 | AM154: 0.0001296166114 | AO154: 0 | AQ154: 1.007586683e-05 | AS154: 5.492866115e-06 | BG154: 0.9976190476 | BP154: 1.002386635
A155: 1964-11-19 | B155: 4.15 | C155: -0.04 | D155: 0.04 | E155: 0.03878998609 | F155: -0.009592399691 | G155: 0.009592399691 | H155: 0.009081506453 | I155: -3.182061852 | J155: 64.06135783 | K155: 16.01022467 | L155: 0.000646989914 | M155: 5.609799963e-13 | U155: 0.6925 | AM155: 0.0001276297665 | AO155: 0 | AQ155: 9.815331866e-06 | AS155: 5.350835291e-06 | BG155: 0.9904534606 | BP155: 1.009638554
A156: 1964-12-19 | B156: 4.18 | C156: 0.03 | D156: 0.03 | E156: 0.03121001391 | F156: 0.007202912294 | G156: 0.007202912294 | H156: 0.007713805532 | I156: -3.174858939 | J156: 58.50862065 | K156: 15.07115627 | L156: 0.0005575481489 | M156: 2.106745698e-13 | U156: 0.6975 | AM156: 0.0001256872042 | AO156: 0 | AQ156: 9.563336259e-06 | AS156: 5.213459703e-06 | BG156: 1.007228916 | BP156: 0.9928229665
A157: 1965-01-19 | B157: 4.19 | C157: 0.01 | D157: 0.01 | E157: 0.01121001391 | F157: 0.002389487397 | G157: 0.002389487397 | H157: 0.002900380636 | I157: -3.172469452 | J157: 56.74937545 | K157: 14.76751399 | L157: 0.0005302591239 | M157: 5.952919114e-16 | U157: 0.7025 | AM157: 0.0001237876336 | AO157: 0 | AQ157: 9.319541916e-06 | AS157: 5.08055504e-06 | BG157: 1.002392344 | BP157: 0.9976133652
A158: 1965-02-19 | B158: 4.21 | C158: 0.02 | D158: 0.02 | E158: 0.02121001391 | F158: 0.00476191376 | G158: 0.00476191376 | H158: 0.005272806999 | I158: -3.167707538 | J158: 53.36289902 | K158: 14.17401681 | L158: 0.0004791858983 | M158: 2.149073408e-14 | U158: 0.7075 | AM158: 0.0001219298104 | AO158: 0 | AQ158: 9.083626403e-06 | AS158: 4.951945526e-06 | BG158: 1.00477327 | BP158: 0.9952494062
A159: 1965-03-19 | B159: 4.21 | C159: 0 | D159: 0 | E159: 0.001210013908 | F159: 0 | G159: 0 | H159: 0.0005108932384 | I159: -3.167707538 | J159: 53.36289902 | K159: 14.17401681 | L159: 0.0004791858983 | M159: 1.778201324e-20 | U159: 0.7125 | AM159: 0.0001201125346 | AO159: 0 | AQ159: 8.855282109e-06 | AS159: 4.827463469e-06 | BG159: 1 | BP159: 1
A160: 1965-04-19 | B160: 4.2 | C160: -0.01 | D160: 0.01 | E160: 0.008789986092 | F160: -0.002378122405 | G160: 0.002378122405 | H160: 0.001867229167 | I160: -3.170085661 | J160: 55.03443394 | K160: 14.46848314 | L160: 0.0005041534131 | M160: 4.238241847e-17 | U160: 0.7175 | AM160: 0.0001183346485 | AO160: 0 | AQ160: 8.634215477e-06 | AS160: 4.706948834e-06 | BB160: =AS$12*(IF(AU160 <$F$743,0.5*(1-GAMMADIST(ABS(AU160-$F$743)^AO$10,AO$11,AO$12^AO$10,TRUE))-0.5*(1-GAMMADIST(ABS(AU159-$F$743)^AO$10,AO$11,AO$12^AO$10,TRUE)),0.5*(GAMMADIST(ABS(AU160-$F$743)^AO$10,AO$11,AO$12^AO$10,TRUE))-0.5*( GAMMADIST(ABS(AU159-$F$743)^AO$10,AO$11,AO$12^AO$10,TRUE))))+(1-AS$12)*(IF(AU160 <$F$743,0.5*(GAMMADIST(1/ABS(AU160-$F$743)^AQ$10,AQ$11,1/AQ$12^AQ$10,TRUE))-0.5*(GAMMADIST(1/ABS(AU159-$F$743)^AQ$10,AQ$11,1/AQ$12^AQ$10,TRUE)),0.5*((1-GAMMADIST(1/ABS(AU160-$F$743)^AQ$10,AQ$11,1/AQ$12^AQ$10,TRUE)))-0.5*( (1-GAMMADIST(1/ABS(AU159-$F$743)^AQ$10,AQ$11,1/AQ$12^AQ$10,TRUE))))) ->  | BG160: 0.9976247031 | BP160: 1.002380952
A161: 1965-05-19 | B161: 4.21 | C161: 0.01 | D161: 0.01 | E161: 0.01121001391 | F161: 0.002378122405 | G161: 0.002378122405 | H161: 0.002889015643 | I161: -3.167707538 | J161: 53.36289902 | K161: 14.17401681 | L161: 0.0004791858983 | M161: 5.814325765e-16 | U161: 0.7225 | AM161: 0.0001165950354 | AO161: 0 | AQ161: 8.42014626e-06 | AS161: 4.590248845e-06 | BG161: 1.002380952 | BP161: 0.9976247031
A162: 1965-06-19 | B162: 4.21 | C162: 0 | D162: 0 | E162: 0.001210013908 | F162: 0 | G162: 0 | H162: 0.0005108932384 | I162: -3.167707538 | J162: 53.36289902 | K162: 14.17401681 | L162: 0.0004791858983 | M162: 1.778201324e-20 | U162: 0.7275 | AM162: 0.0001148926174 | AO162: 0 | AQ162: 8.212806838e-06 | AS162: 4.477217609e-06 | BG162: 1 | BP162: 1
A163: 1965-07-19 | B163: 4.2 | C163: -0.01 | D163: 0.01 | E163: 0.008789986092 | F163: -0.002378122405 | G163: 0.002378122405 | H163: 0.001867229167 | I163: -3.170085661 | J163: 55.03443394 | K163: 14.46848314 | L163: 0.0005041534131 | M163: 4.238241847e-17 | U163: 0.7325 | AM163: 0.0001132263543 | AO163: 0 | AQ163: 8.011941566e-06 | AS163: 4.36771576e-06 | BG163: 0.9976247031 | BP163: 1.002380952
A164: 1965-08-19 | B164: 4.25 | C164: 0.05 | D164: 0.05 | E164: 0.05121001391 | F164: 0.01183445765 | G164: 0.01183445765 | H164: 0.01234535089 | I164: -3.158251203 | J164: 47.09335952 | K164: 13.04086649 | L164: 0.0003898473446 | M164: 3.540141564e-12 | U164: 0.7375 | AM164: 0.0001115952414 | AO164: 0 | AQ164: 7.817306158e-06 | AS164: 4.261610126e-06 | BG164: 1.011904762 | BP164: 0.9882352941
A165: 1965-09-19 | B165: 4.29 | C165: 0.04 | D165: 0.04 | E165: 0.04121001391 | F165: 0.009367750004 | G165: 0.009367750004 | H165: 0.009878643242 | I165: -3.148883453 | J165: 41.45005895 | K165: 11.97705659 | L165: 0.000315484726 | M165: 9.293596428e-13 | U165: 0.7425 | AM165: 0.0001099983086 | AO165: 0 | AQ165: 7.628667117e-06 | AS165: 4.158773416e-06 | BG165: 1.009411765 | BP165: 0.9906759907
A166: 1965-10-19 | B166: 4.35 | C166: 0.06 | D166: 0.06 | E166: 0.06121001391 | F166: 0.01388911216 | G166: 0.01388911216 | H166: 0.0144000054 | I166: -3.134994341 | J166: 34.04845679 | K166: 10.50505398 | L166: 0.0002272155083 | M166: 8.916120506e-12 | U166: 0.7475 | AM166: 0.0001084346189 | AO166: 0 | AQ166: 7.445801183e-06 | AS166: 4.059083919e-06 | BG166: 1.013986014 | BP166: 0.9862068966
A167: 1965-11-19 | B167: 4.45 | C167: 0.1 | D167: 0.1 | E167: 0.1012100139 | F167: 0.02272825108 | G167: 0.02272825108 | H167: 0.02323914432 | I167: -3.11226609 | J167: 24.16479571 | K167: 8.358379492 | L167: 0.0001273296769 | M167: 1.575145938e-10 | U167: 0.7525 | AM167: 0.0001069032667 | AO167: 0 | AQ167: 7.268494823e-06 | AS167: 3.962425229e-06 | BG167: 1.022988506 | BP167: 0.9775280899
A168: 1965-12-19 | B168: 4.62 | C168: 0.17 | D168: 0.17 | E168: 0.1712100139 | F168: 0.03749060892 | G168: 0.03749060892 | H168: 0.03800150215 | I168: -3.074775481 | J168: 12.84377175 | K168: 5.484390703 | L168: 4.249491764e-05 | M168: 3.011650595e-09 | U168: 0.7575 | AM168: 0.000105403377 | AO168: 0 | AQ168: 7.09654375e-06 | AS168: 3.868685976e-06 | BG168: 1.038202247 | BP168: 0.9632034632
A169: 1966-01-19 | B169: 4.61 | C169: -0.01 | D169: 0.01 | E169: 0.008789986092 | F169: -0.002166848085 | G169: 0.002166848085 | H169: 0.001655954847 | I169: -3.076942329 | J169: 13.35564255 | K169: 5.629154794 | L169: 4.553953661e-05 | M169: 2.062010838e-17 | U169: 0.7625 | AM169: 0.0001039341039 | AO169: 0 | AQ169: 6.929752456e-06 | AS169: 3.777759581e-06 | BG169: 0.9978354978 | BP169: 1.002169197
A170: 1966-02-19 | B170: 4.83 | C170: 0.22 | D170: 0.22 | E170: 0.2212100139 | F170: 0.04661861066 | G170: 0.04661861066 | H170: 0.04712950389 | I170: -3.030323718 | J170: 5.297538423 | K170: 3.038897675 | L170: 8.321698603e-06 | M170: 1.095865385e-08 | U170: 0.7675 | AM170: 0.0001024946296 | AO170: 0 | AQ170: 6.767933791e-06 | AS170: 3.689544018e-06 | BG170: 1.047722343 | BP170: 0.9544513458
A171: 1966-03-19 | B171: 4.87 | C171: 0.04 | D171: 0.04 | E171: 0.04121001391 | F171: 0.00824746943 | G171: 0.00824746943 | H171: 0.008758362668 | I171: -3.022076249 | J171: 4.404636238 | K171: 2.687035258 | L171: 5.816920427e-06 | M171: 4.51375048e-13 | U171: 0.7725 | AM171: 0.0001010841632 | AO171: 0 | AQ171: 6.610908546e-06 | AS171: 3.603941592e-06 | BG171: 1.008281573 | BP171: 0.9917864476
A172: 1966-04-19 | B172: 4.75 | C172: -0.12 | D172: 0.12 | E172: 0.1187899861 | F172: -0.02494931905 | G172: 0.02494931905 | H172: 0.02443842581 | I172: -3.047025568 | J172: 7.539850175 | K172: 3.845107422 | L172: 1.619169987e-05 | M172: 2.130293124e-10 | U172: 0.7775 | AM172: 9.970193972e-05 | AO172: 0 | AQ172: 6.458505075e-06 | AS172: 3.520858729e-06 | BG172: 0.9753593429 | BP172: 1.025263158
A173: 1966-05-19 | B173: 4.78 | C173: 0.03 | D173: 0.03 | E173: 0.03121001391 | F173: 0.006295928457 | G173: 0.006295928457 | H173: 0.006806821695 | I173: -3.040729639 | J173: 6.621111808 | K173: 3.526040377 | L173: 1.270723027e-05 | M173: 9.946407461e-14 | U173: 0.7825 | AM173: 9.834721891e-05 | AO173: 0 | AQ173: 6.310558923e-06 | AS173: 3.440205777e-06 | BG173: 1.006315789 | BP173: 0.9937238494
A174: 1966-06-19 | B174: 4.81 | C174: 0.03 | D174: 0.03 | E174: 0.03121001391 | F174: 0.006256537614 | G174: 0.006256537614 | H174: 0.006767430853 | I174: -3.034473102 | J174: 5.797622163 | K174: 3.227254926 | L174: 9.88735289e-06 | M174: 9.606008397e-14 | U174: 0.7875 | AM174: 9.701928459e-05 | AO174: 0 | AQ174: 6.166912485e-06 | AS174: 3.361896817e-06 | BG174: 1.006276151 | BP174: 0.9937629938
A175: 1966-07-19 | B175: 5.02 | C175: 0.21 | D175: 0.21 | E175: 0.2112100139 | F175: 0.04273284959 | G175: 0.04273284959 | H175: 0.04324374282 | I175: -2.991740252 | J175: 2.085485583 | K175: 1.632318094 | L175: 1.248636385e-06 | M175: 6.539426386e-09 | U175: 0.7925 | AM175: 9.571744351e-05 | AO175: 0 | AQ175: 6.027414682e-06 | AS175: 3.285849489e-06 | AU175: =AU174+0.0075 ->  | BG175: 1.043659044 | BP175: 0.9581673307
A176: 1966-08-19 | B176: 5.22 | C176: 0.2 | D176: 0.2 | E176: 0.2012100139 | F176: 0.03906746819 | G176: 0.03906746819 | H176: 0.03957836143 | I176: -2.952672784 | J176: 0.6483247317 | K176: 0.7490803292 | L176: 7.33729205e-08 | M176: 3.843676787e-09 | U176: 0.7975 | AM176: 9.444102458e-05 | AO176: 0 | AQ176: 5.891920646e-06 | AS176: 3.211984817e-06 | BG176: 1.039840637 | BP176: 0.9616858238
A177: 1966-09-19 | B177: 5.18 | C177: -0.04 | D177: 0.04 | E177: 0.03878998609 | F177: -0.007692345623 | G177: 0.007692345623 | H177: 0.007181452385 | I177: -2.96036513 | J177: 0.8346192675 | K177: 0.8864595795 | L177: 1.439641352e-07 | M177: 1.37174603e-13 | U177: 0.8025 | AM177: 9.318937795e-05 | AO177: 0 | AQ177: 5.760291433e-06 | AS177: 3.140227056e-06 | BG177: 0.9923371648 | BP177: 1.007722008
A178: 1966-10-19 | B178: 5.01 | C178: -0.17 | D178: 0.17 | E178: 0.1687899861 | F178: -0.03336914117 | G178: 0.03336914117 | H178: 0.03285824794 | I178: -2.993734271 | J178: 2.198665588 | K178: 1.69085404 | L178: 1.399692557e-06 | M178: 1.258538234e-09 | U178: 0.8075 | AM178: 9.196187428e-05 | AO178: 0 | AQ178: 5.632393744e-06 | AS178: 3.070503537e-06 | BG178: 0.9671814672 | BP178: 1.033932136
A179: 1966-11-19 | B179: 5.16 | C179: 0.15 | D179: 0.15 | E179: 0.1512100139 | F179: 0.0295006644 | G179: 0.0295006644 | H179: 0.03001155764 | I179: -2.964233606 | J179: 0.9433043513 | K179: 0.9618364367 | L179: 1.967443796e-07 | M179: 7.30686727e-10 | U179: 0.8125 | AM179: 9.075790394e-05 | AO179: 0 | AQ179: 5.508099661e-06 | AS179: 3.002744528e-06 | BG179: 1.02994012 | BP179: 0.9709302326
A180: 1966-12-19 | B180: 4.84 | C180: -0.32 | D180: 0.32 | E180: 0.3187899861 | F180: -0.06402185876 | G180: 0.06402185876 | H180: 0.06351096553 | I180: -3.028255465 | J180: 5.061312056 | K180: 2.947872822 | L180: 7.622108678e-06 | M180: 6.562847171e-08 | U180: 0.8175 | AM180: 8.957687629e-05 | AO180: 0 | AQ180: 5.387286402e-06 | AS180: 2.936883092e-06 | BG180: 0.9379844961 | BP180: 1.066115702
A181: 1967-01-19 | B181: 4.58 | C181: -0.26 | D181: 0.26 | E181: 0.2587899861 | F181: -0.0552157226 | G181: 0.0552157226 | H181: 0.05470482936 | I181: -3.083471188 | J181: 14.99436402 | K181: 6.080678383 | L181: 5.5833614e-05 | M181: 2.68011856e-08 | U181: 0.8225 | AM181: 8.841821897e-05 | AO181: 0 | AQ181: 5.269836083e-06 | AS181: 2.872854965e-06 | BG181: 0.9462809917 | BP181: 1.056768559
A182: 1967-02-19 | B182: 4.63 | C182: 0.05 | D182: 0.05 | E182: 0.05121001391 | F182: 0.01085786997 | G182: 0.01085786997 | H182: 0.01136876321 | I182: -3.072613318 | J182: 12.34835482 | K182: 5.342436885 | L182: 3.962788286e-05 | M182: 2.159132658e-12 | U182: 0.8275 | AM182: 8.728137721e-05 | AO182: 0 | AQ182: 5.155635493e-06 | AS182: 2.810598431e-06 | BG182: 1.010917031 | BP182: 0.9892008639
A183: 1967-03-19 | B183: 4.54 | C183: -0.09 | D183: 0.09 | E183: 0.08878998609 | F183: -0.01962985604 | G183: 0.01962985604 | H183: 0.01911896281 | I183: -3.092243174 | J183: 17.43701825 | K183: 6.724316523 | L183: 7.265531442e-05 | M183: 4.884115999e-11 | U183: 0.8325 | AM183: 8.616581325e-05 | AO183: 0 | AQ183: 5.044575887e-06 | AS183: 2.750054206e-06 | BG183: 0.9805615551 | BP183: 1.019823789
A184: 1967-04-19 | B184: 4.59 | C184: 0.05 | D184: 0.05 | E184: 0.05121001391 | F184: 0.01095301202 | G184: 0.01095301202 | H184: 0.01146390526 | I184: -3.081290162 | J184: 14.43049152 | K184: 5.927261426 | L184: 5.21990057e-05 | M184: 2.269841486e-12 | U184: 0.8375 | AM184: 8.507100564e-05 | AO184: 0 | AQ184: 4.936552778e-06 | AS184: 2.69116533e-06 | AU184: =AU183+0.0075 ->  | BG184: 1.011013216 | BP184: 0.9891067538
A185: 1967-05-19 | B185: 4.85 | C185: 0.26 | D185: 0.26 | E185: 0.2612100139 | F185: 0.05509868088 | G185: 0.05509868088 | H185: 0.05560957412 | I185: -3.026191481 | J185: 4.833929822 | K185: 2.858908313 | L185: 6.973524235e-06 | M185: 2.95731383e-08 | U185: 0.8425 | AM185: 8.399644872e-05 | AO185: 0 | AQ185: 4.83146575e-06 | AS185: 2.633877061e-06 | BG185: 1.05664488 | BP185: 0.9463917526
A186: 1967-06-19 | B186: 5.02 | C186: 0.17 | D186: 0.17 | E186: 0.1712100139 | F186: 0.03445122875 | G186: 0.03445122875 | H186: 0.03496212199 | I186: -2.991740252 | J186: 2.085485583 | K186: 1.632318094 | L186: 1.248636385e-06 | M186: 1.82636133e-09 | U186: 0.8475 | AM186: 8.2941652e-05 | AO186: 0 | AQ186: 4.729218279e-06 | AS186: 2.578136777e-06 | BG186: 1.035051546 | BP186: 0.9661354582
A187: 1967-07-19 | B187: 5.16 | C187: 0.14 | D187: 0.14 | E187: 0.1412100139 | F187: 0.02750664579 | G187: 0.02750664579 | H187: 0.02801753903 | I187: -2.964233606 | J187: 0.9433043513 | K187: 0.9618364367 | L187: 1.967443796e-07 | M187: 4.837042613e-10 | U187: 0.8525 | AM187: 8.190613967e-05 | AO187: 0 | AQ187: 4.629717553e-06 | AS187: 2.523893884e-06 | BG187: 1.027888446 | BP187: 0.9728682171
A188: 1967-08-19 | B188: 5.28 | C188: 0.12 | D188: 0.12 | E188: 0.1212100139 | F188: 0.02298951822 | G188: 0.02298951822 | H188: 0.02350041146 | I188: -2.941244088 | J188: 0.4345823851 | K188: 0.573739494 | L188: 2.286092095e-08 | M188: 1.684429341e-10 | U188: 0.8575 | AM188: 8.088945004e-05 | AO188: 0 | AQ188: 4.532874315e-06 | AS188: 2.471099723e-06 | BG188: 1.023255814 | BP188: 0.9772727273
A189: 1967-09-19 | B189: 5.3 | C189: 0.02 | D189: 0.02 | E189: 0.02121001391 | F189: 0.00378072284 | G189: 0.00378072284 | H189: 0.004291616078 | I189: -2.937463365 | J189: 0.3780007502 | K189: 0.5227914078 | L189: 1.469871249e-08 | M189: 6.247772139e-15 | U189: 0.8625 | AM189: 7.989113505e-05 | AO189: 0 | AQ189: 4.438602705e-06 | AS189: 2.419707486e-06 | BG189: 1.003787879 | BP189: 0.9962264151
A190: 1967-10-19 | B190: 5.48 | C190: 0.18 | D190: 0.18 | E190: 0.1812100139 | F190: 0.0333982804 | G190: 0.0333982804 | H190: 0.03390917364 | I190: -2.904065085 | J190: 0.09071746479 | K190: 0.2018957932 | L190: 1.738407536e-11 | M190: 1.520208783e-09 | U190: 0.8675 | AM190: 7.891075981e-05 | AO190: 0 | AQ190: 4.346820113e-06 | AS190: 2.369672139e-06 | BG190: 1.033962264 | BP190: 0.9671532847
A191: 1967-11-19 | B191: 5.75 | C191: 0.27 | D191: 0.27 | E191: 0.2712100139 | F191: 0.04809475385 | G191: 0.04809475385 | H191: 0.04860564709 | I191: -2.855970331 | J191: 0.004115665894 | K191: 0.02568187579 | L191: 1.073685168e-09 | M191: 1.318622177e-08 | U191: 0.8725 | AM191: 7.794790213e-05 | AO191: 0 | AQ191: 4.257447035e-06 | AS191: 2.320950341e-06 | BG191: 1.049270073 | BP191: 0.9530434783
A192: 1967-12-19 | B192: 5.7 | C192: -0.05 | D192: 0.05 | E192: 0.04878998609 | F192: -0.008733679969 | G192: 0.008733679969 | H192: 0.00822278673 | I192: -2.864704011 | J192: 0.008339196342 | K192: 0.04112281154 | L192: 1.586114981e-10 | M192: 3.091107851e-13 | U192: 0.8775 | AM192: 7.700215206e-05 | AO192: 0 | AQ192: 4.170406944e-06 | AS192: 2.273500372e-06 | BG192: 0.9913043478 | BP192: 1.00877193
A193: 1968-01-19 | B193: 5.53 | C193: -0.17 | D193: 0.17 | E193: 0.1687899861 | F193: -0.03027835931 | G193: 0.03027835931 | H193: 0.02976746607 | I193: -2.89498237 | J193: 0.05697605404 | K193: 0.1480681257 | L193: 1.188969233e-13 | M193: 6.957467775e-10 | U193: 0.8825 | AM193: 7.60731115e-05 | AO193: 0 | AQ193: 4.085626159e-06 | AS193: 2.227282066e-06 | BG193: 0.9701754386 | BP193: 1.03074141
A194: 1968-02-19 | B194: 5.56 | C194: 0.03 | D194: 0.03 | E194: 0.03121001391 | F194: 0.005410292728 | G194: 0.005410292728 | H194: 0.005921185967 | I194: -2.889572078 | J194: 0.04231774641 | K194: 0.1214362519 | L194: 1.690520952e-17 | M194: 4.309751278e-14 | U194: 0.8875 | AM194: 7.516039379e-05 | AO194: 0 | AQ194: 4.003033724e-06 | AS194: 2.18225674e-06 | BG194: 1.005424955 | BP194: 0.9946043165
A195: 1968-03-19 | B195: 5.74 | C195: 0.18 | D195: 0.18 | E195: 0.1812100139 | F195: 0.03186110207 | G195: 0.03186110207 | H195: 0.03237199531 | I195: -2.857710976 | J195: 0.004772353311 | K195: 0.0283457787 | L195: 7.675979559e-10 | M195: 1.15084494e-09 | U195: 0.8925 | AM195: 7.426362328e-05 | AO195: 0 | AQ195: 3.922561296e-06 | AS195: 2.138387138e-06 | BG195: 1.032374101 | BP195: 0.968641115
A196: 1968-04-19 | B196: 5.64 | C196: -0.1 | D196: 0.1 | E196: 0.09878998609 | F196: -0.01757514482 | G196: 0.01757514482 | H196: 0.01706425158 | I196: -2.87528612 | J196: 0.01766252128 | K196: 0.06782166782 | L196: 4.164116507e-12 | M196: 2.469013545e-11 | U196: 0.8975 | AM196: 7.338243503e-05 | AO196: 0 | AQ196: 3.844143031e-06 | AS196: 2.095637364e-06 | BG196: 0.9825783972 | BP196: 1.017730496
A197: 1968-05-19 | B197: 5.87 | C197: 0.23 | D197: 0.23 | E197: 0.2312100139 | F197: 0.03997056833 | G197: 0.03997056833 | H197: 0.04048146157 | I197: -2.835315552 | J197: 0.0004851983806 | K197: 0.006174657816 | L197: 2.13114422e-08 | M197: 4.40085546e-09 | U197: 0.9025 | AM197: 7.251647436e-05 | AO197: 0 | AQ197: 3.767715481e-06 | AS197: 2.053972829e-06 | BG197: 1.040780142 | BP197: 0.9608177172
A198: 1968-06-19 | B198: 5.72 | C198: -0.15 | D198: 0.15 | E198: 0.1487899861 | F198: -0.02588582845 | G198: 0.02588582845 | H198: 0.02537493521 | I198: -2.861201381 | J198: 0.00634959205 | K198: 0.03428971554 | L198: 3.679261717e-10 | M198: 2.669498322e-10 | U198: 0.9075 | AM198: 7.166539657e-05 | AO198: 0 | AQ198: 3.693217494e-06 | AS198: 2.013360197e-06 | BG198: 0.9744463373 | BP198: 1.026223776
A199: 1968-07-19 | B199: 5.5 | C199: -0.22 | D199: 0.22 | E199: 0.2187899861 | F199: -0.03922071315 | G199: 0.03922071315 | H199: 0.03870981991 | I199: -2.900422094 | J199: 0.07564155307 | K199: 0.1788574185 | L199: 3.727725096e-12 | M199: 3.364549371e-09 | U199: 0.9125 | AM199: 7.082886661e-05 | AO199: 0 | AQ199: 3.620590118e-06 | AS199: 1.973767331e-06 | BG199: 0.9615384615 | BP199: 1.04
A200: 1968-08-19 | B200: 5.42 | C200: -0.08 | D200: 0.08 | E200: 0.07878998609 | F200: -0.01465227679 | G200: 0.01465227679 | H200: 0.01414138355 | I200: -2.915074371 | J200: 0.1517319999 | K200: 0.2844798137 | L200: 3.964890256e-10 | M200: 7.997447711e-12 | U200: 0.9175 | AM200: 7.000655871e-05 | AO200: 0 | AQ200: 3.549776514e-06 | AS200: 1.935163243e-06 | BG200: 0.9854545455 | BP200: 1.014760148
... 551 more rows
